Workbook

Sheet RFPR cover
A1: Regulatory Financial Performance Report
A2: ='RFPR cover'!C5 -> Cadent-WM
A3: ='RFPR cover'!C7 -> 2020
B5: Licensee | C5: Cadent-WM | G5: Input cells
B6: Sector | C6: =INDEX(Data!$A$73:$A$100,MATCH($C$5,Data!$B$73:$B$100,0),0)&"1" -> GD1 | G6: Totals cells (of formula within worksheet)
B7: Reporting Year: (enter 2014 for 2013-14) | C7: 2020 | G7: Referencing to other worksheets
B8: Version (Number) | G8: Referencing to other workbooks
B9: Submitted Date: | G9: Check cells
B10: Cost of Equity | C10: =SUMIF(Data!$B$72:$B$100,C5,Data!$C$72:$C$100) -> 0.067 | G10: No Input
B11: Sharing Factor | C11: =SUMIF(Data!$B$72:$B$100,C5,Data!$D$72:$D$100) -> 0.6304 | G11: Descriptions and pack data
B12: Notional Gearing | C12: =SUMIF(Data!$B$72:$B$100,C5,Data!$E$72:$E$100) -> 0.65
B13: RIIO-1 start date | C13: =INDEX(Data!$G$73:$G$100,MATCH($C$5,Data!$B$73:$B$100,0),0) -> 2014 | F13: Materiality £m
B14: Price basis | C14: =INDEX(Data!$H$73:$H$100,MATCH($C$5,Data!$B$73:$B$100,0),0) -> £m 09/10 | F14: 0.1

Sheet Data
A1: Network Operator Data
A2: ='RFPR cover'!C5 -> Cadent-WM
A3: ='RFPR cover'!C7 -> 2020
B6: 2018 | C6: 2017-18
B7: 2019 | C7: 2018-19
B8: 2020 | C8: 2019-20
B9: 2021 | C9: 2020-21
B10: 2022 | C10: 2021-22
B11: 2023 | C11: 2022-23
B13: RPI Index | C13: Reporting year | D13: Actual / Forecast index | E13: Financial Year Average RPI (RPIt) | F13: Year end RPI | G13: Corp. Tax
B14: 2009-10 | C14: 2010 | D14: =IF(VALUE(C14)<='RFPR cover'!$C$7,"Actual","Forecast") -> Actual | E14: 215.767 | F14: 221.75 | G14: 0.28
B15: 2010-11 | C15: 2011 | D15: =IF(VALUE(C15)<='RFPR cover'!$C$7,"Actual","Forecast") -> Actual | E15: 226.475 | F15: 233.45 | G15: 0.28
B16: 2011-12 | C16: 2012 | D16: =IF(VALUE(C16)<='RFPR cover'!$C$7,"Actual","Forecast") -> Actual | E16: 237.342 | F16: 241.65 | G16: 0.26
B17: 2012-13 | C17: 2013 | D17: =IF(VALUE(C17)<='RFPR cover'!$C$7,"Actual","Forecast") -> Actual | E17: 244.675 | F17: 249.1 | G17: 0.24
B18: 2013-14 | C18: 2014 | D18: =IF(VALUE(C18)<='RFPR cover'!$C$7,"Actual","Forecast") -> Actual | E18: 251.733 | F18: 255.25 | G18: 0.23
B19: 2014-15 | C19: 2015 | D19: =IF(VALUE(C19)<='RFPR cover'!$C$7,"Actual","Forecast") -> Actual | E19: 256.667 | F19: 257.55 | G19: 0.21
B20: 2015-16 | C20: 2016 | D20: =IF(VALUE(C20)<='RFPR cover'!$C$7,"Actual","Forecast") -> Actual | E20: 259.433 | F20: 261.25 | G20: 0.2
B21: 2016-17 | C21: 2017 | D21: =IF(VALUE(C21)<='RFPR cover'!$C$7,"Actual","Forecast") -> Actual | E21: 264.992 | F21: 269.95 | G21: 0.2
B22: 2017-18 | C22: 2018 | D22: =IF(VALUE(C22)<='RFPR cover'!$C$7,"Actual","Forecast") -> Actual | E22: 274.908 | F22: 279 | G22: 0.19
B23: 2018-19 | C23: 2019 | D23: =IF(VALUE(C23)<='RFPR cover'!$C$7,"Actual","Forecast") -> Actual | E23: 283.308 | F23: 286.65 | G23: 0.19
B24: 2019-20 | C24: 2020 | D24: =IF(VALUE(C24)<='RFPR cover'!$C$7,"Actual","Forecast") -> Actual | E24: 290.642 | F24: 292.6 | G24: 0.19
B25: 2020-21 | C25: 2021 | D25: =IF(VALUE(C25)<='RFPR cover'!$C$7,"Actual","Forecast") -> Forecast | E25: =E24*(1+INDEX($D$43:$J$43,0,MATCH($C25,$D$42:$J$42,0))) -> 297.326766 | F25: 299.3298 | G25: 0.19
B26: 2021-22 | C26: 2022 | D26: =IF(VALUE(C26)<='RFPR cover'!$C$7,"Actual","Forecast") -> Forecast | E26: 303.6449598 | F26: 305.6905582 | G26: 0.19
B27: 2022-23 | C27: 2023 | D27: =IF(VALUE(C27)<='RFPR cover'!$C$7,"Actual","Forecast") -> Forecast | E27: 311.4638175 | F27: 313.5620901 | G27: 0.19
B28: 2023-24 | C28: 2024 | D28: =IF(VALUE(C28)<='RFPR cover'!$C$7,"Actual","Forecast") -> Forecast | G28: 0.19
B29: 2024-25 | C29: 2025 | D29: =IF(VALUE(C29)<='RFPR cover'!$C$7,"Actual","Forecast") -> Forecast | G29: 0.19
B30: 2025-26 | C30: 2026 | D30: =IF(VALUE(C30)<='RFPR cover'!$C$7,"Actual","Forecast") -> Forecast | G30: 0.19
C32: =IF(C33<='RFPR cover'!$C$7,"Actuals","Forecast") -> Actuals | D32: =IF(D33<='RFPR cover'!$C$7,"Actuals","Forecast") -> Actuals | E32: =IF(E33<='RFPR cover'!$C$7,"Actuals","Forecast") -> Actuals | F32: =IF(F33<='RFPR cover'!$C$7,"Actuals","Forecast") -> Actuals | G32: =IF(G33<='RFPR cover'!$C$7,"Actuals","Forecast") -> Actuals | H32: =IF(H33<='RFPR cover'!$C$7,"Actuals","Forecast") -> Actuals | I32: =IF(I33<='RFPR cover'!$C$7,"Actuals","Forecast") -> Actuals | J32: =IF(J33<='RFPR cover'!$C$7,"Actuals","Forecast") -> Forecast
C33: ='RFPR cover'!$C$13 -> 2014 | D33: =C33+1 -> 2015 | E33: 2016 | F33: 2017 | G33: 2018 | H33: 2019 | I33: 2020 | J33: 2021
B34: Financial Year Average RPI (RPIt) | C34: =INDEX(Data!$E$14:$E$30,MATCH(C$33,Data!$C$14:$C$30,0),0)/IF('RFPR cover'!$C$6="ED1",Data!$E$17,Data!$E$14) -> 1.166689067 | D34: =INDEX(Data!$E$14:$E$30,MATCH(D$33,Data!$C$14:$C$30,0),0)/IF('RFPR cover'!$C$6="ED1",Data!$E$17,Data!$E$14) -> 1.189556327 | E34: =INDEX(Data!$E$14:$E$30,MATCH(E$33,Data!$C$14:$C$30,0),0)/IF('RFPR cover'!$C$6="ED1",Data!$E$17,Data!$E$14) -> 1.202375711 | F34: =INDEX(Data!$E$14:$E$30,MATCH(F$33,Data!$C$14:$C$30,0),0)/IF('RFPR cover'!$C$6="ED1",Data!$E$17,Data!$E$14) -> 1.228139614 | G34: =INDEX(Data!$E$14:$E$30,MATCH(G$33,Data!$C$14:$C$30,0),0)/IF('RFPR cover'!$C$6="ED1",Data!$E$17,Data!$E$14) -> 1.274096595 | H34: =INDEX(Data!$E$14:$E$30,MATCH(H$33,Data!$C$14:$C$30,0),0)/IF('RFPR cover'!$C$6="ED1",Data!$E$17,Data!$E$14) -> 1.313027479 | I34: =INDEX(Data!$E$14:$E$30,MATCH(I$33,Data!$C$14:$C$30,0),0)/IF('RFPR cover'!$C$6="ED1",Data!$E$17,Data!$E$14) -> 1.347017848 | J34: =INDEX(Data!$E$14:$E$30,MATCH(J$33,Data!$C$14:$C$30,0),0)/IF('RFPR cover'!$C$6="ED1",Data!$E$17,Data!$E$14) -> 1.377999258
B35: Year end RPI | C35: =INDEX(Data!$F$14:$F$30,MATCH(C$33,Data!$C$14:$C$30,0),0)/IF('RFPR cover'!$C$6="ED1",Data!$E$17,Data!$E$14) -> 1.182989058 | D35: =INDEX(Data!$F$14:$F$30,MATCH(D$33,Data!$C$14:$C$30,0),0)/IF('RFPR cover'!$C$6="ED1",Data!$E$17,Data!$E$14) -> 1.193648704 | E35: =INDEX(Data!$F$14:$F$30,MATCH(E$33,Data!$C$14:$C$30,0),0)/IF('RFPR cover'!$C$6="ED1",Data!$E$17,Data!$E$14) -> 1.210796832 | F35: =INDEX(Data!$F$14:$F$30,MATCH(F$33,Data!$C$14:$C$30,0),0)/IF('RFPR cover'!$C$6="ED1",Data!$E$17,Data!$E$14) -> 1.251118104 | G35: =INDEX(Data!$F$14:$F$30,MATCH(G$33,Data!$C$14:$C$30,0),0)/IF('RFPR cover'!$C$6="ED1",Data!$E$17,Data!$E$14) -> 1.293061497 | H35: =INDEX(Data!$F$14:$F$30,MATCH(H$33,Data!$C$14:$C$30,0),0)/IF('RFPR cover'!$C$6="ED1",Data!$E$17,Data!$E$14) -> 1.328516409 | I35: =INDEX(Data!$F$14:$F$30,MATCH(I$33,Data!$C$14:$C$30,0),0)/IF('RFPR cover'!$C$6="ED1",Data!$E$17,Data!$E$14) -> 1.356092452 | J35: =INDEX(Data!$F$14:$F$30,MATCH(J$33,Data!$C$14:$C$30,0),0)/IF('RFPR cover'!$C$6="ED1",Data!$E$17,Data!$E$14) -> 1.387282578
B36: 1 year change in Fin Year Ave RPI | C36: =INDEX(Data!$E$14:$E$30,MATCH(C$33,Data!$C$14:$C$30,0))/INDEX(Data!$E$14:$E$30,MATCH(C$33-1,Data!$C$14:$C$30,0)) -> 1.028846429 | D36: =INDEX(Data!$E$14:$E$30,MATCH(D$33,Data!$C$14:$C$30,0))/INDEX(Data!$E$14:$E$30,MATCH(D$33-1,Data!$C$14:$C$30,0)) -> 1.019600132 | E36: =INDEX(Data!$E$14:$E$30,MATCH(E$33,Data!$C$14:$C$30,0))/INDEX(Data!$E$14:$E$30,MATCH(E$33-1,Data!$C$14:$C$30,0)) -> 1.010776609 | F36: =INDEX(Data!$E$14:$E$30,MATCH(F$33,Data!$C$14:$C$30,0))/INDEX(Data!$E$14:$E$30,MATCH(F$33-1,Data!$C$14:$C$30,0)) -> 1.021427498 | G36: =INDEX(Data!$E$14:$E$30,MATCH(G$33,Data!$C$14:$C$30,0))/INDEX(Data!$E$14:$E$30,MATCH(G$33-1,Data!$C$14:$C$30,0)) -> 1.037419998 | H36: =INDEX(Data!$E$14:$E$30,MATCH(H$33,Data!$C$14:$C$30,0))/INDEX(Data!$E$14:$E$30,MATCH(H$33-1,Data!$C$14:$C$30,0)) -> 1.030555677 | I36: =INDEX(Data!$E$14:$E$30,MATCH(I$33,Data!$C$14:$C$30,0))/INDEX(Data!$E$14:$E$30,MATCH(I$33-1,Data!$C$14:$C$30,0)) -> 1.02588702 | J36: =INDEX(Data!$E$14:$E$30,MATCH(J$33,Data!$C$14:$C$30,0))/INDEX(Data!$E$14:$E$30,MATCH(J$33-1,Data!$C$14:$C$30,0)) -> 1.023
B37: HMT Forecasts for UK Economy - M3 New Forecasts RPI
C38: Calendar Year | D38: 2017 | E38: =D38+1 -> 2018 | F38: 2019 | G38: 2020 | H38: 2021 | I38: 2022 | J38: 2023 | K38: Source
B39: M3 New Forecasts RPI | F39: 0.026 | G39: 0.024 | H39: 0.02 | I39: 0.025 | J39: 0.028 | K39: December 2019 Publication
B41: Forecast growth rate
C42: Reporting Year | D42: 2017 | E42: =D42+1 -> 2018 | F42: 2019 | G42: 2020 | H42: 2021 | I42: 2022 | J42: 2023
B43: Future inflation assumption | G43: =(F39*0.75)+(G39*0.25) -> 0.0255 | H43: =(G39*0.75)+(H39*0.25) -> 0.023 | I43: =(H39*0.75)+(I39*0.25) -> 0.02125 | J43: =(I39*0.75)+(J39*0.25) -> 0.02575
B45: ="Selected Capitalisation rates for "&'RFPR cover'!C5 -> Selected Capitalisation rates for Cadent-WM
C47: RIIO1
B48: =INDEX($G$54:$G$57,MATCH(LEFT('RFPR cover'!$C$6,2),Data!$E$54:$E$57,0),0) -> Totex excluding repex | C48: =INDEX($F$73:$F$100,MATCH('RFPR cover'!$C$5,Data!$B$73:$B$100,0),0) -> 0.2494622386
C50: 2014 | D50: =C50+1 -> 2015 | E50: 2016 | F50: 2017 | G50: 2018 | H50: 2019 | I50: 2020 | J50: 2021
B51: =INDEX($J$54:$J$57,MATCH(LEFT('RFPR cover'!$C$6,2),Data!$E$54:$E$57,0),0) -> Repex | C51: =IFERROR(INDEX(C$106:C$115,MATCH('RFPR cover'!$C$5,Data!$B$106:$B$115,0),0),0) -> 0.5 | D51: =IFERROR(INDEX(D$106:D$115,MATCH('RFPR cover'!$C$5,Data!$B$106:$B$115,0),0),0) -> 0.5714285714 | E51: =IFERROR(INDEX(E$106:E$115,MATCH('RFPR cover'!$C$5,Data!$B$106:$B$115,0),0),0) -> 0.6428571429 | F51: =IFERROR(INDEX(F$106:F$115,MATCH('RFPR cover'!$C$5,Data!$B$106:$B$115,0),0),0) -> 0.7142857143 | G51: =IFERROR(INDEX(G$106:G$115,MATCH('RFPR cover'!$C$5,Data!$B$106:$B$115,0),0),0) -> 0.7857142857 | H51: =IFERROR(INDEX(H$106:H$115,MATCH('RFPR cover'!$C$5,Data!$B$106:$B$115,0),0),0) -> 0.8571428571 | I51: =IFERROR(INDEX(I$106:I$115,MATCH('RFPR cover'!$C$5,Data!$B$106:$B$115,0),0),0) -> 0.9285714286 | J51: =IFERROR(INDEX(J$106:J$115,MATCH('RFPR cover'!$C$5,Data!$B$106:$B$115,0),0),0) -> 1
E54: ED | F54: £m 12/13 | G54: Totex | J54: n/a
E55: ET | F55: £m 09/10 | G55: Totex | J55: n/a
E56: GD | F56: £m 09/10 | G56: Totex excluding repex | J56: Repex
E57: GT | F57: £m 09/10 | G57: Totex (non-'uncertainty rate') | J57: Uncertainty rate
B61: Allowed cost of debt %
C62: 2014 | D62: =C62+1 -> 2015 | E62: 2016 | F62: 2017 | G62: 2018 | H62: 2019 | I62: 2020 | J62: 2021 | K62: 2022 | L62: 2023
B63: WPD | E63: 0.0255 | F63: 0.0238 | G63: 0.0222 | H63: 0.0191 | I63: 0.0158 | J63: 0.0109 | K63: 0.0077 | L63: 0.0046
B64: ED - excluding WPD | E64: 0.0255 | F64: 0.0242 | G64: 0.0229 | H64: 0.0209 | I64: 0.0194 | J64: 0.0178 | K64: 0.0163 | L64: 0.0148
B65: SHET | C65: 0.0292 | D65: 0.025 | E65: 0.0215 | F65: 0.0179 | G65: 0.0151 | H65: 0.0116 | I65: 0.0102 | J65: 0.0083
B66: ET - excluding SHET | C66: 0.0292 | D66: 0.0272 | E66: 0.0255 | F66: 0.0238 | G66: 0.0222 | H66: 0.0191 | I66: 0.0158 | J66: 0.0109
B67: GD | C67: 0.0292 | D67: 0.0272 | E67: 0.0255 | F67: 0.0238 | G67: 0.0222 | H67: 0.0191 | I67: 0.0158 | J67: 0.0109
B68: GT | C68: 0.0292 | D68: 0.0272 | E68: 0.0255 | F68: 0.0238 | G68: 0.0222 | H68: 0.0191 | I68: 0.0158 | J68: 0.0109
C71: Allowed Cost of Equity | D71: TIM Incentive Strength | E71: Gearing | F71: Main Cap. Rate | G71: RIIO1 start date | H71: Price Basis | I71: Fast Tracked | J71: IQI pre or post tax | K71: Allowed cost of debt
A72: Sector | B72: Default | K72: 2014 | L72: =K72+1 -> 2015 | M72: 2016 | N72: 2017 | O72: 2018 | P72: 2019 | Q72: 2020 | R72: 2021 | S72: 2022 | T72: 2023
A73: ED | B73: ENWL | C73: 0.06 | D73: 0.5811 | E73: 0.65 | F73: 0.68 | G73: 2016 | H73: =VLOOKUP($A73,$E$54:$F$57,2,FALSE) -> £m 12/13 | I73: No | J73: Post | M73: =E$64 -> 0.0255 | N73: 0.0242 | O73: 0.0229 | P73: 0.0209 | Q73: 0.0194 | R73: 0.0178 | S73: 0.0163 | T73: 0.0148
A74: ED | B74: NPgN | C74: 0.06 | D74: 0.5584370346 | E74: 0.65 | F74: 0.7 | G74: 2016 | H74: £m 12/13 | I74: No | J74: Post | M74: 0.0255 | N74: 0.0242 | O74: 0.0229 | P74: 0.0209 | Q74: 0.0194 | R74: 0.0178 | S74: 0.0163 | T74: 0.0148
A75: ED | B75: NPgY | C75: 0.06 | D75: 0.5584370346 | E75: 0.65 | F75: 0.72 | G75: 2016 | H75: £m 12/13 | I75: No | J75: Post | M75: 0.0255 | N75: 0.0242 | O75: 0.0229 | P75: 0.0209 | Q75: 0.0194 | R75: 0.0178 | S75: 0.0163 | T75: 0.0148
A76: ED | B76: UKPN-EPN | C76: 0.06 | D76: 0.5328 | E76: 0.65 | F76: 0.68 | G76: 2016 | H76: £m 12/13 | I76: No | J76: Post | M76: 0.0255 | N76: 0.0242 | O76: 0.0229 | P76: 0.0209 | Q76: 0.0194 | R76: 0.0178 | S76: 0.0163 | T76: 0.0148
A77: ED | B77: UKPN-LPN | C77: 0.06 | D77: 0.5328 | E77: 0.65 | F77: 0.68 | G77: 2016 | H77: £m 12/13 | I77: No | J77: Post | M77: 0.0255 | N77: 0.0242 | O77: 0.0229 | P77: 0.0209 | Q77: 0.0194 | R77: 0.0178 | S77: 0.0163 | T77: 0.0148
A78: ED | B78: UKPN-SPN | C78: 0.06 | D78: 0.5328 | E78: 0.65 | F78: 0.68 | G78: 2016 | H78: £m 12/13 | I78: No | J78: Post | M78: 0.0255 | N78: 0.0242 | O78: 0.0229 | P78: 0.0209 | Q78: 0.0194 | R78: 0.0178 | S78: 0.0163 | T78: 0.0148
A79: ED | B79: SPD | C79: 0.06 | D79: 0.535 | E79: 0.65 | F79: 0.8 | G79: 2016 | H79: £m 12/13 | I79: No | J79: Post | M79: 0.0255 | N79: 0.0242 | O79: 0.0229 | P79: 0.0209 | Q79: 0.0194 | R79: 0.0178 | S79: 0.0163 | T79: 0.0148
A80: ED | B80: SPMW | C80: 0.06 | D80: 0.535 | E80: 0.65 | F80: 0.8 | G80: 2016 | H80: £m 12/13 | I80: No | J80: Post | M80: 0.0255 | N80: 0.0242 | O80: 0.0229 | P80: 0.0209 | Q80: 0.0194 | R80: 0.0178 | S80: 0.0163 | T80: 0.0148
A81: ED | B81: SSEH | C81: 0.06 | D81: 0.5647 | E81: 0.65 | F81: 0.62 | G81: 2016 | H81: £m 12/13 | I81: No | J81: Post | M81: 0.0255 | N81: 0.0242 | O81: 0.0229 | P81: 0.0209 | Q81: 0.0194 | R81: 0.0178 | S81: 0.0163 | T81: 0.0148
A82: ED | B82: SSES | C82: 0.06 | D82: 0.5647 | E82: 0.65 | F82: 0.7 | G82: 2016 | H82: £m 12/13 | I82: No | J82: Post | M82: 0.0255 | N82: 0.0242 | O82: 0.0229 | P82: 0.0209 | Q82: 0.0194 | R82: 0.0178 | S82: 0.0163 | T82: 0.0148
A83: ED | B83: WPD-EMID | C83: 0.064 | D83: 0.7 | E83: 0.65 | F83: 0.8 | G83: 2016 | H83: £m 12/13 | I83: Yes | J83: Pre | M83: =E$63 -> 0.0255 | N83: 0.0238 | O83: 0.0222 | P83: 0.0191 | Q83: 0.0158 | R83: 0.0109 | S83: 0.0077 | T83: 0.0046
A84: ED | B84: WPD-WMID | C84: 0.064 | D84: 0.7 | E84: 0.65 | F84: 0.8 | G84: 2016 | H84: £m 12/13 | I84: Yes | J84: Pre | M84: 0.0255 | N84: 0.0238 | O84: 0.0222 | P84: 0.0191 | Q84: 0.0158 | R84: 0.0109 | S84: 0.0077 | T84: 0.0046
A85: ED | B85: WPD-SWALES | C85: 0.064 | D85: 0.7 | E85: 0.65 | F85: 0.8 | G85: 2016 | H85: £m 12/13 | I85: Yes | J85: Pre | M85: 0.0255 | N85: 0.0238 | O85: 0.0222 | P85: 0.0191 | Q85: 0.0158 | R85: 0.0109 | S85: 0.0077 | T85: 0.0046
A86: ED | B86: WPD-SWEST | C86: 0.064 | D86: 0.7 | E86: 0.65 | F86: 0.8 | G86: 2016 | H86: £m 12/13 | I86: Yes | J86: Pre | M86: 0.0255 | N86: 0.0238 | O86: 0.0222 | P86: 0.0191 | Q86: 0.0158 | R86: 0.0109 | S86: 0.0077 | T86: 0.0046
A87: GD | B87: Cadent-EOE | C87: 0.067 | D87: 0.6304 | E87: 0.65 | F87: 0.2663450186 | G87: 2014 | H87: £m 09/10 | I87: No | J87: Pre | K87: =C$67 -> 0.0292 | L87: 0.0272 | M87: 0.0255 | N87: 0.0238 | O87: 0.0222 | P87: 0.0191 | Q87: 0.0158 | R87: 0.0109
A88: GD | B88: Cadent-London | C88: 0.067 | D88: 0.6304 | E88: 0.65 | F88: 0.2346933783 | G88: 2014 | H88: £m 09/10 | I88: No | J88: Pre | K88: 0.0292 | L88: 0.0272 | M88: 0.0255 | N88: 0.0238 | O88: 0.0222 | P88: 0.0191 | Q88: 0.0158 | R88: 0.0109
A89: GD | B89: Cadent-WM | C89: 0.067 | D89: 0.6304 | E89: 0.65 | F89: 0.2494622386 | G89: 2014 | H89: £m 09/10 | I89: No | J89: Pre | K89: 0.0292 | L89: 0.0272 | M89: 0.0255 | N89: 0.0238 | O89: 0.0222 | P89: 0.0191 | Q89: 0.0158 | R89: 0.0109
A90: GD | B90: Cadent-NW | C90: 0.067 | D90: 0.6304 | E90: 0.65 | F90: 0.2609535249 | G90: 2014 | H90: £m 09/10 | I90: No | J90: Pre | K90: 0.0292 | L90: 0.0272 | M90: 0.0255 | N90: 0.0238 | O90: 0.0222 | P90: 0.0191 | Q90: 0.0158 | R90: 0.0109
A91: GD | B91: NGN | C91: 0.067 | D91: 0.6398 | E91: 0.65 | F91: 0.3498441138 | G91: 2014 | H91: £m 09/10 | I91: No | J91: Pre | K91: 0.0292 | L91: 0.0272 | M91: 0.0255 | N91: 0.0238 | O91: 0.0222 | P91: 0.0191 | Q91: 0.0158 | R91: 0.0109
A92: GD | B92: SGN - Scotland | C92: 0.067 | D92: 0.6373 | E92: 0.65 | F92: 0.3512904966 | G92: 2014 | H92: £m 09/10 | I92: No | J92: Pre | K92: 0.0292 | L92: 0.0272 | M92: 0.0255 | N92: 0.0238 | O92: 0.0222 | P92: 0.0191 | Q92: 0.0158 | R92: 0.0109
A93: GD | B93: SGN - Southern | C93: 0.067 | D93: 0.6373 | E93: 0.65 | F93: 0.322308559 | G93: 2014 | H93: £m 09/10 | I93: No | J93: Pre | K93: 0.0292 | L93: 0.0272 | M93: 0.0255 | N93: 0.0238 | O93: 0.0222 | P93: 0.0191 | Q93: 0.0158 | R93: 0.0109
A94: GD | B94: WWU | C94: 0.067 | D94: 0.6317 | E94: 0.65 | F94: 0.3578190447 | G94: 2014 | H94: £m 09/10 | I94: No | J94: Pre | K94: 0.0292 | L94: 0.0272 | M94: 0.0255 | N94: 0.0238 | O94: 0.0222 | P94: 0.0191 | Q94: 0.0158 | R94: 0.0109
A95: GT | B95: NGGT (TO) | C95: 0.068 | D95: 0.4436 | E95: 0.625 | F95: 0.644 | G95: 2014 | H95: £m 09/10 | I95: No | J95: Pre | K95: =C$68 -> 0.0292 | L95: 0.0272 | M95: 0.0255 | N95: 0.0238 | O95: 0.0222 | P95: 0.0191 | Q95: 0.0158 | R95: 0.0109
A96: GT | B96: NGGT (SO) | C96: 0.068 | D96: 0.4436 | E96: 0.625 | F96: 0.374 | G96: 2014 | H96: £m 09/10 | I96: No | J96: Pre | K96: 0.0292 | L96: 0.0272 | M96: 0.0255 | N96: 0.0238 | O96: 0.0222 | P96: 0.0191 | Q96: 0.0158 | R96: 0.0109
A97: ET | B97: NGET (TO) | C97: 0.07 | D97: 0.4689 | E97: 0.6 | F97: 0.85 | G97: 2014 | H97: £m 09/10 | I97: No | J97: Pre | K97: =C$66 -> 0.0292 | L97: 0.0272 | M97: 0.0255 | N97: 0.0238 | O97: 0.0222 | P97: 0.0191 | Q97: 0.0158 | R97: 0.0109
A98: ET | B98: NGET (SO) | C98: 0.07 | D98: 0.4689 | E98: 0.6 | F98: 0.279 | G98: 2014 | H98: £m 09/10 | I98: No | J98: Pre | K98: 0.0292 | L98: 0.0272 | M98: 0.0255 | N98: 0.0238 | O98: 0.0222 | P98: 0.0191 | Q98: 0.0158 | R98: 0.0109
A99: ET | B99: SPT | C99: 0.07 | D99: 0.5 | E99: 0.55 | F99: 0.9 | G99: 2014 | H99: £m 09/10 | I99: Yes | J99: Pre | K99: 0.0292 | L99: 0.0272 | M99: 0.0255 | N99: 0.0238 | O99: 0.0222 | P99: 0.0191 | Q99: 0.0158 | R99: 0.0109
A100: ET | B100: SHET | C100: 0.07 | D100: 0.5 | E100: 0.55 | F100: 0.9 | G100: 2014 | H100: £m 09/10 | I100: Yes | J100: Pre | K100: =C$65 -> 0.0292 | L100: 0.025 | M100: 0.0215 | N100: 0.0179 | O100: 0.0151 | P100: 0.0116 | Q100: 0.0102 | R100: 0.0083
B104: GD: Capitalised share of repex / GT: Uncertainty Rate
C105: 2014 | D105: =C105+1 -> 2015 | E105: 2016 | F105: 2017 | G105: 2018 | H105: 2019 | I105: 2020 | J105: 2021
B106: Cadent-EOE | C106: 0.5 | D106: 0.5714285714 | E106: 0.6428571429 | F106: 0.7142857143 | G106: 0.7857142857 | H106: 0.8571428571 | I106: 0.9285714286 | J106: 1
B107: Cadent-London | C107: 0.5 | D107: 0.5714285714 | E107: 0.6428571429 | F107: 0.7142857143 | G107: 0.7857142857 | H107: 0.8571428571 | I107: 0.9285714286 | J107: 1
B108: Cadent-WM | C108: 0.5 | D108: 0.5714285714 | E108: 0.6428571429 | F108: 0.7142857143 | G108: 0.7857142857 | H108: 0.8571428571 | I108: 0.9285714286 | J108: 1
B109: Cadent-NW | C109: 0.5 | D109: 0.5714285714 | E109: 0.6428571429 | F109: 0.7142857143 | G109: 0.7857142857 | H109: 0.8571428571 | I109: 0.9285714286 | J109: 1
B110: NGN | C110: 0.5 | D110: 0.5714285714 | E110: 0.6428571429 | F110: 0.7142857143 | G110: 0.7857142857 | H110: 0.8571428571 | I110: 0.9285714286 | J110: 1
B111: SGN - Scotland | C111: 0.5 | D111: 0.5714285714 | E111: 0.6428571429 | F111: 0.7142857143 | G111: 0.7857142857 | H111: 0.8571428571 | I111: 0.9285714286 | J111: 1
B112: SGN - Southern | C112: 0.5 | D112: 0.5714285714 | E112: 0.6428571429 | F112: 0.7142857143 | G112: 0.7857142857 | H112: 0.8571428571 | I112: 0.9285714286 | J112: 1
B113: WWU | C113: 0.5 | D113: 0.5714285714 | E113: 0.6428571429 | F113: 0.7142857143 | G113: 0.7857142857 | H113: 0.8571428571 | I113: 0.9285714286 | J113: 1
B114: NGGT (TO) | C114: 0.9 | D114: 0.9 | E114: 0.9 | F114: 0.9 | G114: 0.9 | H114: 0.9 | I114: 0.9 | J114: 0.9
B115: NGGT (SO)
B118: IQI Additional Income | C118: 2014 | D118: =C118+1 -> 2015 | E118: 2016 | F118: 2017 | G118: 2018 | H118: 2019 | I118: 2020 | J118: 2021 | K118: 2022 | L118: 2023
B119: ENWL | E119: 1.557563216 | F119: 1.473414124 | G119: 1.46895889 | H119: 1.470720053 | I119: 1.467471626 | J119: 1.448620622 | K119: 1.495679833 | L119: 1.439714872
B120: NPgN | E120: -0.658717818 | F120: -0.6354377258 | G120: -0.5890786287 | H120: -0.5817818819 | I120: -0.5682391887 | J120: -0.5193317033 | K120: -0.4796266585 | L120: -0.4656874701
B121: NPgY | E121: -0.8662603628 | F121: -0.8101977378 | G121: -0.7891908424 | H121: -0.7906187307 | I121: -0.7443265341 | J121: -0.7069727482 | K121: -0.6535094616 | L121: -0.6642975889
B122: UKPN-EPN | E122: -3.261213418 | F122: -3.346255445 | G122: -3.173291977 | H122: -3.123240475 | I122: -3.076755131 | J122: -2.934217718 | K122: -2.882593848 | L122: -2.7237011
B123: UKPN-LPN | E123: -2.426097237 | F123: -2.369038366 | G123: -2.24332766 | H123: -2.146602062 | I123: -2.174009679 | J123: -2.053892784 | K123: -1.904458123 | L123: -1.800861113
B124: UKPN-SPN | E124: -2.186101241 | F124: -2.382044743 | G124: -2.241867237 | H124: -2.114781265 | I124: -2.014617709 | J124: -1.942131326 | K124: -1.924885643 | L124: -1.84644513
B125: SPD | E125: -1.863353254 | F125: -1.818298041 | G125: -1.839467563 | H125: -1.741597343 | I125: -1.679800211 | J125: -1.597445636 | K125: -1.501639612 | L125: -1.445363888
B126: SPMW | E126: -2.131714527 | F126: -2.193973633 | G126: -1.986901022 | H126: -1.803755278 | I126: -1.77679425 | J126: -1.790147258 | K126: -1.644411369 | L126: -1.467384504
B127: SSEH | E127: 0.1659972181 | F127: 0.1663190061 | G127: 0.165543379 | H127: 0.1656974114 | I127: 0.1662263076 | J127: 0.1638030241 | K127: 0.1659334462 | L127: 0.1603668882
B128: SSES | E128: 0.3648271976 | F128: 0.3710908384 | G128: 0.3607185911 | H128: 0.3592781484 | I128: 0.3227419488 | J128: 0.3213907553 | K128: 0.3287617841 | L128: 0.3192043079
B129: WPD-EMID | E129: 7.128119675 | F129: 6.96741384 | G129: 6.203402589 | H129: 6.308597892 | I129: 6.23766484 | J129: 6.486581994 | K129: 6.815251662 | L129: 6.62710562
B130: WPD-WMID | E130: 6.507901473 | F130: 6.516616741 | G130: 6.32924565 | H130: 6.440739741 | I130: 6.636733199 | J130: 6.756816376 | K130: 6.696123445 | L130: 6.764742755
B131: WPD-SWALES | E131: 3.676313847 | F131: 3.674835087 | G131: 3.499852964 | H131: 3.724685547 | I131: 3.412173949 | J131: 3.420224103 | K131: 3.305354944 | L131: 3.363328564
B132: WPD-SWEST | E132: 5.376270196 | F132: 5.377596976 | G132: 5.26181028 | H132: 5.360849181 | I132: 5.266523823 | J132: 5.327117903 | K132: 5.322329401 | L132: 5.569988075
B133: Cadent-EOE | C133: 1.437155607 | D133: 1.371801563 | E133: 1.350766011 | F133: 1.356812199 | G133: 1.359813639 | H133: 1.350147507 | I133: 1.329843331 | J133: 1.317454096
B134: Cadent-London | C134: 1.222451077 | D134: 1.219815743 | E134: 1.294216483 | F134: 1.259639627 | G134: 1.284011218 | H134: 1.267851186 | I134: 1.259201906 | J134: 1.257376659
B135: Cadent-WM | C135: 0.8232500229 | D135: 0.8266357128 | E135: 0.796405046 | F135: 0.7875702145 | G135: 0.8113325286 | H135: 0.8106422878 | I135: 0.8090036895 | J135: 0.7804327697
B136: Cadent-NW | C136: 1.089395985 | D136: 1.027913195 | E136: 1.006698714 | F136: 1.01923509 | G136: 1.034148078 | H136: 1.020424079 | I136: 1.013773955 | J136: 0.9898055017
B137: NGN | C137: 3.067525014 | D137: 3.162921942 | E137: 3.215660422 | F137: 3.177353462 | G137: 2.992526777 | H137: 2.995397899 | I137: 3.008780646 | J137: 3.003553035
B138: SGN - Scotland | C138: 2.124089736 | D138: 2.035072334 | E138: 1.968699807 | F138: 2.085845677 | G138: 2.11503932 | H138: 2.096040782 | I138: 1.970964889 | J138: 1.955823727
B139: SGN - Southern | C139: 4.372401175 | D139: 4.105764166 | E139: 4.054566993 | F139: 4.174092746 | G139: 4.239710198 | H139: 4.246147721 | I139: 4.107852308 | J139: 4.057594497
B140: WWU | C140: 1.398277667 | D140: 1.386464987 | E140: 1.367304053 | F140: 1.349345378 | G140: 1.334777786 | H140: 1.335488711 | I140: 1.359779966 | J140: 1.351524007
B141: NGGT (TO) | C141: -1.129571821 | D141: -1.144400731 | E141: -1.176381736 | F141: -1.592755746 | G141: -1.85656676 | H141: -1.272041674 | I141: -1.103973995 | J141: -1.018311327
B142: NGGT (SO) | C142: -0.4318115499 | D142: -0.39947196 | E142: -0.3473431704 | F142: -0.3193206525 | G142: -0.3126562688 | H142: -0.3079937995 | I142: -0.3257092292 | J142: -0.3155202622
B143: NGET (TO) | C143: 15.16824629 | D143: 16.27511001 | E143: 15.6147029 | F143: 14.91167436 | G143: 13.03341576 | H143: 12.55606777 | I143: 11.28510091 | J143: 9.826817942
B144: NGET (SO) | C144: 0.9321939458 | D144: 0.899697931 | E144: 0.8778326769 | F144: 0.8723210932 | G144: 0.8987595857 | H144: 0.8280171022 | I144: 0.8841765856 | J144: 0.8998241565
B145: SPT | C145: 10.95275109 | D145: 1.34126836 | E145: 22.19017941 | F145: 7.048848325 | G145: 6.902069569 | H145: 6.942523809 | I145: 7.078506978 | J145: 5.26885245
B146: SHET | C146: 4.785055606 | D146: 4.973659719 | E146: 5.69886625 | F146: 3.792107731 | G146: 2.85125638 | H146: 2.879976525 | I146: 2.907470351 | J146: 2.819107438
B149: =LEFT('RFPR cover'!C6,2) -> GD
B150: Output incentives for each sector used to populate R5
B152: Input for R5 - Output Incentives | E152: =OR((LEFT('RFPR cover'!$C$6,2)=Data!F152),'RFPR cover'!$C$5=Data!F152) -> FALSE | F152: =B162 -> ED
B153: =CHOOSE(MATCH(TRUE,$E$152:$E$159,0),B163,B173,B183,E183,B193,E193,B203,E203)&"" -> Broad Measure of Customer Satisfaction | E153: =OR((LEFT('RFPR cover'!$C$6,2)=Data!F153),'RFPR cover'!$C$5=Data!F153) -> TRUE | F153: =B172 -> GD
B154: Shrinkage Allowance Revenue Adjustment | E154: =OR((LEFT('RFPR cover'!$C$6,2)=Data!F154),'RFPR cover'!$C$5=Data!F154) -> FALSE | F154: =B182 -> NGGT (TO)
B155: Environment Emissions Incentive | E155: =OR((LEFT('RFPR cover'!$C$6,2)=Data!F155),'RFPR cover'!$C$5=Data!F155) -> FALSE | F155: =E182 -> NGGT (SO)
B156: Discretionary Reward Scheme | E156: =OR((LEFT('RFPR cover'!$C$6,2)=Data!F156),'RFPR cover'!$C$5=Data!F156) -> FALSE | F156: =B192 -> NGET (TO)
B157: NTS Exit Capacity | E157: =OR((LEFT('RFPR cover'!$C$6,2)=Data!F157),'RFPR cover'!$C$5=Data!F157) -> FALSE | F157: =E192 -> NGET (SO)
E158: =OR((LEFT('RFPR cover'!$C$6,2)=Data!F158),'RFPR cover'!$C$5=Data!F158) -> FALSE | F158: =B202 -> SPT
E159: =OR((LEFT('RFPR cover'!$C$6,2)=Data!F159),'RFPR cover'!$C$5=Data!F159) -> FALSE | F159: =E202 -> SHET
B162: ED
B163: Broad measure of customer service
B164: Interruptions-related quality of service
B165: Incentive on connections engagement
B166: Time to Connect Incentive
B167: Losses discretionary reward scheme
B172: GD
B173: Broad Measure of Customer Satisfaction
B174: Shrinkage Allowance Revenue Adjustment
B175: Environment Emissions Incentive
B176: Discretionary Reward Scheme
B177: NTS Exit Capacity
B182: =B95 -> NGGT (TO) | E182: =B96 -> NGGT (SO)
B183: Stakeholder Satisfaction Output | E183: Constraint management
B184: Permits revenue adjustment | E184: Transportation Support Services
E185: Shrinkage incentive
E186: Residual balancing
E187: Quality of demand forecasting
E188: Greenhouse gas incentive
E189: Maintenance incentive
B192: =B97 -> NGET (TO) | E192: =B98 -> NGET (SO)
B193: Network Reliability Incentive | E193: Electricity Market Reform incentive revenue
B194: Stakeholder Satisfaction Output | E194: Balancing Services Incentive Scheme / ESO Incentive Scheme 18/19
B195: SF6 Emissions | E195: Renewable wind forecasting incentive
B196: Environmental Discretionary Reward
B202: =B145 -> SPT | E202: =B100 -> SHET
B203: Network Reliability Incentive | E203: Network Reliability Incentive
B204: Stakeholder Satisfaction Output | E204: Stakeholder Satisfaction Output
B205: SF6 Emissions | E205: SF6 Emissions
B206: Environmental Discretionary Reward | E206: Environmental Discretionary Reward
B207: Performance re offers of timely connection | E207: Performance re offers of timely connection
B212: All incentive performance recognised in t+2 allowed revenue - except TTC (t+3) and LDR (t+1) in ED
B214: Time to Connect Incentive revenue adjustment | C214: t+3
B215: Losses discretionary reward scheme revenue adjustment | C215: t+1
B218: Bond or loan types
B219: Fixed rate
B220: Floating
B221: Inflation-linked
B224: Reference rate
B225: Not applicable
B226: LIBOR 3 month
B227: LIBOR 6 month
B228: EURIBOR 3 month
B229: BOE base rate
B230: RPI 12 month
B231: CPI 12 month
B235: Currency
B236: GBP
B237: EUR
B238: USD
B239: HKD
B240: CAD
B243: Rank
B244: Senior
B245: Junior
B248: Hedged
B249: Yes - fully hedged
B250: Yes - partially hedged
B251: No
B253: Special features
B254: Callable
B255: Puttable
B259: Counterparty
B260: EIB
... 4 more rows

Sheet Content & Version Control
A1: Version control
A2: ='RFPR cover'!C5 -> Cadent-WM
A3: ='RFPR cover'!C7 -> 2020
B6: Version:
B8: Submission | C8: Date submitted | D8: Changes
B9: Submission 1
B10: Submission 2
B11: Submission 3
B12: Submission 4
B13: Submission 5
B14: Submission 6
B15: Submission 7
B16: Submission 8
B17: Submission 9
B18: Submission 10
B21: R1 - RoRE
B22: R2 - Revenue
B23: R3 - Rec to totex
B24: R4 - Totex
B25: R5 - Output Incentives
B26: R6 - Innovation
B27: R7 - Financing
B28: R7a - Financing input
B29: R8 - Net Debt
B30: R8a - Net Debt input
B31: R9 - RAV
B32: R10 - Tax
B33: R11 - Dividends
B34: R12 - Pensions
B35: R13 - Other Activities

Sheet Change log
A1: Change log
A2: ='RFPR cover'!C5 -> Cadent-WM
A3: ='RFPR cover'!C7 -> 2020
A5: Version | B5: Table Reference | C5: Changes made to RFPR template
A6: 1.1 | B6: R8 | C6: Row 26 added to pick up unamortised issues costs row in table R8a.
A7: 1.1 | B7: R8 | C7: Row 42 updated to include new row 26 (unamortised issue costs) in the subtotal
A8: 1.1 | B8: R1 | C8: Amended formating to percentages (Column M:N, rows 10-23 and rows 29-42)
A9: 1.1 | B9: R7 | C9: B29 to add "Net Interest" into the title to make it clear that this should include regulatory definition of net interest associated with new/refinanced debt raised in future years
A10: 1.1 | B10: R7 | C10: Row 47 added to allow input of issuance expenses forecast for new/refinanced debt in future years
A11: 1.1 | B11: R8a | C11: Additional row added for restricted cash balances in table R8a in row 18, guidance updated.
A12: 1.1 | B12: R7 | C12: D37 - formula amended to read =('R8 - Net Debt'!D54-AVERAGE('R8 - Net Debt'!D8,('R8 - Net Debt'!E10-'R8a - Net Debt input'!T18)))*(Data!C36-1)
A13: 1.1 | B13: R7 | C13: E37 - formula amended to read =('R8 - Net Debt'!E54-AVERAGE(('R8 - Net Debt'!E8-'R8a - Net Debt input'!T18),('R8 - Net Debt'!E10-'R8a - Net Debt input'!U18)))*(Data!D36-1) Formula copied across to F37:K37
A14: 1.1 | B14: R10 | C14: Amended formula in D50 to read =D85-D87, and dragged formula across to E5:K5
A15: 1.1 | B15: R1 | C15: Amended formula in B3 to correct spelling of system, originally spelt 'syestem'
A16: 1.1 | B16: R9 | C16: Formula in row 32 changed from =IF(D5="Actuals",IF(D31>=0,(D29-SUM($D$31:D31))-D11<'RFPR cover'!$F$14,(D29-SUM($D$31:D31))-D11<'RFPR cover'!$F$14), "NA") to =IF(D5="Actuals",IF(ABS((D29-SUM($D$31:D31))-D11)<'RFPR cover'!$F$14,"TRUE","FALSE"),"NA")
A17: 1.1 | B17: R8a | C17: Removed content in F12 ("Income statement debits and cash out flows (entered as +ve values, credits as -ve values")
A18: 1.1 | B18: R8a | C18: Changed "Restricted cash balances (entered as +ve values, credits as -ve values)" in F18 to "Restricted cash balances (-ive)"
A19: 1.1 | B19: Data | C19: J63:J68 updated to be consistent with Nov 2019 PCFM
A20: 1.1 | B20: Data | C20: Populated the incentives for NGGT SO and NGET SO in the Data tab, based on the incentives in the 2019 RFPR template for both entities.
A21: 1.1 | B21: R7a | C21: Removed data validation between rows 498:509
A22: 1.1 | B22: R10 | C22: Added in "Tax arising from MOD values" in "Other adjustments" in R10
A23: 1.1 | B23: R10 | C23: Changed the formulas in row 6 from =IF(H6<=('RFPR cover'!$C$7),"Actuals","Forecast") to =IF(H6<=('RFPR cover'!$C$7-1),"Actuals","Forecast")
A24: 1.1 | B24: R9 | C24: Changed the formulas in row 5 from =IF(D6<='RFPR cover'!$C$7,"Actuals","Forecast") to =IF(D6<='RFPR cover'!$C$7-1,"Actuals","Forecast").
A25: 1.1 | B25: Data | C25: Changed the tax rate from G25:G30 to be in line with the 2020 Budget, where Government announced the corporate tax rate would be 19% for the years beginning April 2020 and 2021.

Sheet R1 - RoRE
A1: R1 - Return on Regulatory Equity (RoRE)
A2: ='RFPR cover'!C5 -> Cadent-WM
A3: ='RFPR cover'!C7 -> 2020 | B3: =IF('RFPR cover'!C5=Data!B98,"Not required to be completed for System Operator",(IF('RFPR cover'!C5=Data!B96,"Not required to be completed for System Operator",""))) -> 
D5: =IF(D6<='RFPR cover'!$C$7,"Actuals","Forecast") -> Actuals | E5: =IF(E6<='RFPR cover'!$C$7,"Actuals","Forecast") -> Actuals | F5: =IF(F6<='RFPR cover'!$C$7,"Actuals","Forecast") -> Actuals | G5: =IF(G6<='RFPR cover'!$C$7,"Actuals","Forecast") -> Actuals | H5: =IF(H6<='RFPR cover'!$C$7,"Actuals","Forecast") -> Actuals | I5: =IF(I6<='RFPR cover'!$C$7,"Actuals","Forecast") -> Actuals | J5: =IF(J6<='RFPR cover'!$C$7,"Actuals","Forecast") -> Actuals | K5: =IF(K6<='RFPR cover'!$C$7,"Actuals","Forecast") -> Forecast
D6: ='RFPR cover'!$C$13 -> 2014 | E6: =D6+1 -> 2015 | F6: 2016 | G6: 2017 | H6: 2018 | I6: 2019 | J6: 2020 | K6: 2021 | M6: ="Cumulative to "&'RFPR cover'!$C$7 -> Cumulative to 2020 | N6: RIIO-1 period
B8: RoRE based on Notional Gearing
B10: Allowed Equity Return | C10: % | D10: =D48/D$65 -> 0.067 | E10: 0.067 | F10: 0.067 | G10: 0.067 | H10: 0.067 | I10: 0.067 | J10: 0.067 | K10: 0.067 | M10: =AVERAGE(D48:INDEX(D48:K48,0,MATCH('RFPR cover'!$C$7,$D$6:$K$6,0)))/AVERAGE($D$65:INDEX($D$65:$K$65,0,MATCH('RFPR cover'!$C$7,$D$6:$K$6,0))) -> 0.067 | N10: =AVERAGE(D48:K48)/AVERAGE($D$65:$K$65) -> 0.067
B11: =B49 -> Totex outperformance | C11: % | D11: 0.01690577668 | E11: -0.004836575937 | F11: 0.02518742318 | G11: 0.02779547478 | H11: 0.02573163873 | I11: 0.02374035881 | J11: 0.01724472938 | K11: 0.05616180875 | M11: =AVERAGE(D49:INDEX(D49:K49,0,MATCH('RFPR cover'!$C$7,$D$6:$K$6,0)))/AVERAGE($D$65:INDEX($D$65:$K$65,0,MATCH('RFPR cover'!$C$7,$D$6:$K$6,0))) -> 0.01882961816 | N11: 0.02359428409
B12: IQI Reward | C12: % | D12: 0.001409375906 | E12: 0.001474065424 | F12: 0.001444976135 | G12: 0.001418764943 | H12: 0.001473028523 | I12: 0.001468539626 | J12: 0.001462762568 | K12: 0.001385317939 | M12: =AVERAGE(D50:INDEX(D50:K50,0,MATCH('RFPR cover'!$C$7,$D$6:$K$6,0)))/AVERAGE($D$65:INDEX($D$65:$K$65,0,MATCH('RFPR cover'!$C$7,$D$6:$K$6,0))) -> 0.001450187381 | N12: 0.001441908166
B13: Broad Measure of Customer Satisfaction | C13: % | D13: 0.001642692435 | E13: 0.001390156298 | F13: 0.001583751606 | G13: 0.001414647143 | H13: 0.001054374221 | I13: 0.002150257867 | J13: 0.001782152745 | K13: 0.00313974978 | M13: =AVERAGE(D51:INDEX(D51:K51,0,MATCH('RFPR cover'!$C$7,$D$6:$K$6,0)))/AVERAGE($D$65:INDEX($D$65:$K$65,0,MATCH('RFPR cover'!$C$7,$D$6:$K$6,0))) -> 0.001574661702 | N13: 0.001774412151
B14: Shrinkage Allowance Revenue Adjustment | C14: % | D14: 0.0004957750224 | E14: 0.0003974143355 | F14: 0.0004477655234 | G14: 0.0003550678896 | H14: 0.0003730198613 | I14: 0.0005684655663 | J14: 0.0005658815135 | K14: 0.0002800096556 | M14: =AVERAGE(D52:INDEX(D52:K52,0,MATCH('RFPR cover'!$C$7,$D$6:$K$6,0)))/AVERAGE($D$65:INDEX($D$65:$K$65,0,MATCH('RFPR cover'!$C$7,$D$6:$K$6,0))) -> 0.000457914662 | N14: 0.000435208844
B15: Environment Emissions Incentive | C15: % | D15: 0.001564813778 | E15: 0.0018705738 | F15: 0.002743890544 | G15: 0.002158105422 | H15: 0.002210534993 | I15: 0.002655386447 | J15: 0.005263504817 | K15: 0.004253502719 | M15: =AVERAGE(D53:INDEX(D53:K53,0,MATCH('RFPR cover'!$C$7,$D$6:$K$6,0)))/AVERAGE($D$65:INDEX($D$65:$K$65,0,MATCH('RFPR cover'!$C$7,$D$6:$K$6,0))) -> 0.002639327794 | N15: 0.002845343143
B16: Discretionary Reward Scheme | C16: % | D16: 7.14474735e-05 | E16: 7.253673679e-05 | F16: 4.684496638e-05 | G16: 4.651118732e-05 | H16: 4.62970689e-05 | I16: 0 | J16: 0 | K16: 0 | M16: =AVERAGE(D54:INDEX(D54:K54,0,MATCH('RFPR cover'!$C$7,$D$6:$K$6,0)))/AVERAGE($D$65:INDEX($D$65:$K$65,0,MATCH('RFPR cover'!$C$7,$D$6:$K$6,0))) -> 4.047241201e-05 | N16: 3.530696312e-05
B17: NTS Exit Capacity | C17: % | D17: 0.0005818331525 | E17: 0.002487484449 | F17: 0.003767562784 | G17: 0.002905635852 | H17: 0.00286162883 | I17: 0.002883078099 | J17: 0.002362721543 | K17: 0.001756030459 | M17: =AVERAGE(D55:INDEX(D55:K55,0,MATCH('RFPR cover'!$C$7,$D$6:$K$6,0)))/AVERAGE($D$65:INDEX($D$65:$K$65,0,MATCH('RFPR cover'!$C$7,$D$6:$K$6,0))) -> 0.002545485007 | N17: 0.002444727802
B18: Network Innovation | C18: % | D18: -0.0001085825271 | E18: -0.0002599391642 | F18: -0.0003945889253 | G18: -0.0004590860351 | H18: -0.0003681491032 | I18: -0.0002420537459 | J18: -0.0003909205086 | K18: -0.0002915927057 | M18: =AVERAGE(D56:INDEX(D56:K56,0,MATCH('RFPR cover'!$C$7,$D$6:$K$6,0)))/AVERAGE($D$65:INDEX($D$65:$K$65,0,MATCH('RFPR cover'!$C$7,$D$6:$K$6,0))) -> -0.0003172288608 | N18: -0.0003139569469
B19: Penalties and fines | C19: % | D19: -0.001040114452 | E19: -0.001090413222 | F19: -0.0003797000685 | G19: -0.0004085348789 | H19: -0.0005828496008 | I19: -0.0009709598685 | J19: -0.0006397498804 | K19: -0.00067213314 | M19: =AVERAGE(D57:INDEX(D57:K57,0,MATCH('RFPR cover'!$C$7,$D$6:$K$6,0)))/AVERAGE($D$65:INDEX($D$65:$K$65,0,MATCH('RFPR cover'!$C$7,$D$6:$K$6,0))) -> -0.0007311532135 | N19: -0.0007236205472
B20: RoRE - Operational performance | C20: % | D20: =SUM(D10:D19) -> 0.08852301747 | E20: 0.06850530272 | F20: 0.1014479257 | G20: 0.1022265863 | H20: 0.09979952352 | I20: 0.0992530728 | J20: 0.09465108218 | K20: 0.1330126935 | M20: =SUM(M10:M19) -> 0.09348928504 | N20: =SUM(N10:N19) -> 0.09853361366
B21: Debt performance - at notional gearing | C21: % | D21: =(D59)/D$65 -> 0.02575240053 | E21: -0.01966694273 | F21: 0.00715020904 | G21: 0.01281030575 | H21: 0.03713026263 | I21: 0.01982574732 | J21: 0.00181314855 | K21: =(K59)/K$65 -> -0.008622529635 | M21: =AVERAGE(D59:INDEX(D59:K59,0,MATCH('RFPR cover'!$C$7,$D$6:$K$6,0)))/AVERAGE($D$65:INDEX($D$65:$K$65,0,MATCH('RFPR cover'!$C$7,$D$6:$K$6,0))) -> 0.01216832865 | N21: =AVERAGE(D59:K59)/AVERAGE($D$65:$K$65) -> 0.009514814552
B22: =B61 -> Tax performance - at notional gearing | C22: % | D22: =(D61)/D$65 -> -0.002152193993 | E22: -0.006088178679 | F22: -0.0007140918239 | G22: 0.002189850936 | H22: -0.003139587726 | I22: -0.002424863901 | J22: -0.0009934932229 | K22: 0.0008568536207 | M22: =AVERAGE(D61:INDEX(D61:K61,0,MATCH('RFPR cover'!$C$7,$D$6:$K$6,0)))/AVERAGE($D$65:INDEX($D$65:$K$65,0,MATCH('RFPR cover'!$C$7,$D$6:$K$6,0))) -> -0.00190363775 | N22: =AVERAGE(D61:K61)/AVERAGE($D$65:$K$65) -> -0.001551319309
B23: =B63 -> RoRE - including financing and tax | C23: % | D23: =SUM(D20:D22) -> 0.112123224 | E23: 0.04275018131 | F23: 0.107884043 | G23: 0.117226743 | H23: 0.1337901984 | I23: 0.1166539562 | J23: 0.0954707375 | K23: 0.1252470174 | M23: =SUM(M20:M22) -> 0.1037539759 | N23: =SUM(N20:N22) -> 0.1064971089
B27: RoRE based on Actual Gearing
B29: Allowed Equity Return | C29: % | D29: =D48/D$66 -> 0.05038482353 | E29: 0.05522731822 | F29: 0.0535266616 | G29: 0.05707649511 | H29: 0.06283645916 | I29: 0.06369177209 | J29: 0.06484221332 | K29: 0.06525619226 | M29: =AVERAGE(D48:INDEX(D48:K48,0,MATCH('RFPR cover'!$C$7,$D$6:$K$6,0)))/AVERAGE($D$66:INDEX($D$66:$K$66,0,MATCH('RFPR cover'!$C$7,$D$6:$K$6,0))) -> 0.05776502437 | N29: =AVERAGE(D48:K48)/AVERAGE($D$66:$K$66) -> 0.05862394257
B30: =B49 -> Totex outperformance | C30: % | D30: 0.01271335186 | E30: -0.00398673311 | F30: 0.02012236832 | G30: 0.02367863105 | H30: 0.02413261293 | I30: 0.02256814213 | J30: 0.01668934957 | K30: 0.05470008641 | M30: =AVERAGE(D49:INDEX(D49:K49,0,MATCH('RFPR cover'!$C$7,$D$6:$K$6,0)))/AVERAGE($D$66:INDEX($D$66:$K$66,0,MATCH('RFPR cover'!$C$7,$D$6:$K$6,0))) -> 0.01623422913 | N30: 0.0206446262
B31: IQI Reward | C31: % | D31: 0.001059868005 | E31: 0.001215054929 | F31: 0.001154399232 | G31: 0.001208628811 | H31: 0.001381490994 | I31: 0.001396028226 | J31: 0.001415653171 | K31: 0.001349262295 | M31: =AVERAGE(D50:INDEX(D50:K50,0,MATCH('RFPR cover'!$C$7,$D$6:$K$6,0)))/AVERAGE($D$66:INDEX($D$66:$K$66,0,MATCH('RFPR cover'!$C$7,$D$6:$K$6,0))) -> 0.00125030014 | N31: 0.001261646888
B32: Broad Measure of Customer Satisfaction | C32: % | D32: 0.001235324903 | E32: 0.001145889615 | F32: 0.001265267706 | G32: 0.001205120907 | H32: 0.0009888528756 | I32: 0.002044085582 | J32: 0.001724757141 | K32: 0.003058031571 | M32: =AVERAGE(D51:INDEX(D51:K51,0,MATCH('RFPR cover'!$C$7,$D$6:$K$6,0)))/AVERAGE($D$66:INDEX($D$66:$K$66,0,MATCH('RFPR cover'!$C$7,$D$6:$K$6,0))) -> 0.001357617487 | N32: 0.001552582628
B33: Shrinkage Allowance Revenue Adjustment | C33: % | D33: 0.0003728289107 | E33: 0.0003275839996 | F33: 0.0003577222933 | G33: 0.0003024780697 | H33: 0.0003498395117 | I33: 0.0005403967058 | J33: 0.0005476568628 | K33: 0.0002727218496 | M33: =AVERAGE(D52:INDEX(D52:K52,0,MATCH('RFPR cover'!$C$7,$D$6:$K$6,0)))/AVERAGE($D$66:INDEX($D$66:$K$66,0,MATCH('RFPR cover'!$C$7,$D$6:$K$6,0))) -> 0.0003947977852 | N33: 0.0003808008698
B34: Environment Emissions Incentive | C34: % | D34: 0.001176759195 | E34: 0.001541892157 | F34: 0.002192108964 | G34: 0.001838464083 | H34: 0.002073167042 | I34: 0.002524272662 | J34: 0.005093989584 | K34: 0.004142796884 | M34: =AVERAGE(D53:INDEX(D53:K53,0,MATCH('RFPR cover'!$C$7,$D$6:$K$6,0)))/AVERAGE($D$66:INDEX($D$66:$K$66,0,MATCH('RFPR cover'!$C$7,$D$6:$K$6,0))) -> 0.002275534841 | N34: 0.002489630343
B35: Discretionary Reward Scheme | C35: % | D35: 5.372937827e-05 | E35: 5.979118575e-05 | F35: 3.742469646e-05 | G35: 3.962232173e-05 | H35: 4.34200579e-05 | I35: 0 | J35: 0 | K35: 0 | M35: =AVERAGE(D54:INDEX(D54:K54,0,MATCH('RFPR cover'!$C$7,$D$6:$K$6,0)))/AVERAGE($D$66:INDEX($D$66:$K$66,0,MATCH('RFPR cover'!$C$7,$D$6:$K$6,0))) -> 3.48938786e-05 | N35: 3.089303549e-05
B36: NTS Exit Capacity | C36: % | D36: 0.0004375456823 | E36: 0.002050404406 | F36: 0.003009926242 | G36: 0.002475276276 | H36: 0.002683800345 | I36: 0.002740721689 | J36: 0.002286628273 | K36: 0.001710326287 | M36: =AVERAGE(D55:INDEX(D55:K55,0,MATCH('RFPR cover'!$C$7,$D$6:$K$6,0)))/AVERAGE($D$66:INDEX($D$66:$K$66,0,MATCH('RFPR cover'!$C$7,$D$6:$K$6,0))) -> 0.002194626917 | N36: 0.002139098243
B37: Network Innovation | C37: % | D37: -8.165539499e-05 | E37: -0.00021426482 | F37: -0.0003152392221 | G37: -0.0003910898782 | H37: -0.0003452714342 | I37: -0.0002301019704 | J37: -0.000378330612 | K37: -0.0002840034279 | M37: =AVERAGE(D56:INDEX(D56:K56,0,MATCH('RFPR cover'!$C$7,$D$6:$K$6,0)))/AVERAGE($D$66:INDEX($D$66:$K$66,0,MATCH('RFPR cover'!$C$7,$D$6:$K$6,0))) -> -0.0002735034758 | N37: -0.0002747073735
B38: Penalties and fines | C38: % | D38: -0.0007821788527 | E38: -0.0008988148959 | F38: -0.0003033444339 | G38: -0.0003480259555 | H38: -0.0005466299274 | I38: -0.0009230172336 | J38: -0.000619146242 | K38: -0.0006546395434 | M38: =AVERAGE(D57:INDEX(D57:K57,0,MATCH('RFPR cover'!$C$7,$D$6:$K$6,0)))/AVERAGE($D$66:INDEX($D$66:$K$66,0,MATCH('RFPR cover'!$C$7,$D$6:$K$6,0))) -> -0.000630374376 | N38: -0.0006331565582
B39: RoRE - Operational performance | C39: % | D39: =SUM(D29:D38) -> 0.06657039722 | E39: 0.05646812168 | F39: 0.0810472954 | G39: 0.08708560079 | H39: 0.09359774156 | I39: 0.09435229988 | J39: 0.09160277107 | K39: 0.1295507746 | M39: =SUM(M29:M38) -> 0.0806031467 | N39: =SUM(N29:N38) -> 0.08621535684
B40: Debt performance - at actual gearing | C40: % | D40: =(D59+D60)/D$66 -> 0.02181084737 | E40: -0.01067634248 | F40: 0.008484072921 | G40: 0.0127534829 | H40: 0.03506914465 | I40: 0.01937482883 | J40: 0.002715055613 | K40: -0.00764130346 | M40: =(AVERAGE(D59:INDEX(D59:K59,0,MATCH('RFPR cover'!$C$7,$D$6:$K$6,0)))+AVERAGE(D60:INDEX(D60:K60,0,MATCH('RFPR cover'!$C$7,$D$6:$K$6,0))))/AVERAGE($D$66:INDEX($D$66:$K$66,0,MATCH('RFPR cover'!$C$7,$D$6:$K$6,0))) -> 0.01262952137 | N40: =(AVERAGE(D59:K59)+AVERAGE(D60:K60))/AVERAGE($D$66:$K$66) -> 0.0103053203
B41: Tax performance - at actual gearing | C41: % | D41: =(D61+D62)/D$66 -> -0.001618476336 | E41: -0.005018414646 | F41: -0.0005704918121 | G41: 0.001865507705 | H41: -0.002944486208 | I41: -0.002305132522 | J41: -0.0009614970074 | K41: 0.0008345523076 | M41: =(AVERAGE(D61:INDEX(D61:K61,0,MATCH('RFPR cover'!$C$7,$D$6:$K$6,0)))+AVERAGE(D62:INDEX(D62:K62,0,MATCH('RFPR cover'!$C$7,$D$6:$K$6,0))))/AVERAGE($D$66:INDEX($D$66:$K$66,0,MATCH('RFPR cover'!$C$7,$D$6:$K$6,0))) -> -0.00164124897 | N41: =(AVERAGE(D61:K61)+AVERAGE(D62:K62))/AVERAGE($D$66:$K$66) -> -0.001357379912
B42: =B63 -> RoRE - including financing and tax | C42: % | D42: =SUM(D39:D41) -> 0.08676276825 | E42: 0.04077336456 | F42: 0.08896087651 | G42: 0.1017045914 | H42: 0.1257224 | I42: 0.1114219962 | J42: 0.09335632967 | K42: 0.1227440234 | M42: =SUM(M39:M41) -> 0.09159141909 | N42: =SUM(N39:N41) -> 0.09516329724
B45: RoRE input values
B46: ="Input values provided in "&'RFPR cover'!C14&" prices" -> Input values provided in £m 09/10 prices
B48: Equity Return on the RAV | C48: ='RFPR cover'!$C$14 -> £m 09/10 | D48: ='R9 - RAV'!D50 -> 30.13494732 | E48: ='R9 - RAV'!E50 -> 29.68241949 | F48: ='R9 - RAV'!F50 -> 29.54187923 | G48: ='R9 - RAV'!G50 -> 29.75388114 | H48: ='R9 - RAV'!H50 -> 29.8914893 | I48: ='R9 - RAV'!I50 -> 29.95735096 | J48: ='R9 - RAV'!J50 -> 30.01487131 | K48: ='R9 - RAV'!K50 -> 30.57354939 | M48: =SUM(D48:INDEX(D48:K48,0,MATCH('RFPR cover'!$C$7,$D$6:$K$6,0))) -> 208.9768388 | N48: =SUM(D48:K48) -> 239.5503881
B49: Totex outperformance | C49: ='RFPR cover'!$C$14 -> £m 09/10 | D49: ='R4 - Totex'!D35+'R4 - Totex'!D63 -> 7.60380134 | E49: ='R4 - Totex'!E35+'R4 - Totex'!E63 -> -2.14270561 | F49: ='R4 - Totex'!F35+'R4 - Totex'!F63 -> 11.10572856 | G49: ='R4 - Totex'!G35+'R4 - Totex'!G63 -> 12.34363064 | H49: ='R4 - Totex'!H35+'R4 - Totex'!H63 -> 11.47995528 | I49: ='R4 - Totex'!I35+'R4 - Totex'!I63 -> 10.61489941 | J49: ='R4 - Totex'!J35+'R4 - Totex'!J63 -> 7.725348255 | K49: ='R4 - Totex'!K35+'R4 - Totex'!K63 -> 25.62784826 | M49: =SUM(D49:INDEX(D49:K49,0,MATCH('RFPR cover'!$C$7,$D$6:$K$6,0))) -> 58.73065788 | N49: 84.35850614
B50: IQI Reward | C50: ='RFPR cover'!$C$14 -> £m 09/10 | D50: ='R4 - Totex'!D79 -> 0.6339025177 | E50: ='R4 - Totex'!E79 -> 0.6530422131 | F50: ='R4 - Totex'!F79 -> 0.6371240368 | G50: ='R4 - Totex'!G79 -> 0.6300561716 | H50: ='R4 - Totex'!H79 -> 0.6571793482 | I50: ='R4 - Totex'!I79 -> 0.6566202532 | J50: ='R4 - Totex'!J79 -> 0.6552929885 | K50: ='R4 - Totex'!K79 -> 0.6321505434 | M50: =SUM(D50:INDEX(D50:K50,0,MATCH('RFPR cover'!$C$7,$D$6:$K$6,0))) -> 4.523217529 | N50: 5.155368072
B51: ='R5 - Output Incentives'!B39 -> Broad Measure of Customer Satisfaction | C51: ='RFPR cover'!$C$14 -> £m 09/10 | D51: ='R5 - Output Incentives'!D39 -> 0.7388425374 | E51: ='R5 - Output Incentives'!E39 -> 0.6158686924 | F51: ='R5 - Output Incentives'!F39 -> 0.6983134133 | G51: ='R5 - Output Incentives'!G39 -> 0.6282275068 | H51: ='R5 - Output Incentives'!H39 -> 0.4704002349 | I51: ='R5 - Output Incentives'!I39 -> 0.9614332771 | J51: ='R5 - Output Incentives'!J39 -> 0.7983744072 | K51: ='R5 - Output Incentives'!K39 -> 1.432735745 | M51: =SUM(D51:INDEX(D51:K51,0,MATCH('RFPR cover'!$C$7,$D$6:$K$6,0))) -> 4.911460069 | N51: 6.344195814
B52: ='R5 - Output Incentives'!B40 -> Shrinkage Allowance Revenue Adjustment | C52: ='RFPR cover'!$C$14 -> £m 09/10 | D52: ='R5 - Output Incentives'!D40 -> 0.2229873759 | E52: ='R5 - Output Incentives'!E40 -> 0.1760629704 | F52: ='R5 - Output Incentives'!F40 -> 0.1974303734 | G52: ='R5 - Output Incentives'!G40 -> 0.1576813102 | H52: ='R5 - Output Incentives'!H40 -> 0.1664196894 | I52: ='R5 - Output Incentives'!I40 -> 0.2541749623 | J52: ='R5 - Output Incentives'!J40 -> 0.2535053851 | K52: ='R5 - Output Incentives'!K40 -> 0.1277744632 | M52: =SUM(D52:INDEX(D52:K52,0,MATCH('RFPR cover'!$C$7,$D$6:$K$6,0))) -> 1.428262067 | N52: 1.55603653
B53: ='R5 - Output Incentives'!B41 -> Environment Emissions Incentive | C53: ='RFPR cover'!$C$14 -> £m 09/10 | D53: ='R5 - Output Incentives'!D41 -> 0.7038146385 | E53: ='R5 - Output Incentives'!E41 -> 0.8287038243 | F53: ='R5 - Output Incentives'!F41 -> 1.209846016 | G53: ='R5 - Output Incentives'!G41 -> 0.9583882421 | H53: ='R5 - Output Incentives'!H41 -> 0.9862116877 | I53: ='R5 - Output Incentives'!I41 -> 1.187288712 | J53: ='R5 - Output Incentives'!J41 -> 2.357961488 | K53: ='R5 - Output Incentives'!K41 -> 1.940965305 | M53: =SUM(D53:INDEX(D53:K53,0,MATCH('RFPR cover'!$C$7,$D$6:$K$6,0))) -> 8.232214609 | N53: 10.17317991
B54: ='R5 - Output Incentives'!B42 -> Discretionary Reward Scheme | C54: ='RFPR cover'!$C$14 -> £m 09/10 | D54: ='R5 - Output Incentives'!D42 -> 0.0321353112 | E54: ='R5 - Output Incentives'!E42 -> 0.0321353112 | F54: ='R5 - Output Incentives'!F42 -> 0.02065504984 | G54: ='R5 - Output Incentives'!G42 -> 0.02065504984 | H54: ='R5 - Output Incentives'!H42 -> 0.02065504984 | I54: ='R5 - Output Incentives'!I42 -> 0 | J54: ='R5 - Output Incentives'!J42 -> 0 | K54: ='R5 - Output Incentives'!K42 -> 0 | M54: =SUM(D54:INDEX(D54:K54,0,MATCH('RFPR cover'!$C$7,$D$6:$K$6,0))) -> 0.1262357719 | N54: 0.1262357719
B55: ='R5 - Output Incentives'!B43 -> NTS Exit Capacity | C55: ='RFPR cover'!$C$14 -> £m 09/10 | D55: ='R5 - Output Incentives'!D43 -> 0.2616942 | E55: ='R5 - Output Incentives'!E43 -> 1.102008312 | F55: ='R5 - Output Incentives'!F43 -> 1.661207235 | G55: ='R5 - Output Incentives'!G43 -> 1.29035737 | H55: ='R5 - Output Incentives'!H43 -> 1.276691755 | I55: ='R5 - Output Incentives'!I43 -> 1.28909526 | J55: ='R5 - Output Incentives'!J43 -> 1.058459449 | K55: ='R5 - Output Incentives'!K43 -> 0.8013146859 | M55: =SUM(D55:INDEX(D55:K55,0,MATCH('RFPR cover'!$C$7,$D$6:$K$6,0))) -> 7.939513581 | N55: 8.740828267
B56: Network Innovation | C56: ='RFPR cover'!$C$14 -> £m 09/10 | D56: =-'R6 - Innovation'!D28 -> -0.04883774229 | E56: =-'R6 - Innovation'!E28 -> -0.1151585569 | F56: =-'R6 - Innovation'!F28 -> -0.1739835579 | G56: =-'R6 - Innovation'!G28 -> -0.2038744974 | H56: =-'R6 - Innovation'!H28 -> -0.1642466415 | I56: =-'R6 - Innovation'!I28 -> -0.1082281943 | J56: =-'R6 - Innovation'!J28 -> -0.1751258023 | K56: =-'R6 - Innovation'!K28 -> -0.1330600595 | M56: =SUM(D56:INDEX(D56:K56,0,MATCH('RFPR cover'!$C$7,$D$6:$K$6,0))) -> -0.9894549925 | N56: -1.122515052
B57: Penalties and fines | C57: ='RFPR cover'!$C$14 -> £m 09/10 | D57: =-'R13 - Other Activities'!D8 -> -0.4678178243 | E57: =-'R13 - Other Activities'!E8 -> -0.4830761596 | F57: =-'R13 - Other Activities'!F8 -> -0.16741871 | G57: =-'R13 - Other Activities'!G8 -> -0.1814253467 | H57: =-'R13 - Other Activities'!H8 -> -0.2600334717 | I57: =-'R13 - Other Activities'!I8 -> -0.4341400827 | J57: =-'R13 - Other Activities'!J8 -> -0.2865971691 | K57: =-'R13 - Other Activities'!K8 -> -0.3067088918 | M57: =SUM(D57:INDEX(D57:K57,0,MATCH('RFPR cover'!$C$7,$D$6:$K$6,0))) -> -2.280508764 | N57: -2.587217656
B58: RoRE - Operational performance | C58: ='RFPR cover'!$C$14 -> £m 09/10 | D58: =SUM(D48:D57) -> 39.81546967 | E58: 30.34930049 | F58: 44.73078166 | G58: 45.39757759 | H58: 44.52472223 | I58: 44.37849456 | J58: 42.40209031 | K58: 60.69656944 | M58: =SUM(M48:M57) -> 291.5984365 | N58: =SUM(N48:N57) -> 352.2950059
B59: Debt performance - at notional gearing | C59: ='RFPR cover'!$C$14 -> £m 09/10 | D59: ='R7 - Financing'!D90+'R10 - Tax'!D90 -> 11.58279453 | E59: ='R7 - Financing'!E90+'R10 - Tax'!E90 -> -8.712872304 | F59: ='R7 - Financing'!F90+'R10 - Tax'!F90 -> 3.152695701 | G59: ='R7 - Financing'!G90+'R10 - Tax'!G90 -> 5.68890022 | H59: ='R7 - Financing'!H90+'R10 - Tax'!H90 -> 16.56535594 | I59: ='R7 - Financing'!I90+'R10 - Tax'!I90 -> 8.864580155 | J59: ='R7 - Financing'!J90+'R10 - Tax'!J90 -> 0.8122600056 | K59: ='R7 - Financing'!K90+'R10 - Tax'!K90 -> -3.9346468 | M59: =SUM(D59:INDEX(D59:K59,0,MATCH('RFPR cover'!$C$7,$D$6:$K$6,0))) -> 37.95371425 | N59: =SUM(D59:K59) -> 34.01906745
B60: Debt performance - impact of actual gearing | C60: ='RFPR cover'!$C$14 -> £m 09/10 | D60: ='R7 - Financing'!D92+'R10 - Tax'!D91 -> 1.462179937 | E60: ='R7 - Financing'!E92+'R10 - Tax'!E91 -> 2.974775896 | F60: ='R7 - Financing'!F92+'R10 - Tax'!F91 -> 1.529745725 | G60: ='R7 - Financing'!G92+'R10 - Tax'!G91 -> 0.9594690198 | H60: ='R7 - Financing'!H92+'R10 - Tax'!H91 -> 0.1171397941 | I60: ='R7 - Financing'!I92+'R10 - Tax'!I91 -> 0.2483480597 | J60: ='R7 - Financing'!J92+'R10 - Tax'!J91 -> 0.4445145652 | K60: ='R7 - Financing'!K92+'R10 - Tax'!K91 -> 0.3545763028 | M60: =SUM(D60:INDEX(D60:K60,0,MATCH('RFPR cover'!$C$7,$D$6:$K$6,0))) -> 7.736172997 | N60: =SUM(D60:K60) -> 8.0907493
B61: Tax performance - at notional gearing | C61: ='RFPR cover'!$C$14 -> £m 09/10 | D61: ='R10 - Tax'!D83-'R10 - Tax'!D90 -> -0.96800377 | E61: ='R10 - Tax'!E83-'R10 - Tax'!E90 -> -2.697192142 | F61: ='R10 - Tax'!F83-'R10 - Tax'!F90 -> -0.3148599168 | G61: ='R10 - Tax'!G83-'R10 - Tax'!G90 -> 0.972486037 | H61: ='R10 - Tax'!H83-'R10 - Tax'!H90 -> -1.40070079 | I61: ='R10 - Tax'!I83-'R10 - Tax'!I90 -> -1.084216402 | J61: ='R10 - Tax'!J83-'R10 - Tax'!J90 -> -0.4450682273 | K61: ='R10 - Tax'!K83-'R10 - Tax'!K90 -> 0.3910008431 | M61: =SUM(D61:INDEX(D61:K61,0,MATCH('RFPR cover'!$C$7,$D$6:$K$6,0))) -> -5.937555211 | N61: =SUM(D61:K61) -> -5.546554367
B62: Tax performance - impact of actual gearing | C62: ='RFPR cover'!$C$14 -> £m 09/10 | D62: ='R10 - Tax'!D85-'R10 - Tax'!D91 -> -1.776356839e-15 | E62: ='R10 - Tax'!E85-'R10 - Tax'!E91 -> 8.881784197e-16 | F62: ='R10 - Tax'!F85-'R10 - Tax'!F91 -> 8.881784197e-16 | G62: ='R10 - Tax'!G85-'R10 - Tax'!G91 -> 1.776356839e-15 | H62: ='R10 - Tax'!H85-'R10 - Tax'!H91 -> -1.776356839e-15 | I62: ='R10 - Tax'!I85-'R10 - Tax'!I91 -> 2.053912596e-15 | J62: ='R10 - Tax'!J85-'R10 - Tax'!J91 -> -1.026956298e-15 | K62: ='R10 - Tax'!K85-'R10 - Tax'!K91 -> 8.326672685e-16 | M62: =SUM(D62:INDEX(D62:K62,0,MATCH('RFPR cover'!$C$7,$D$6:$K$6,0))) -> 1.026956298e-15 | N62: =SUM(D62:K62) -> 1.859623566e-15
B63: RoRE - including financing and tax | C63: ='RFPR cover'!$C$14 -> £m 09/10 | D63: =SUM(D58:D62) -> 51.89244037 | E63: 21.91401194 | F63: 49.09836316 | G63: 53.01843286 | H63: 59.80651717 | I63: 52.40720637 | J63: 43.21379665 | K63: 57.50749978 | M63: =SUM(M58:M62) -> 331.3507685 | N63: =SUM(N58:N62) -> 388.8582683
B65: NPV-neutral equity element of RAV | C65: ='RFPR cover'!$C$14 -> £m 09/10 | D65: ='R9 - RAV'!D46 -> 449.7753331 | E65: ='R9 - RAV'!E46 -> 443.0211865 | F65: ='R9 - RAV'!F46 -> 440.9235707 | G65: ='R9 - RAV'!G46 -> 444.0877783 | H65: ='R9 - RAV'!H46 -> 446.1416313 | I65: ='R9 - RAV'!I46 -> 447.1246411 | J65: ='R9 - RAV'!J46 -> 447.9831538 | K65: ='R9 - RAV'!K46 -> 456.3216326
B66: Equity RAV based on actual gearing | C66: ='RFPR cover'!$C$14 -> £m 09/10 | D66: ='R8 - Net Debt'!D62 -> 598.0957203 | E66: ='R8 - Net Debt'!E62 -> 537.4590049 | F66: ='R8 - Net Debt'!F62 -> 551.9096157 | G66: ='R8 - Net Debt'!G62 -> 521.2983223 | H66: ='R8 - Net Debt'!H62 -> 475.7029549 | I66: ='R8 - Net Debt'!I62 -> 470.3488374 | J66: ='R8 - Net Debt'!J62 -> 462.8909127 | K66: ='R8 - Net Debt'!K62 -> 468.5156814

Sheet R2 - Revenue
A1: R2 - Revenue
A2: ='RFPR cover'!C5 -> Cadent-WM
A3: ='RFPR cover'!C7 -> 2020
D5: =IF(D6<='RFPR cover'!$C$7,"Actuals","Forecast") -> Actuals | E5: =IF(E6<='RFPR cover'!$C$7,"Actuals","Forecast") -> Actuals | F5: =IF(F6<='RFPR cover'!$C$7,"Actuals","Forecast") -> Actuals | G5: =IF(G6<='RFPR cover'!$C$7,"Actuals","Forecast") -> Actuals | H5: =IF(H6<='RFPR cover'!$C$7,"Actuals","Forecast") -> Actuals | I5: =IF(I6<='RFPR cover'!$C$7,"Actuals","Forecast") -> Actuals | J5: =IF(J6<='RFPR cover'!$C$7,"Actuals","Forecast") -> Actuals | K5: =IF(K6<='RFPR cover'!$C$7,"Actuals","Forecast") -> Forecast
D6: ='RFPR cover'!$C$13 -> 2014 | E6: =D6+1 -> 2015 | F6: 2016 | G6: 2017 | H6: 2018 | I6: 2019 | J6: 2020 | K6: 2021
B8: Allowed Revenue - per latest submitted Revenue Return
B10: Opening Base Revenue Allowance | C10: ='RFPR cover'!$C$14 -> £m 09/10 | D10: 281.9 | E10: 276.3 | F10: 276.3 | G10: 268.5 | H10: 271.6 | I10: 271.9 | J10: 272.2
B11: MOD | C11: ='RFPR cover'!$C$14 -> £m 09/10 | D11: 0 | E11: -2.2 | F11: -5.2 | G11: -5.4 | H11: -13.3 | I11: -11.8 | J11: -19.8
B12: True Up | C12: ='RFPR cover'!$C$14 -> £m 09/10 | D12: 0 | E12: 0 | F12: 0.96399705 | G12: -3.87405386 | H12: -5.93219075 | I12: -1.0411593 | J12: 0.6759189
B13: Retail Price Index Forecast (RPIF term) | C13: Index | D13: 1.163016333 | E13: 1.205083814 | F13: 1.226652821 | G13: 1.232733287 | H13: 1.270922538 | I13: 1.314024254 | J13: 1.358588448
B14: Nominal Base Revenue | C14: £m nominal | D14: =SUM(D10:D12)*D13 -> 327.8543043 | E14: 330.3134735 | F14: 333.7280695 | G14: 319.5564527 | H14: 320.7399367 | I14: 340.4096 | J14: 343.8260198 | K14: 0
B15: Incentive revenue adjustment | C15: £m nominal | D15: ='R5 - Output Incentives'!D102 -> 0.16362405 | E15: ='R5 - Output Incentives'!E102 -> 0.14847368 | F15: ='R5 - Output Incentives'!F102 -> 2.81392242 | G15: ='R5 - Output Incentives'!G102 -> 4.32849623 | H15: ='R5 - Output Incentives'!H102 -> 5.91611825 | I15: ='R5 - Output Incentives'!I102 -> 4.88098586 | J15: ='R5 - Output Incentives'!J102 -> 4.95830336 | K15: ='R5 - Output Incentives'!K102 -> 6.19890641
B16: Adjustments for Allowed Pass-Through items | C16: £m nominal | D16: 0.02640573 | E16: -0.01834053 | F16: 0.5181305 | G16: 0.77033061 | H16: 2.87359114 | I16: 2.79377469 | J16: 9.588286462
B17: Network Innovation Allowance | C17: £m nominal | D17: ='R6 - Innovation'!D12 -> 0.45919385 | E17: ='R6 - Innovation'!E12 -> 1.23288827 | F17: ='R6 - Innovation'!F12 -> 1.5396367 | G17: ='R6 - Innovation'!G12 -> 1.21725 | H17: ='R6 - Innovation'!H12 -> 1.18290926 | I17: ='R6 - Innovation'!I12 -> 0.7830441657 | J17: ='R6 - Innovation'!J12 -> 0.9804390389 | K17: ='R6 - Innovation'!K12 -> 1.128329321
B18: Low Carbon Networks Fund revenue adjustment | C18: £m nominal | D18: ='R6 - Innovation'!D17 -> 0 | E18: ='R6 - Innovation'!E17 -> 0 | F18: ='R6 - Innovation'!F17 -> 0 | G18: ='R6 - Innovation'!G17 -> 0 | H18: ='R6 - Innovation'!H17 -> 0 | I18: ='R6 - Innovation'!I17 -> 0 | J18: ='R6 - Innovation'!J17 -> 0 | K18: ='R6 - Innovation'!K17 -> 0
B19: NTS Exit Capacity Cost Adjustment | C19: £m nominal | D19: 0 | E19: 0 | F19: 0.13100146 | G19: -0.31764052 | H19: -1.10831537 | I19: 0.05749325 | J19: 0.96761951
B20: Shrinkage Cost Adjustment | C20: £m nominal | D20: 0 | E20: 0 | F20: -1.34636058 | G20: -3.63302646 | H20: -5.00642353 | I20: -2.69258558 | J20: -1.99450981
B21: [Input description] | C21: £m nominal | D21: 0 | E21: 0 | F21: 0 | G21: 0 | H21: 0 | I21: 0 | J21: 0
B22: [Input description] | C22: £m nominal | D22: 0 | E22: 0 | F22: 0 | G22: 0 | H22: 0 | I22: 0 | J22: 0
B23: [Input description] | C23: £m nominal | D23: 0 | E23: 0 | F23: 0 | G23: 0 | H23: 0 | I23: 0 | J23: 0
B24: [Input description] | C24: £m nominal | D24: 0 | E24: 0 | F24: 0 | G24: 0 | H24: 0 | I24: 0 | J24: 0
B25: Correction factor | C25: £m nominal | D25: 10.72794823 | E25: 0 | F25: 11.77971338 | G25: 0.66589246 | H25: -0.99189731 | I25: 2.61556553 | J25: 2.12095325
B26: Allowed Network Revenue | C26: £m nominal | D26: =SUM(D14:D24,-D25) -> 317.7755797 | E26: 331.676495 | F26: 325.6046867 | G26: 321.2559701 | H26: 325.5897137 | I26: 343.6167468 | J26: 356.2052051 | K26: 7.327235731
B28: (Under) / Over recovery | D28: =IF(ISBLANK(D33),0,D33-D26) -> 11.32229275 | E28: 0.6400350444 | F28: -0.954913264 | G28: 2.521698689 | H28: 2.038256658 | I28: 1.377928091 | J28: 3.461033937 | K28: 0
B31: Reconciliation: Regulated Network Revenue to Accounts
B33: Collected Regulated Network Revenue | D33: 329.0978724 | E33: 332.31653 | F33: 324.6497734 | G33: 323.7776688 | H33: 327.6279704 | I33: 344.9946749 | J33: 359.6662391
B35: Other Turnover Items
B36: Network Innovation Competition (NIC) payments received from SO | C36: £m nominal | D36: 0 | E36: 0 | F36: 0 | G36: 0 | H36: 0 | I36: 0 | J36: 0
B37: Legacy Metering Equipment charges | C37: £m nominal | D37: 0 | E37: 0 | F37: 0 | G37: 0 | H37: 0 | I37: 0 | J37: 0
B38: Directly Remunerated Services revenue | C38: £m nominal | D38: 0 | E38: 0 | F38: 0 | G38: 0 | H38: 0 | I38: 0 | J38: 0
B39: Network Asset Secondary Deliverables incentive/penalty | C39: £m nominal | D39: 0 | E39: 0 | F39: 0 | G39: 0 | H39: 0 | I39: 0 | J39: 0
B40: Charging outside the Distribution Services Area (Out of Area Charges) | C40: £m nominal | D40: 0 | E40: 0 | F40: 0 | G40: 0 | H40: 0 | I40: 0 | J40: 0
B41: De Minimis Business of the licensee | C41: £m nominal | D41: 0.2036355706 | E41: 0.8514264384 | F41: 0.807277291 | G41: 1.80180785 | H41: 2.437290408 | I41: 2.184884459 | J41: 1.361248163
B42: Other consented activities | C42: £m nominal | D42: 0 | E42: 0 | F42: 0 | G42: 0 | H42: 0 | I42: 0 | J42: 0
B43: Data Services revenue | C43: £m nominal | D43: 0 | E43: 0 | F43: 0 | G43: 0 | H43: 0 | I43: 0 | J43: 0
B44: [Input description, add additional rows as required] | C44: £m nominal | D44: 0 | E44: 0 | F44: 0 | G44: 0 | H44: 0 | I44: 0 | J44: 0
B45: Total Other Turnover Items | C45: £m nominal | D45: =SUM(D36:D44) -> 0.2036355706 | E45: 0.8514264384 | F45: 0.807277291 | G45: 1.80180785 | H45: 2.437290408 | I45: 2.184884459 | J45: 1.361248163 | K45: 0
B47: Other adjustments - please list
B48: Excluded Services (Inc. Customer Contributions) | C48: £m nominal | D48: 3.427963575 | E48: 2.714061061 | F48: 2.457589599 | G48: 2.749604031 | H48: 3.664806094 | I48: 2.950798737 | J48: 2.996237358
B49: Meter Reading and metering | C49: £m nominal | D49: 7.431642148 | E49: 6.725713346 | F49: 5.714498152 | G49: 3.258878091 | H49: 3.06160685 | I49: 2.75355398 | J49: 2.60418607
B50: Services provided under consents | C50: £m nominal | D50: 1.533266818 | E50: 1.844981682 | F50: 1.675021416 | G50: 1.570686397 | H50: 0.6476673512 | I50: 0.7946329245 | J50: 0.7902770546
B51: Other transportation Revenue | C51: £m nominal | D51: 0 | E51: 0 | F51: 0 | G51: 0.04286209237 | H51: -0.04286209237 | I51: 0.10654678 | J51: 0.07822637063
B52: Customer contributions | C52: £m nominal | D52: 0.03414374 | E52: -2.220446049e-16 | F52: 0 | G52: 0 | H52: 0 | I52: 0 | J52: 0
B53: Xoserve | C53: £m nominal | D53: 18.21307234 | E53: 19.35117626 | F53: 18.51316837 | G53: 0 | H53: 0 | I53: 0 | J53: 0
B54: Elimination of Inter Group/Business Trading | C54: £m nominal | D54: -45.70734259 | E54: -36.43455694 | F54: -27.3579207 | G54: 0 | H54: 0 | I54: 0 | J54: 0
B55: Revenue classified as expenditure | C55: £m nominal | D55: 0 | E55: 0 | F55: 0 | G55: 1.163095775 | H55: 0 | I55: 0 | J55: 0
B56: Other three network revenues | C56: £m nominal | D56: 1555.521436 | E56: 1520.996153 | F56: 1584.300039 | G56: 1552.71261 | H56: 1514.483123 | I56: 1638.521664 | J56: 1741.67216
B57: Metering | C57: £m nominal | D57: 321 | E57: 309 | F57: 300 | G57: 0 | H57: 0 | I57: 0 | J57: 0
B58: IFRS 15 Contribution released | C58: £m nominal | D58: 0 | E58: 0 | F58: 0 | G58: 0 | H58: 0 | I58: 2.40525034 | J58: 4.08175891
B59: [Input description] | C59: £m nominal | D59: 0 | E59: 0 | F59: 0 | G59: 0 | H59: 0 | I59: 0 | J59: 0
B60: [Input description] | C60: £m nominal | D60: 0 | E60: 0 | F60: 0 | G60: 0 | H60: 0 | I60: 0 | J60: 0
B61: [Input description] | C61: £m nominal | D61: 0 | E61: 0 | F61: 0 | G61: 0 | H61: 0 | I61: 0 | J61: 0
B62: [Input description] | C62: £m nominal | D62: 0 | E62: 0 | F62: 0 | G62: 0 | H62: 0 | I62: 0 | J62: 0
B63: Roundings | C63: £m nominal | D63: 0.1982238177 | E63: 0.5917031756 | F63: 0.2097164982 | G63: -0.1062840918 | H63: 0.07288942239 | I63: 0.28799428 | J63: 1.749667023
B64: Total other adjustments | C64: £m nominal | D64: =SUM(D48:D63) -> 1861.652406 | E64: 1824.789231 | F64: 1885.512113 | G64: 1561.391452 | H64: 1521.88723 | I64: 1647.820441 | J64: 1753.972513 | K64: 0
B66: Reconciled total revenue | C66: £m nominal | D66: =D33+D45+D64 -> 2190.953914 | E66: 2157.957188 | F66: 2210.969164 | G66: 1886.970929 | H66: 1851.952491 | I66: 1995 | J66: 2115 | K66: 0
B67: Turnover as per Profit and Loss (Accounts) | C67: £m nominal | D67: 2191 | E67: 2158 | F67: 2211 | G67: 1887 | H67: 1852 | I67: 1995 | J67: 2115
B68: Check | D68: =IF(ABS(D66-D67)<'RFPR cover'!$F$14,"OK","Error") -> OK | E68: =IF(ABS(E66-E67)<'RFPR cover'!$F$14,"OK","Error") -> OK | F68: =IF(ABS(F66-F67)<'RFPR cover'!$F$14,"OK","Error") -> OK | G68: =IF(ABS(G66-G67)<'RFPR cover'!$F$14,"OK","Error") -> OK | H68: =IF(ABS(H66-H67)<'RFPR cover'!$F$14,"OK","Error") -> OK | I68: =IF(ABS(I66-I67)<'RFPR cover'!$F$14,"OK","Error") -> OK | J68: =IF(ABS(J66-J67)<'RFPR cover'!$F$14,"OK","Error") -> OK | K68: =IF(ABS(K66-K67)<'RFPR cover'!$F$14,"OK","Error") -> OK

Sheet R3 - Rec to totex
A1: R3 - Reconciliation to totex
A2: ='RFPR cover'!C5 -> Cadent-WM
A3: ='RFPR cover'!C7 -> 2020
D5: =IF(D6<='RFPR cover'!$C$7,"Actuals","N/A") -> Actuals | E5: =IF(E6<='RFPR cover'!$C$7,"Actuals","N/A") -> Actuals | F5: =IF(F6<='RFPR cover'!$C$7,"Actuals","N/A") -> Actuals | G5: =IF(G6<='RFPR cover'!$C$7,"Actuals","N/A") -> Actuals | H5: =IF(H6<='RFPR cover'!$C$7,"Actuals","N/A") -> Actuals | I5: =IF(I6<='RFPR cover'!$C$7,"Actuals","N/A") -> Actuals | J5: =IF(J6<='RFPR cover'!$C$7,"Actuals","N/A") -> Actuals | K5: =IF(K6<='RFPR cover'!$C$7,"Actuals","N/A") -> N/A
D6: ='RFPR cover'!$C$13 -> 2014 | E6: =D6+1 -> 2015 | F6: 2016 | G6: 2017 | H6: 2018 | I6: 2019 | J6: 2020 | K6: 2021
B8: Total Expenditure Per Accounts
B9: Tangible Fixed Asset Additions | C9: £m nominal | D9: 509 | E9: 520 | F9: 581 | G9: 549 | H9: 610 | I9: 706 | J9: 815
B10: Intangible Asset Additions (under IFRS) - IT Software | C10: £m nominal | D10: 35 | E10: 40 | F10: 24 | G10: 11 | H10: 2 | I10: 30 | J10: 46
B11: Disposals (cash proceeds) [If Statutory Accounts treat this as an exceptional item, leave the input blank] | C11: £m nominal | D11: 0 | E11: 0 | F11: 0 | G11: 0 | H11: 0 | I11: -2 | J11: -1
B12: Customer Contributions Additions | C12: £m nominal | D12: -21.08830086 | E12: -20.50484706 | F12: -22.98658171 | G12: -39.2042886 | H12: -59 | I12: -109 | J12: -94
B13: Capitalised interest | C13: £m nominal | D13: -2 | E13: -2 | F13: 0 | G13: -1 | H13: 0 | I13: 0 | J13: 0
B14: Revaluation of tangible fixed assets | C14: £m nominal | D14: 0 | E14: 0 | F14: 0 | G14: 0 | H14: 0 | I14: 0 | J14: 0
A15: 1 | B15: [Input description] | C15: £m nominal | D15: 0 | E15: 0 | F15: 0 | G15: 0 | H15: 0 | I15: 0 | J15: 0
A16: 2 | B16: [Input description] | C16: £m nominal | D16: 0 | E16: 0 | F16: 0 | G16: 0 | H16: 0 | I16: 0 | J16: 0
A17: 3 | B17: [Input description] | C17: £m nominal | D17: 0 | E17: 0 | F17: 0 | G17: 0 | H17: 0 | I17: 0 | J17: 0
B18: Capex Incurred | C18: £m nominal | D18: =SUM(D9:D17) -> 520.9116991 | E18: 537.4951529 | F18: 582.0134183 | G18: 519.7957114 | H18: 553 | I18: 625 | J18: =SUM(J9:J17) -> 766 | K18: 0
B19: Operational Costs Incurred | C19: £m nominal | D19: 1187 | E19: 1153 | F19: 1178 | G19: 1129 | H19: 1128 | I19: 1182 | J19: 1191
A20: 1 | B20: [Input description] | C20: £m nominal | D20: 0 | E20: 0 | F20: 0 | G20: 0 | H20: 0 | I20: 0 | J20: 0
A21: 2 | B21: [Input description] | C21: £m nominal | D21: 0 | E21: 0 | F21: 0 | G21: 0 | H21: 0 | I21: 0 | J21: 0
A22: 3 | B22: [Input description] | C22: £m nominal | D22: 0 | E22: 0 | F22: 0 | G22: 0 | H22: 0 | I22: 0 | J22: 0
B23: Total Expenditure Incurred | C23: £m nominal | D23: =SUM(D18:D22) -> 1707.911699 | E23: 1690.495153 | F23: 1760.013418 | G23: 1648.795711 | H23: 1681 | I23: 1807 | J23: 1957 | K23: 0
B25: Reconciling Items to Total Net costs after non-price control allocations | C25: £m nominal
A26: 1 | B26: Total expenditure relating to excluded services (deminimis, excluded, consented and meter reading) | C26: £m nominal | D26: -88.77479166 | E26: -86.64717082 | F26: -66.48738517 | G26: -42.34823526 | H26: -33 | I26: -31.2133087 | J26: -29.41254488
A27: 2 | B27: Depreciation & amortisation of Intangibles | C27: £m nominal | D27: -271 | E27: -287 | F27: -298 | G27: -309 | H27: -305 | I27: -319 | J27: -343
A28: 3 | B28: Customer Contribution Amortisation | C28: £m nominal | D28: 21.10836141 | E28: 21.59868519 | F28: 22.23225969 | G28: 22.23225969 | H28: 20.73451775 | I28: 0 | J28: 0
A29: 4 | B29: Total expenditure relating to Metering business | C29: £m nominal | D29: -215 | E29: -199 | F29: -179 | G29: 0 | H29: 0 | I29: 0 | J29: 0
A30: 5 | B30: Inter business unit charging elimination | C30: £m nominal | D30: 45.70734259 | E30: 36.43455694 | F30: 27.3579207 | G30: 0 | H30: 0 | I30: 0 | J30: 0
A31: 6 | B31: Profit / (Loss) on disposal | C31: £m nominal | D31: 83 | E31: 40 | F31: 0 | G31: -11 | H31: 0.4511035798 | I31: 2 | J31: 3
A32: 7 | B32: Cadent Total GSOP Payments | C32: £m nominal | D32: -1.802924563 | E32: -2.269957382 | F32: -2.87115647 | G32: -3.112271917 | H32: -2.916930748 | I32: -3.31741929 | J32: -5.00557129
A33: 8 | B33: Network Innovation Competition Costs | C33: £m nominal | D33: 0 | E33: 0 | F33: 0 | G33: -0.03567741 | H33: -1.06975698 | I33: -0.72411407 | J33: -0.99611846
A34: 9 | B34: Supplier of Last Resort (SoLR) | C34: £m nominal | D34: 0 | E34: 0 | F34: 0 | G34: 0 | H34: 0 | I34: -3.18509389 | J34: -3.1000725
A35: 10 | B35: Cash typical adjustments (provision movements) | C35: £m nominal | D35: -30 | E35: -1 | F35: 0 | G35: -15 | H35: -1 | I35: -6 | J35: -39
A36: 11 | B36: Atypical items - Separation expenditure (Opex) | C36: £m nominal | D36: 0 | E36: 0 | F36: 0 | G36: -4.91904316 | H36: -21.22645788 | I36: -17.52971129 | J36: -19
A37: 12 | B37: Atypical items - Separation expenditure (Capex) | C37: £m nominal | D37: 0 | E37: 0 | F37: 0 | G37: 0 | H37: 0 | I37: 0 | J37: -5.92985427
A38: 13 | B38: Atypical Items - Grenfell investigation | C38: £m nominal | D38: 0 | E38: 0 | F38: 0 | G38: 0 | H38: -1.35563067 | I38: -1.09242274 | J38: 0.73110853
A39: 14 | B39: Atypical Items - Energy Savings Trust contributions | C39: £m nominal | D39: 0 | E39: 0 | F39: 0 | G39: 0 | H39: 0 | I39: -8.9 | J39: 0
A40: 15 | B40: Atypical Items - HRB recovery programme costs | C40: £m nominal | D40: 0 | E40: 0 | F40: 0 | G40: 0 | H40: 0 | I40: -3.67517683 | J40: -0.08331893
A41: 16 | B41: Atypical Items - Guaranteed minimum pensions payments | C41: £m nominal | D41: 0 | E41: 0 | F41: 0 | G41: 0 | H41: 0 | I41: -14 | J41: 0
A42: 17 | B42: Atypical Items - Service transformation costs | C42: £m nominal | D42: 0 | E42: 0 | F42: 0 | G42: 0 | H42: 0 | I42: -0.61276066 | J42: 0
A43: 18 | B43: Atypical Items - Donation to National Energy Action | C43: £m nominal | D43: 0 | E43: 0 | F43: -3 | G43: 0 | H43: 0 | I43: 0 | J43: 0
A44: 19 | B44: Atypical items - Legal fines and penalties | C44: £m nominal | D44: 0 | E44: 0 | F44: -3 | G44: 0 | H44: 0 | I44: 0 | J44: 0
A45: 20 | B45: Atypical Items - Enhanced GSOP payments | C45: £m nominal | D45: 0 | E45: 0 | F45: 0 | G45: 0 | H45: -1.33857 | I45: 0 | J45: 0
A46: 21 | B46: Atypical Items - Establishment of a Community Fund | C46: £m nominal | D46: 0 | E46: 0 | F46: 0 | G46: 0 | H46: 0 | I46: -4.123628 | J46: -5.691342
A47: 22 | B47: IFRS 16 Impact | C47: £m nominal | D47: 0 | E47: 0 | F47: 0 | G47: 0 | H47: 0 | I47: 0 | J47: 4.03311072
A48: 23 | B48: Total expenditure relating to other three networks | C48: £m nominal | D48: -1031.369625 | E48: -999.4208544 | F48: -1022.979692 | G48: -1052.090037 | H48: -1099.330622 | I48: -1159.429571 | J48: -1270.217245
A49: 24 | B49: Connections Income (including Biogas connections income) | C49: £m nominal | D49: -1.46650542 | E49: -1.146733594 | F49: -1.146733594 | G49: -1.740501838 | H49: -2.224625362 | I49: -2.043382371 | J49: -2.016974504
A50: 25 | B50: Ongoing Pension Costs Accrued under IAS 19 (-ve) | C50: £m nominal | D50: 0.6749894441 | E50: 0.1388846416 | F50: -0.2995422984 | G50: -1.016134857 | H50: -1.72192633 | I50: 1.912918104 | J50: 0.0005994803501
A51: 26 | B51: Incremental pension deficit funding | C51: £m nominal | D51: 0 | E51: 0 | F51: 0 | G51: 0 | H51: 0.208673801 | I51: 0.2331291337 | J51: 0.307646263
A52: 27 | B52: Established pension deficit recovery plan payment | C52: £m nominal | D52: 0 | E52: 0 | F52: 0 | G52: 0 | H52: 6.682725326 | I52: 7.100930136 | J52: 9.693719783
A53: 28 | B53: A grossing up of costs and revenue in the regulatory accounts | C53: £m nominal | D53: 0 | E53: 0 | F53: 0 | G53: -1.246020384 | H53: 0 | I53: 0 | J53: 0
A54: 29 | B54: Adjustment for efficient level of fines | C54: £m nominal | D54: -0.5980626718 | E54: 0 | F54: 0 | G54: 0 | H54: 0 | I54: 0 | J54: 0
A55: 30 | B55: Cash typical adjustments (Utilisation) | C55: £m nominal | D55: -1.409365276 | E55: 0.9803783353 | F55: 0.7355864839 | G55: 3.041936547 | H55: -0.6022410332 | I55: 0.6573259905 | J55: 3.538879412
A56: 31 | B56: Cumulative impact of rounding in reg accounts | C56: £m nominal | D56: 1.599599158 | E56: -0.2759471537 | F56: -0.117503386 | G56: -0.2884992545 | H56: -0.07188273061 | I56: 1.292550697 | J56: 1.324651379
B57: Total Reconciling Items | C57: £m nominal | D57: =SUM(D26:D56) -> -1489.330982 | E57: -1477.608158 | F57: -1526.576246 | G57: -1416.522225 | H57: -1442.781623 | I57: -1561.649735 | J57: -1700.823326 | K57: 0
B59: Total Net costs after non-price control allocations | C59: £m nominal | D59: =D57+D23 -> 218.5807175 | E59: 212.8869947 | F59: 233.4371726 | G59: 232.2734861 | H59: 238.2183768 | I59: 245.350265 | J59: 256.1766742 | K59: 0
B60: Total Costs per latest RRP submission | C60: £m nominal | D60: 218.5807175 | E60: 212.8869947 | F60: 233.4371726 | G60: 232.2915201 | H60: 238.2183768 | I60: 245.4406636 | J60: 256.1766742
C61: check | D61: =IF(D$5="Actuals",IF(ABS(D59-D60)<1,"OK","ERROR"),"N/A") -> OK | E61: OK | F61: OK | G61: OK | H61: OK | I61: OK | J61: OK | K61: N/A
B63: Reconciling Items to Totex
A64: 1 | B64: Shrinkage | C64: £m nominal | D64: 6.91735609 | E64: 4.93315727 | F64: 3.77249859 | G64: 3.682288675 | H64: 4.416054529 | I64: 5.493107935 | J64: 2.56237857
A65: 2 | B65: Ofgem Licence | C65: £m nominal | D65: 1.107 | E65: 1.168946005 | F65: 1.192988118 | G65: 1.006369245 | H65: 1.30263917 | I65: 1.353475588 | J65: 1.49741992
A66: 3 | B66: Network Rates | C66: £m nominal | D66: 25.173 | E66: 25.75910627 | F66: 26.34499889 | G66: 26.59554384 | H66: 35.63518099 | I66: 36.5805014 | J66: 37.396699
A67: 4 | B67: Established pension deficit recovery plan payment | C67: £m nominal | D67: 1.292104078 | E67: 2.287 | F67: 2.297890836 | G67: 2.337657163 | H67: 6.664352841 | I67: 7.100930136 | J67: 9.693719783
A68: 5 | B68: PPF levy costs | C68: £m nominal | D68: 0.01607350183 | E68: 0.136 | F68: 0.01051129965 | G68: 0.01123390911 | H68: 0.01837248492 | I68: 0.02970573702 | J68: 0.04176512339
A69: 6 | B69: Pension scheme administration costs | C69: £m nominal | D69: 0.110505325 | E69: 0.136 | F69: 0.1175950722 | G69: 0.1177203902 | H69: 0.5582454546 | I69: 0.6380417522 | J69: 0.9928306142
A70: 7 | B70: NTS Pension Recharge | C70: £m nominal | D70: 3.726 | E70: 3.856230609 | F70: 5.407805175 | G70: 5.435876948 | H70: 3.52126067 | I70: 3.639576 | J70: 0
A71: 8 | B71: Bad debt | C71: £m nominal | D71: -0.02947824662 | E71: 0.142469377 | F71: -0.50514609 | G71: 0.247982728 | H71: 0.5570004923 | I71: -0.008145663597 | J71: -0.05282378281
A72: 9 | B72: NTS exit costs | C72: £m nominal | D72: 20.415 | E72: 20.16794491 | F72: 19.44566975 | G72: 20.83333098 | H72: 22.33284242 | I72: 18.84868422 | J72: 19.48590179
A73: 10 | B73: Network Innovation (ex IRM) | C73: £m nominal | D73: 0.424 | E73: 1.468383729 | F73: 1.581276183 | G73: 1.365491277 | H73: 1.314344211 | I73: 0.870049073 | J73: 1.08937671
A74: 11 | B74: Innovation Roll-out expenditure (IRM) | C74: £m nominal | D74: 0 | E74: 0 | F74: 0 | G74: 0 | H74: 0 | I74: 0 | J74: 0
A75: 12 | B75: Unfunded Network Innovation | C75: £m nominal | D75: 0 | E75: 0.002678945 | F75: 0 | G75: 0.175877787 | H75: 0.1245050388 | I75: 0.1218853506 | J75: 0.2490803315
A76: 13 | B76: SIU Gas Cost Price Differential | C76: £m nominal | D76: 0 | E76: 0 | F76: 0 | G76: 0.0008982225 | H76: 0.00015525 | I76: 0 | J76: 0.0008982225
A77: 14 | B77: [Input description] | C77: £m nominal | D77: 0 | E77: 0 | F77: 0 | G77: 0 | H77: 0 | I77: 0 | J77: 0
A78: 15 | B78: [Input description] | C78: £m nominal | D78: 0 | E78: 0 | F78: 0 | G78: 0 | H78: 0 | I78: 0 | J78: 0
A79: 16 | B79: [Input description] | C79: £m nominal | D79: 0 | E79: 0 | F79: 0 | G79: 0 | H79: 0 | I79: 0 | J79: 0
A80: 17 | B80: [Input description] | C80: £m nominal | D80: 0 | E80: 0 | F80: 0 | G80: 0 | H80: 0 | I80: 0 | J80: 0
A81: 18 | B81: [Input description] | C81: £m nominal | D81: 0 | E81: 0 | F81: 0 | G81: 0 | H81: 0 | I81: 0 | J81: 0
A82: 19 | B82: [Input description] | C82: £m nominal | D82: 0 | E82: 0 | F82: 0 | G82: 0 | H82: 0 | I82: 0 | J82: 0
A83: 20 | B83: [Input description] | C83: £m nominal | D83: 0 | E83: 0 | F83: 0 | G83: 0 | H83: 0 | I83: 0 | J83: 0
A84: 21 | B84: [Input description] | C84: £m nominal | D84: 0 | E84: 0 | F84: 0 | G84: 0 | H84: 0 | I84: 0 | J84: 0
A85: 22 | B85: [Input description] | C85: £m nominal | D85: 0 | E85: 0 | F85: 0 | G85: 0 | H85: 0 | I85: 0 | J85: 0
A86: 23 | B86: [Input description] | C86: £m nominal | D86: 0 | E86: 0 | F86: 0 | G86: 0 | H86: 0 | I86: 0 | J86: 0
A87: 24 | B87: [Input description] | C87: £m nominal | D87: 0 | E87: 0 | F87: 0 | G87: 0 | H87: 0 | I87: 0 | J87: 0
A88: 25 | B88: [Input description] | C88: £m nominal | D88: 0 | E88: 0 | F88: 0 | G88: 0 | H88: 0 | I88: 0 | J88: 0
B89: Total reconciling items not recognised in totex | C89: £m nominal | D89: =SUM(D64:D88) -> 59.15156075 | E89: 60.05791711 | F89: 59.66608783 | G89: 61.81027116 | H89: 76.44495355 | I89: 74.66781153 | J89: 72.95724628 | K89: 0
B91: PCFM Totex (excluding enduring value) | C91: £m nominal | D91: =D59-D89 -> 159.4291567 | E91: 152.8290776 | F91: 173.7710848 | G91: 170.4632149 | H91: 161.7734233 | I91: 170.6824535 | J91: 183.2194279 | K91: 0
B92: RRP reported totex | C92: £m nominal | D92: ='R4 - Totex'!D90+'R4 - Totex'!D118 -> 159.4293484 | E92: ='R4 - Totex'!E90+'R4 - Totex'!E118 -> 152.8284436 | F92: ='R4 - Totex'!F90+'R4 - Totex'!F118 -> 173.7713087 | G92: ='R4 - Totex'!G90+'R4 - Totex'!G118 -> 170.4632149 | H92: ='R4 - Totex'!H90+'R4 - Totex'!H118 -> 161.8640734 | I92: ='R4 - Totex'!I90+'R4 - Totex'!I118 -> 170.772852 | J92: ='R4 - Totex'!J90+'R4 - Totex'!J118 -> 183.2203261 | K92: ='R4 - Totex'!K90+'R4 - Totex'!K118 -> 231.7773519
C93: check | D93: =IF(D$5="Actuals",IF(ABS(D91-('R4 - Totex'!D90+'R4 - Totex'!D118))<'RFPR cover'!$F$14,"OK","Error"),"N/A") -> OK | E93: =IF(E$5="Actuals",IF(ABS(E91-('R4 - Totex'!E90+'R4 - Totex'!E118))<'RFPR cover'!$F$14,"OK","Error"),"N/A") -> OK | F93: =IF(F$5="Actuals",IF(ABS(F91-('R4 - Totex'!F90+'R4 - Totex'!F118))<'RFPR cover'!$F$14,"OK","Error"),"N/A") -> OK | G93: =IF(G$5="Actuals",IF(ABS(G91-('R4 - Totex'!G90+'R4 - Totex'!G118))<'RFPR cover'!$F$14,"OK","Error"),"N/A") -> OK | H93: =IF(H$5="Actuals",IF(ABS(H91-('R4 - Totex'!H90+'R4 - Totex'!H118))<'RFPR cover'!$F$14,"OK","Error"),"N/A") -> OK | I93: =IF(I$5="Actuals",IF(ABS(I91-('R4 - Totex'!I90+'R4 - Totex'!I118))<'RFPR cover'!$F$14,"OK","Error"),"N/A") -> OK | J93: =IF(J$5="Actuals",IF(ABS(J91-('R4 - Totex'!J90+'R4 - Totex'!J118))<'RFPR cover'!$F$14,"OK","Error"),"N/A") -> OK | K93: =IF(K$5="Actuals",IF(ABS(K91-('R4 - Totex'!K90+'R4 - Totex'!K118))<'RFPR cover'!$F$14,"OK","Error"),"N/A") -> N/A

Sheet R4 - Totex
A1: R4 - Totex
A2: ='RFPR cover'!C5 -> Cadent-WM
A3: ='RFPR cover'!C7 -> 2020
D5: =IF(D6<='RFPR cover'!$C$7,"Actuals","Forecast") -> Actuals | E5: =IF(E6<='RFPR cover'!$C$7,"Actuals","Forecast") -> Actuals | F5: =IF(F6<='RFPR cover'!$C$7,"Actuals","Forecast") -> Actuals | G5: =IF(G6<='RFPR cover'!$C$7,"Actuals","Forecast") -> Actuals | H5: =IF(H6<='RFPR cover'!$C$7,"Actuals","Forecast") -> Actuals | I5: =IF(I6<='RFPR cover'!$C$7,"Actuals","Forecast") -> Actuals | J5: =IF(J6<='RFPR cover'!$C$7,"Actuals","Forecast") -> Actuals | K5: =IF(K6<='RFPR cover'!$C$7,"Actuals","Forecast") -> Forecast
D6: ='RFPR cover'!$C$13 -> 2014 | E6: =D6+1 -> 2015 | F6: 2016 | G6: 2017 | H6: 2018 | I6: 2019 | J6: 2020 | K6: 2021 | L6: ="Cumulative to "&'RFPR cover'!$C$7 -> Cumulative to 2020 | M6: RIIO-1 period | N6: Enduring Value Appendix in Commentary
B8: Totex per the latest RRP submission
B10: =Data!B48 -> Totex excluding repex
B12: Latest Totex actuals/forecast | C12: ='RFPR cover'!$C$14 -> £m 09/10 | D12: 85.06048157 | E12: 83.81720119 | F12: 77.22051365 | G12: 79.6305177 | H12: 73.84123148 | I12: 79.32698621 | J12: 80.95278972 | K12: 83.52676385 | L12: =SUM(D12:INDEX(D12:K12,0,MATCH('RFPR cover'!$C$7,$D$6:$K$6,0))) -> 559.8497215 | M12: =SUM(D12:K12) -> 643.3764854
B13: Totex allowance including allowed adjustments and uncertainty mechanisms | C13: ='RFPR cover'!$C$14 -> £m 09/10 | D13: 90.74249913 | E13: 91.21860816 | F13: 85.27295341 | G13: 83.72339906 | H13: 86.43510386 | I13: 85.38926879 | J13: 84.20474566 | K13: 78.21100263 | L13: =SUM(D13:INDEX(D13:K13,0,MATCH('RFPR cover'!$C$7,$D$6:$K$6,0))) -> 606.9865781 | M13: =SUM(D13:K13) -> 685.1975807
B14: Totex out(under)performance | C14: ='RFPR cover'!$C$14 -> £m 09/10 | D14: =D13-D12 -> 5.682017563 | E14: 7.401406966 | F14: 8.052439753 | G14: 4.09288136 | H14: 12.59387238 | I14: 6.062282583 | J14: 3.251955942 | K14: -5.315761226 | L14: 47.13685655 | M14: 41.82109532
B16: Funding Adjustment Rate (often referred to as 'sharing factor') | C16: % | D16: =1-INDEX(Data!$D$73:$D$100,MATCH('RFPR cover'!$C$5,Data!$B$73:$B$100,0),0) -> 0.3696 | E16: =1-INDEX(Data!$D$73:$D$100,MATCH('RFPR cover'!$C$5,Data!$B$73:$B$100,0),0) -> 0.3696 | F16: =1-INDEX(Data!$D$73:$D$100,MATCH('RFPR cover'!$C$5,Data!$B$73:$B$100,0),0) -> 0.3696 | G16: =1-INDEX(Data!$D$73:$D$100,MATCH('RFPR cover'!$C$5,Data!$B$73:$B$100,0),0) -> 0.3696 | H16: =1-INDEX(Data!$D$73:$D$100,MATCH('RFPR cover'!$C$5,Data!$B$73:$B$100,0),0) -> 0.3696 | I16: =1-INDEX(Data!$D$73:$D$100,MATCH('RFPR cover'!$C$5,Data!$B$73:$B$100,0),0) -> 0.3696 | J16: =1-INDEX(Data!$D$73:$D$100,MATCH('RFPR cover'!$C$5,Data!$B$73:$B$100,0),0) -> 0.3696 | K16: =1-INDEX(Data!$D$73:$D$100,MATCH('RFPR cover'!$C$5,Data!$B$73:$B$100,0),0) -> 0.3696
B18: Customer share of out(under) performance | C18: ='RFPR cover'!$C$14 -> £m 09/10 | D18: =D14*D16 -> 2.100073691 | E18: 2.735560014 | F18: 2.976181733 | G18: 1.512728951 | H18: 4.654695232 | I18: 2.240619643 | J18: 1.201922916 | K18: -1.964705349 | L18: =SUM(D18:INDEX(D18:K18,0,MATCH('RFPR cover'!$C$7,$D$6:$K$6,0))) -> 17.42178218 | M18: =SUM(D18:K18) -> 15.45707683
B19: NWO share of performance | C19: ='RFPR cover'!$C$14 -> £m 09/10 | D19: =D14*(1-D16) -> 3.581943872 | E19: 4.665846951 | F19: 5.07625802 | G19: 2.580152409 | H19: 7.939177149 | I19: 3.82166294 | J19: 2.050033026 | K19: -3.351055877 | L19: =SUM(D19:INDEX(D19:K19,0,MATCH('RFPR cover'!$C$7,$D$6:$K$6,0))) -> 29.71507437 | M19: =SUM(D19:K19) -> 26.36401849
B21: Enduring Value adjustments to Totex performance
A22: a | B22: Gas Holders | C22: ='RFPR cover'!$C$14 -> £m 09/10 | D22: 1.925 | E22: -0.275 | F22: -0.275 | G22: -0.275 | H22: -0.275 | I22: -0.275 | J22: -0.275 | K22: -0.275 | L22: =SUM(D22:INDEX(D22:K22,0,MATCH('RFPR cover'!$C$7,$D$6:$K$6,0))) -> 0.275 | M22: =SUM(D22:K22) -> 4.440892099e-16
A23: b | B23: Capex Enduring Value | C23: ='RFPR cover'!$C$14 -> £m 09/10 | D23: -6.228986457 | E23: -5.855507244 | F23: -2.89499758 | G23: 0.5788550483 | H23: -4.424115354 | I23: 0.06808547215 | J23: 2.71698161 | K23: 16.0396845 | L23: =SUM(D23:INDEX(D23:K23,0,MATCH('RFPR cover'!$C$7,$D$6:$K$6,0))) -> -16.0396845 | M23: 3.197442311e-14
A24: c | B24: [Enduring Value adjustment] | C24: ='RFPR cover'!$C$14 -> £m 09/10 | D24: 0 | E24: 0 | F24: 0 | G24: 0 | H24: 0 | I24: 0 | J24: 0 | K24: 0 | L24: =SUM(D24:INDEX(D24:K24,0,MATCH('RFPR cover'!$C$7,$D$6:$K$6,0))) -> 0 | M24: 0
A25: d | B25: [Enduring Value adjustment] | C25: ='RFPR cover'!$C$14 -> £m 09/10 | D25: 0 | E25: 0 | F25: 0 | G25: 0 | H25: 0 | I25: 0 | J25: 0 | K25: 0 | L25: =SUM(D25:INDEX(D25:K25,0,MATCH('RFPR cover'!$C$7,$D$6:$K$6,0))) -> 0 | M25: 0
A26: e | B26: [Enduring Value adjustment] | C26: ='RFPR cover'!$C$14 -> £m 09/10 | D26: 0 | E26: 0 | F26: 0 | G26: 0 | H26: 0 | I26: 0 | J26: 0 | K26: 0 | L26: =SUM(D26:INDEX(D26:K26,0,MATCH('RFPR cover'!$C$7,$D$6:$K$6,0))) -> 0 | M26: 0
A27: f | B27: [Enduring Value adjustment] | C27: ='RFPR cover'!$C$14 -> £m 09/10 | D27: 0 | E27: 0 | F27: 0 | G27: 0 | H27: 0 | I27: 0 | J27: 0 | K27: 0 | L27: =SUM(D27:INDEX(D27:K27,0,MATCH('RFPR cover'!$C$7,$D$6:$K$6,0))) -> 0 | M27: 0
B28: Total enduring value adjustments | C28: ='RFPR cover'!$C$14 -> £m 09/10 | D28: =SUM(D22:D27) -> -4.303986457 | E28: -6.130507244 | F28: -3.16999758 | G28: 0.3038550483 | H28: -4.699115354 | I28: -0.2069145279 | J28: 2.44198161 | K28: 15.7646845 | L28: =SUM(D28:INDEX(D28:K28,0,MATCH('RFPR cover'!$C$7,$D$6:$K$6,0))) -> -15.7646845 | M28: 3.375077995e-14
B30: Enduring Value: Customer share of performance | C30: ='RFPR cover'!$C$14 -> £m 09/10 | D30: =D28*D16 -> -1.590753395 | E30: -2.265835477 | F30: -1.171631105 | G30: 0.1123048259 | H30: -1.736793035 | I30: -0.07647560949 | J30: 0.902556403 | K30: 5.826627393 | L30: =SUM(D30:INDEX(D30:K30,0,MATCH('RFPR cover'!$C$7,$D$6:$K$6,0))) -> -5.826627393 | M30: =SUM(D30:K30) -> 1.154631946e-14
B31: Enduring Value: NWO share of performance | C31: ='RFPR cover'!$C$14 -> £m 09/10 | D31: =D28*(1-D16) -> -2.713233063 | E31: -3.864671767 | F31: -1.998366474 | G31: 0.1915502225 | H31: -2.962322319 | I31: -0.1304389184 | J31: 1.539425207 | K31: 9.938057112 | L31: =SUM(D31:INDEX(D31:K31,0,MATCH('RFPR cover'!$C$7,$D$6:$K$6,0))) -> -9.938057112 | M31: =SUM(D31:K31) -> 2.131628207e-14
B33: Total out(under) performance (including enduring value adjustments)
B34: Customer share of performance | C34: ='RFPR cover'!$C$14 -> £m 09/10 | D34: =D18+D30 -> 0.5093202967 | E34: 0.4697245371 | F34: 1.804550627 | G34: 1.625033776 | H34: 2.917902197 | I34: 2.164144033 | J34: 2.104479319 | K34: 3.861922044 | L34: =SUM(D34:INDEX(D34:K34,0,MATCH('RFPR cover'!$C$7,$D$6:$K$6,0))) -> 11.59515479 | M34: =SUM(D34:K34) -> 15.45707683
B35: NWO share of performance | C35: ='RFPR cover'!$C$14 -> £m 09/10 | D35: 0.8687108091 | E35: 0.8011751844 | F35: 3.077891546 | G35: 2.771702632 | H35: 4.97685483 | I35: 3.691224022 | J35: 3.589458233 | K35: 6.587001235 | L35: =SUM(D35:INDEX(D35:K35,0,MATCH('RFPR cover'!$C$7,$D$6:$K$6,0))) -> 19.77701726 | M35: =SUM(D35:K35) -> 26.36401849
B36: Total | C36: ='RFPR cover'!$C$14 -> £m 09/10 | D36: =SUM(D34:D35) -> 1.378031106 | E36: 1.270899721 | F36: 4.882442173 | G36: 4.396736408 | H36: 7.894757027 | I36: 5.855368055 | J36: 5.693937552 | K36: 10.44892328 | L36: =SUM(D36:INDEX(D36:K36,0,MATCH('RFPR cover'!$C$7,$D$6:$K$6,0))) -> 31.37217204 | M36: =SUM(D36:K36) -> 41.82109532
B38: =Data!B51 -> Repex
B40: Latest Totex actuals/forecast | C40: ='RFPR cover'!$C$14 -> £m 09/10 | D40: 51.59062188 | E40: 44.65796234 | F40: 67.30278897 | G40: 59.16739503 | H40: 53.20099911 | I40: 50.73339318 | J40: 55.06643703 | K40: 84.67169522 | L40: =SUM(D40:INDEX(D40:K40,0,MATCH('RFPR cover'!$C$7,$D$6:$K$6,0))) -> 381.7195976 | M40: =SUM(D40:K40) -> 466.3912928
B41: Totex allowance including allowed adjustments and uncertainty mechanisms | C41: ='RFPR cover'!$C$14 -> £m 09/10 | D41: 69.54604351 | E41: 69.04687766 | F41: 69.40619954 | G41: 69.28097172 | H41: 69.53221875 | I41: 68.54079784 | J41: 71.42503555 | K41: 71.60948012 | L41: =SUM(D41:INDEX(D41:K41,0,MATCH('RFPR cover'!$C$7,$D$6:$K$6,0))) -> 486.7781446 | M41: =SUM(D41:K41) -> 558.3876247
B42: Totex out(under)performance | C42: ='RFPR cover'!$C$14 -> £m 09/10 | D42: =D41-D40 -> 17.95542163 | E42: 24.38891532 | F42: 2.103410563 | G42: 10.11357668 | H42: 16.33121964 | I42: 17.80740466 | J42: 16.35859852 | K42: -13.06221509 | L42: 105.058547 | M42: 91.99633193
B44: Funding Adjustment Rate (often referred to as 'sharing factor') | C44: % | D44: =1-INDEX(Data!$D$73:$D$100,MATCH('RFPR cover'!$C$5,Data!$B$73:$B$100,0),0) -> 0.3696 | E44: =1-INDEX(Data!$D$73:$D$100,MATCH('RFPR cover'!$C$5,Data!$B$73:$B$100,0),0) -> 0.3696 | F44: =1-INDEX(Data!$D$73:$D$100,MATCH('RFPR cover'!$C$5,Data!$B$73:$B$100,0),0) -> 0.3696 | G44: =1-INDEX(Data!$D$73:$D$100,MATCH('RFPR cover'!$C$5,Data!$B$73:$B$100,0),0) -> 0.3696 | H44: =1-INDEX(Data!$D$73:$D$100,MATCH('RFPR cover'!$C$5,Data!$B$73:$B$100,0),0) -> 0.3696 | I44: =1-INDEX(Data!$D$73:$D$100,MATCH('RFPR cover'!$C$5,Data!$B$73:$B$100,0),0) -> 0.3696 | J44: =1-INDEX(Data!$D$73:$D$100,MATCH('RFPR cover'!$C$5,Data!$B$73:$B$100,0),0) -> 0.3696 | K44: =1-INDEX(Data!$D$73:$D$100,MATCH('RFPR cover'!$C$5,Data!$B$73:$B$100,0),0) -> 0.3696
B46: Customer share of out(under) performance | C46: ='RFPR cover'!$C$14 -> £m 09/10 | D46: =D42*D44 -> 6.636323834 | E46: 9.014143103 | F46: 0.7774205442 | G46: 3.737977942 | H46: 6.03601878 | I46: 6.581616764 | J46: 6.046138014 | K46: -4.827794698 | L46: =SUM(D46:INDEX(D46:K46,0,MATCH('RFPR cover'!$C$7,$D$6:$K$6,0))) -> 38.82963898 | M46: =SUM(D46:K46) -> 34.00184428
B47: NWO share of performance | C47: ='RFPR cover'!$C$14 -> £m 09/10 | D47: =D42*(1-D44) -> 11.31909779 | E47: 15.37477222 | F47: 1.325990019 | G47: 6.37559874 | H47: 10.29520086 | I47: 11.2257879 | J47: 10.31246051 | K47: -8.234420394 | L47: =SUM(D47:INDEX(D47:K47,0,MATCH('RFPR cover'!$C$7,$D$6:$K$6,0))) -> 66.22890804 | M47: =SUM(D47:K47) -> 57.99448765
B49: Enduring Value adjustments to Totex performance
A50: a | B50: Repex Enduring Value | C50: ='RFPR cover'!$C$14 -> £m 09/10 | D50: -7.271585126 | E50: -29.05877699 | F50: 10.63110247 | G50: 5.070319268 | H50: -6.015387712 | I50: -6.82441705 | J50: -9.797859275 | K50: 43.26660441 | L50: =SUM(D50:INDEX(D50:K50,0,MATCH('RFPR cover'!$C$7,$D$6:$K$6,0))) -> -43.26660441 | M50: =SUM(D50:K50) -> 9.237055565e-14
A51: b | B51: [Enduring Value adjustment] | C51: ='RFPR cover'!$C$14 -> £m 09/10 | D51: 0 | E51: 0 | F51: 0 | G51: 0 | H51: 0 | I51: 0 | J51: 0 | K51: 0 | L51: =SUM(D51:INDEX(D51:K51,0,MATCH('RFPR cover'!$C$7,$D$6:$K$6,0))) -> 0 | M51: 0
A52: c | B52: [Enduring Value adjustment] | C52: ='RFPR cover'!$C$14 -> £m 09/10 | D52: 0 | E52: 0 | F52: 0 | G52: 0 | H52: 0 | I52: 0 | J52: 0 | K52: 0 | L52: =SUM(D52:INDEX(D52:K52,0,MATCH('RFPR cover'!$C$7,$D$6:$K$6,0))) -> 0 | M52: 0
A53: d | B53: [Enduring Value adjustment] | C53: ='RFPR cover'!$C$14 -> £m 09/10 | D53: 0 | E53: 0 | F53: 0 | G53: 0 | H53: 0 | I53: 0 | J53: 0 | K53: 0 | L53: =SUM(D53:INDEX(D53:K53,0,MATCH('RFPR cover'!$C$7,$D$6:$K$6,0))) -> 0 | M53: 0
A54: e | B54: [Enduring Value adjustment] | C54: ='RFPR cover'!$C$14 -> £m 09/10 | D54: 0 | E54: 0 | F54: 0 | G54: 0 | H54: 0 | I54: 0 | J54: 0 | K54: 0 | L54: =SUM(D54:INDEX(D54:K54,0,MATCH('RFPR cover'!$C$7,$D$6:$K$6,0))) -> 0 | M54: 0
A55: f | B55: [Enduring Value adjustment] | C55: ='RFPR cover'!$C$14 -> £m 09/10 | D55: 0 | E55: 0 | F55: 0 | G55: 0 | H55: 0 | I55: 0 | J55: 0 | K55: 0 | L55: =SUM(D55:INDEX(D55:K55,0,MATCH('RFPR cover'!$C$7,$D$6:$K$6,0))) -> 0 | M55: 0
B56: Total enduring value adjustments | C56: ='RFPR cover'!$C$14 -> £m 09/10 | D56: =SUM(D50:D55) -> -7.271585126 | E56: -29.05877699 | F56: 10.63110247 | G56: 5.070319268 | H56: -6.015387712 | I56: -6.82441705 | J56: -9.797859275 | K56: 43.26660441 | L56: =SUM(D56:INDEX(D56:K56,0,MATCH('RFPR cover'!$C$7,$D$6:$K$6,0))) -> -43.26660441 | M56: 9.237055565e-14
B58: Enduring Value: Customer share of performance | C58: ='RFPR cover'!$C$14 -> £m 09/10 | D58: =D56*D44 -> -2.687577863 | E58: -10.74012398 | F58: 3.929255474 | G58: 1.873990001 | H58: -2.223287298 | I58: -2.522304542 | J58: -3.621288788 | K58: 15.99133699 | L58: =SUM(D58:INDEX(D58:K58,0,MATCH('RFPR cover'!$C$7,$D$6:$K$6,0))) -> -15.99133699 | M58: =SUM(D58:K58) -> 3.197442311e-14
B59: Enduring Value: NWO share of performance | C59: ='RFPR cover'!$C$14 -> £m 09/10 | D59: =D56*(1-D44) -> -4.584007264 | E59: -18.31865301 | F59: 6.701847 | G59: 3.196329266 | H59: -3.792100413 | I59: -4.302112508 | J59: -6.176570487 | K59: 27.27526742 | L59: =SUM(D59:INDEX(D59:K59,0,MATCH('RFPR cover'!$C$7,$D$6:$K$6,0))) -> -27.27526742 | M59: =SUM(D59:K59) -> 5.684341886e-14
B61: Total out(under) performance (including enduring value adjustments)
B62: Customer share of performance | C62: ='RFPR cover'!$C$14 -> £m 09/10 | D62: =D46+D58 -> 3.948745971 | E62: -1.725980872 | F62: 4.706676019 | G62: 5.611967943 | H62: 3.812731482 | I62: 4.059312222 | J62: 2.424849226 | K62: 11.16354229 | L62: =SUM(D62:INDEX(D62:K62,0,MATCH('RFPR cover'!$C$7,$D$6:$K$6,0))) -> 22.83830199 | M62: =SUM(D62:K62) -> 34.00184428
B63: NWO share of performance | C63: ='RFPR cover'!$C$14 -> £m 09/10 | D63: 6.735090531 | E63: -2.943880795 | F63: 8.027837019 | G63: 9.571928007 | H63: 6.50310045 | I63: 6.923675392 | J63: 4.135890022 | K63: 19.04084703 | L63: =SUM(D63:INDEX(D63:K63,0,MATCH('RFPR cover'!$C$7,$D$6:$K$6,0))) -> 38.95364062 | M63: =SUM(D63:K63) -> 57.99448765
B64: Total | C64: ='RFPR cover'!$C$14 -> £m 09/10 | D64: =SUM(D62:D63) -> 10.6838365 | E64: -4.669861667 | F64: 12.73451304 | G64: 15.18389595 | H64: 10.31583193 | I64: 10.98298761 | J64: 6.560739248 | K64: 30.20438932 | L64: =SUM(D64:INDEX(D64:K64,0,MATCH('RFPR cover'!$C$7,$D$6:$K$6,0))) -> 61.79194262 | M64: =SUM(D64:K64) -> 91.99633193
B66: Totex Summary
B68: Total out(under) performance (including enduring value adjustments)
B69: Customer share of performance | C69: ='RFPR cover'!$C$14 -> £m 09/10 | D69: =D34+D62 -> 4.458066268 | E69: -1.256256335 | F69: 6.511226646 | G69: 7.23700172 | H69: 6.730633679 | I69: 6.223456255 | J69: 4.529328545 | K69: 15.02546434 | L69: =SUM(D69:INDEX(D69:K69,0,MATCH('RFPR cover'!$C$7,$D$6:$K$6,0))) -> 34.43345678 | M69: =SUM(D69:K69) -> 49.45892111
B70: NWO share of performance | C70: ='RFPR cover'!$C$14 -> £m 09/10 | D70: 7.60380134 | E70: -2.14270561 | F70: 11.10572856 | G70: 12.34363064 | H70: 11.47995528 | I70: 10.61489941 | J70: 7.725348255 | K70: 25.62784826 | L70: =SUM(D70:INDEX(D70:K70,0,MATCH('RFPR cover'!$C$7,$D$6:$K$6,0))) -> 58.73065788 | M70: =SUM(D70:K70) -> 84.35850614
B71: Total | C71: ='RFPR cover'!$C$14 -> £m 09/10 | D71: =SUM(D69:D70) -> 12.06186761 | E71: -3.398961945 | F71: 17.61695521 | G71: 19.58063236 | H71: 18.21058896 | I71: 16.83835567 | J71: 12.2546768 | K71: 40.6533126 | L71: =SUM(D71:INDEX(D71:K71,0,MATCH('RFPR cover'!$C$7,$D$6:$K$6,0))) -> 93.16411466 | M71: =SUM(D71:K71) -> 133.8174273
B74: IQI Additional Income
B75: Additional Income is Pre-tax for Fast Track companies and Post-tax for Slow Track.
B77: IQI Additional Income per PCFM | C77: ='RFPR cover'!$C$14 -> £m 09/10 | D77: =INDEX(Data!$C$119:$L$146,MATCH('RFPR cover'!$C$5,Data!$B$119:$B$146,0),MATCH('R4 - Totex'!D$6,Data!$C$118:$L$118,0)) -> 0.8232500229 | E77: =INDEX(Data!$C$119:$L$146,MATCH('RFPR cover'!$C$5,Data!$B$119:$B$146,0),MATCH('R4 - Totex'!E$6,Data!$C$118:$L$118,0)) -> 0.8266357128 | F77: =INDEX(Data!$C$119:$L$146,MATCH('RFPR cover'!$C$5,Data!$B$119:$B$146,0),MATCH('R4 - Totex'!F$6,Data!$C$118:$L$118,0)) -> 0.796405046 | G77: =INDEX(Data!$C$119:$L$146,MATCH('RFPR cover'!$C$5,Data!$B$119:$B$146,0),MATCH('R4 - Totex'!G$6,Data!$C$118:$L$118,0)) -> 0.7875702145 | H77: =INDEX(Data!$C$119:$L$146,MATCH('RFPR cover'!$C$5,Data!$B$119:$B$146,0),MATCH('R4 - Totex'!H$6,Data!$C$118:$L$118,0)) -> 0.8113325286 | I77: =INDEX(Data!$C$119:$L$146,MATCH('RFPR cover'!$C$5,Data!$B$119:$B$146,0),MATCH('R4 - Totex'!I$6,Data!$C$118:$L$118,0)) -> 0.8106422878 | J77: =INDEX(Data!$C$119:$L$146,MATCH('RFPR cover'!$C$5,Data!$B$119:$B$146,0),MATCH('R4 - Totex'!J$6,Data!$C$118:$L$118,0)) -> 0.8090036895 | K77: =INDEX(Data!$C$119:$L$146,MATCH('RFPR cover'!$C$5,Data!$B$119:$B$146,0),MATCH('R4 - Totex'!K$6,Data!$C$118:$L$118,0)) -> 0.7804327697 | L77: =SUM(D77:INDEX(D77:K77,0,MATCH('RFPR cover'!$C$7,$D$6:$K$6,0))) -> 5.664839502 | M77: =SUM(D77:K77) -> 6.445272272
B78: Corporation tax rate when recognised in allowed revenue | C78: % | D78: =IF(INDEX(Data!$J$73:$J$100,MATCH('RFPR cover'!$C$5,Data!$B$73:$B$100,0),0)="Pre",INDEX(Data!$G$18:$G$27,MATCH('R4 - Totex'!D$6,Data!$C$18:$C$27,0),0),"n/a") -> 0.23 | E78: =IF(INDEX(Data!$J$73:$J$100,MATCH('RFPR cover'!$C$5,Data!$B$73:$B$100,0),0)="Pre",INDEX(Data!$G$18:$G$27,MATCH('R4 - Totex'!E$6,Data!$C$18:$C$27,0),0),"n/a") -> 0.21 | F78: =IF(INDEX(Data!$J$73:$J$100,MATCH('RFPR cover'!$C$5,Data!$B$73:$B$100,0),0)="Pre",INDEX(Data!$G$18:$G$27,MATCH('R4 - Totex'!F$6,Data!$C$18:$C$27,0),0),"n/a") -> 0.2 | G78: =IF(INDEX(Data!$J$73:$J$100,MATCH('RFPR cover'!$C$5,Data!$B$73:$B$100,0),0)="Pre",INDEX(Data!$G$18:$G$27,MATCH('R4 - Totex'!G$6,Data!$C$18:$C$27,0),0),"n/a") -> 0.2 | H78: =IF(INDEX(Data!$J$73:$J$100,MATCH('RFPR cover'!$C$5,Data!$B$73:$B$100,0),0)="Pre",INDEX(Data!$G$18:$G$27,MATCH('R4 - Totex'!H$6,Data!$C$18:$C$27,0),0),"n/a") -> 0.19 | I78: =IF(INDEX(Data!$J$73:$J$100,MATCH('RFPR cover'!$C$5,Data!$B$73:$B$100,0),0)="Pre",INDEX(Data!$G$18:$G$27,MATCH('R4 - Totex'!I$6,Data!$C$18:$C$27,0),0),"n/a") -> 0.19 | J78: =IF(INDEX(Data!$J$73:$J$100,MATCH('RFPR cover'!$C$5,Data!$B$73:$B$100,0),0)="Pre",INDEX(Data!$G$18:$G$27,MATCH('R4 - Totex'!J$6,Data!$C$18:$C$27,0),0),"n/a") -> 0.19 | K78: =IF(INDEX(Data!$J$73:$J$100,MATCH('RFPR cover'!$C$5,Data!$B$73:$B$100,0),0)="Pre",INDEX(Data!$G$18:$G$27,MATCH('R4 - Totex'!K$6,Data!$C$18:$C$27,0),0),"n/a") -> 0.19
B79: Post tax | C79: ='RFPR cover'!$C$14 -> £m 09/10 | D79: =IF(ISNUMBER(D78),D77*(1-D78),D77) -> 0.6339025177 | E79: 0.6530422131 | F79: 0.6371240368 | G79: 0.6300561716 | H79: 0.6571793482 | I79: 0.6566202532 | J79: 0.6552929885 | K79: 0.6321505434 | L79: =SUM(D79:INDEX(D79:K79,0,MATCH('RFPR cover'!$C$7,$D$6:$K$6,0))) -> 4.523217529 | M79: =SUM(D79:K79) -> 5.155368072
B84: £m Nominal
B86: =Data!B34 -> Financial Year Average RPI (RPIt) | C86: Index | D86: =Data!C$34 -> 1.166689067 | E86: =Data!D$34 -> 1.189556327 | F86: =Data!E$34 -> 1.202375711 | G86: =Data!F$34 -> 1.228139614 | H86: =Data!G$34 -> 1.274096595 | I86: =Data!H$34 -> 1.313027479 | J86: =Data!I$34 -> 1.347017848 | K86: =Data!J$34 -> 1.377999258
B88: =B10 -> Totex excluding repex
B90: Latest Totex actuals/forecast | C90: £m nominal | D90: =D12*D$86 -> 99.23913391 | E90: 99.70528199 | F90: 92.84807 | G90: 97.79739323 | H90: 94.08086159 | I90: 104.1585127 | J90: 109.0448526 | K90: 115.0998187 | L90: =SUM(D90:INDEX(D90:K90,0,MATCH('RFPR cover'!$C$7,$D$6:$K$6,0))) -> 696.874106 | M90: =SUM(D90:K90) -> 811.9739247
B91: Totex allowance including forecast allowed adjustments and uncertainty mechanisms | C91: £m nominal | D91: 105.8682817 | E91: 108.5096725 | F91: 102.530128 | G91: 102.824023 | H91: 110.1266715 | I91: 112.1184563 | J91: 113.4252953 | K91: 107.7747036 | L91: =SUM(D91:INDEX(D91:K91,0,MATCH('RFPR cover'!$C$7,$D$6:$K$6,0))) -> 755.4025282 | M91: =SUM(D91:K91) -> 863.1772318
B92: Totex out(under)performance | C92: £m nominal | D92: =D91-D90 -> 6.629147772 | E92: 8.804390484 | F92: 9.682057972 | G92: 5.026629732 | H92: 16.04580992 | I92: 7.959943615 | J92: 4.380442695 | K92: -7.325115028 | L92: 58.52842219 | M92: 51.20330716
B94: Funding Adjustment Rate (often referred to as 'sharing factor') | C94: % | D94: =1-INDEX(Data!$D$73:$D$100,MATCH('RFPR cover'!$C$5,Data!$B$73:$B$100,0),0) -> 0.3696 | E94: =1-INDEX(Data!$D$73:$D$100,MATCH('RFPR cover'!$C$5,Data!$B$73:$B$100,0),0) -> 0.3696 | F94: =1-INDEX(Data!$D$73:$D$100,MATCH('RFPR cover'!$C$5,Data!$B$73:$B$100,0),0) -> 0.3696 | G94: =1-INDEX(Data!$D$73:$D$100,MATCH('RFPR cover'!$C$5,Data!$B$73:$B$100,0),0) -> 0.3696 | H94: =1-INDEX(Data!$D$73:$D$100,MATCH('RFPR cover'!$C$5,Data!$B$73:$B$100,0),0) -> 0.3696 | I94: =1-INDEX(Data!$D$73:$D$100,MATCH('RFPR cover'!$C$5,Data!$B$73:$B$100,0),0) -> 0.3696 | J94: =1-INDEX(Data!$D$73:$D$100,MATCH('RFPR cover'!$C$5,Data!$B$73:$B$100,0),0) -> 0.3696 | K94: =1-INDEX(Data!$D$73:$D$100,MATCH('RFPR cover'!$C$5,Data!$B$73:$B$100,0),0) -> 0.3696
B96: Customer share of out(under) performance | C96: £m nominal | D96: =D92*D94 -> 2.450133016 | E96: 3.254102723 | F96: 3.578488626 | G96: 1.857842349 | H96: 5.930531346 | I96: 2.94199516 | J96: 1.61901162 | K96: -2.707362514 | L96: =SUM(D96:INDEX(D96:K96,0,MATCH('RFPR cover'!$C$7,$D$6:$K$6,0))) -> 21.63210484 | M96: =SUM(D96:K96) -> 18.92474233
B97: NWO share of performance | C97: £m nominal | D97: =D92*(1-D94) -> 4.179014755 | E97: 5.550287761 | F97: 6.103569345 | G97: 3.168787383 | H97: 10.11527857 | I97: 5.017948455 | J97: 2.761431075 | K97: -4.617752514 | L97: =SUM(D97:INDEX(D97:K97,0,MATCH('RFPR cover'!$C$7,$D$6:$K$6,0))) -> 36.89631735 | M97: =SUM(D97:K97) -> 32.27856483
B99: Enduring Value adjustments to Totex performance
A100: a | B100: =B22 -> Gas Holders | C100: £m nominal | D100: =D22*D$86 -> 2.245876455 | E100: -0.3271279899 | F100: -0.3306533205 | G100: -0.3377383937 | H100: -0.3503765636 | I100: -0.3610825566 | J100: -0.3704299082 | K100: -0.3789497961 | L100: =SUM(D100:INDEX(D100:K100,0,MATCH('RFPR cover'!$C$7,$D$6:$K$6,0))) -> 0.1684677221 | M100: =SUM(D100:K100) -> -0.210482074
A101: b | B101: Capex Enduring Value | C101: £m nominal | D101: -7.267290401 | E101: -6.96545569 | F101: -3.480874773 | G101: 0.7109148154 | H101: -5.636750308 | I101: 0.08939809583 | J101: 3.659822721 | K101: 22.10267335 | L101: =SUM(D101:INDEX(D101:K101,0,MATCH('RFPR cover'!$C$7,$D$6:$K$6,0))) -> -18.89023554 | M101: 3.212437814
A102: c | B102: [Enduring Value adjustment] | C102: £m nominal | D102: 0 | E102: 0 | F102: 0 | G102: 0 | H102: 0 | I102: 0 | J102: 0 | K102: 0 | L102: =SUM(D102:INDEX(D102:K102,0,MATCH('RFPR cover'!$C$7,$D$6:$K$6,0))) -> 0 | M102: 0
A103: d | B103: [Enduring Value adjustment] | C103: £m nominal | D103: 0 | E103: 0 | F103: 0 | G103: 0 | H103: 0 | I103: 0 | J103: 0 | K103: 0 | L103: =SUM(D103:INDEX(D103:K103,0,MATCH('RFPR cover'!$C$7,$D$6:$K$6,0))) -> 0 | M103: 0
A104: e | B104: [Enduring Value adjustment] | C104: £m nominal | D104: 0 | E104: 0 | F104: 0 | G104: 0 | H104: 0 | I104: 0 | J104: 0 | K104: 0 | L104: =SUM(D104:INDEX(D104:K104,0,MATCH('RFPR cover'!$C$7,$D$6:$K$6,0))) -> 0 | M104: 0
A105: f | B105: [Enduring Value adjustment] | C105: £m nominal | D105: 0 | E105: 0 | F105: 0 | G105: 0 | H105: 0 | I105: 0 | J105: 0 | K105: 0 | L105: =SUM(D105:INDEX(D105:K105,0,MATCH('RFPR cover'!$C$7,$D$6:$K$6,0))) -> 0 | M105: 0
B106: Total enduring value adjustments | C106: £m nominal | D106: =SUM(D100:D105) -> -5.021413946 | E106: -7.29258368 | F106: -3.811528093 | G106: 0.3731764216 | H106: -5.987126872 | I106: -0.2716844608 | J106: 3.289392813 | K106: 21.72372356 | L106: =SUM(D106:INDEX(D106:K106,0,MATCH('RFPR cover'!$C$7,$D$6:$K$6,0))) -> -18.72176782 | M106: 3.001955741
B108: Enduring Value: Customer share of performance | C108: £m nominal | D108: =D106*D94 -> -1.855914594 | E108: -2.695338928 | F108: -1.408740783 | G108: 0.1379260054 | H108: -2.212842092 | I108: -0.1004145767 | J108: 1.215759584 | K108: 8.029088227 | L108: =SUM(D108:INDEX(D108:K108,0,MATCH('RFPR cover'!$C$7,$D$6:$K$6,0))) -> -6.919565385 | M108: =SUM(D108:K108) -> 1.109522842
B109: Enduring Value: NWO share of performance | C109: £m nominal | D109: =D106*(1-D94) -> -3.165499352 | E109: -4.597244752 | F109: -2.40278731 | G109: 0.2352504162 | H109: -3.77428478 | I109: -0.1712698841 | J109: 2.073633229 | K109: 13.69463533 | L109: =SUM(D109:INDEX(D109:K109,0,MATCH('RFPR cover'!$C$7,$D$6:$K$6,0))) -> -11.80220243 | M109: =SUM(D109:K109) -> 1.892432899
B111: Total out(under) performance (including enduring value adjustments)
B112: Customer share of performance | C112: £m nominal | D112: =D96+D108 -> 0.594218422 | E112: 0.558763795 | F112: 2.169747843 | G112: 1.995768354 | H112: 3.717689254 | I112: 2.841580583 | J112: 2.834771204 | K112: 5.321725712 | L112: =SUM(D112:INDEX(D112:K112,0,MATCH('RFPR cover'!$C$7,$D$6:$K$6,0))) -> 14.71253946 | M112: =SUM(D112:K112) -> 20.03426517
B113: NWO share of performance | C113: £m nominal | D113: 1.013515404 | E113: 0.9530430096 | F113: 3.700782035 | G113: 3.404037799 | H113: 6.340993793 | I113: 4.846678571 | J113: 4.835064304 | K113: 9.076882817 | L113: =SUM(D113:INDEX(D113:K113,0,MATCH('RFPR cover'!$C$7,$D$6:$K$6,0))) -> 25.09411492 | M113: =SUM(D113:K113) -> 34.17099773
B114: Total | C114: £m nominal | D114: =SUM(D112:D113) -> 1.607733826 | E114: 1.511806805 | F114: 5.870529878 | G114: 5.399806153 | H114: 10.05868305 | I114: 7.688259154 | J114: 7.669835508 | K114: 14.39860853 | L114: =SUM(D114:INDEX(D114:K114,0,MATCH('RFPR cover'!$C$7,$D$6:$K$6,0))) -> 39.80665437 | M114: =SUM(D114:K114) -> 54.2052629
B116: =B38 -> Repex
B118: Latest Totex actuals/forecast | C118: £m nominal | D118: =D40*D$86 -> 60.19021453 | E118: 53.12316165 | F118: 80.92323873 | G118: 72.66582167 | H118: 67.78321181 | I118: 66.61433933 | J118: 74.1754735 | K118: 116.6775332 | L118: =SUM(D118:INDEX(D118:K118,0,MATCH('RFPR cover'!$C$7,$D$6:$K$6,0))) -> 475.4754612 | M118: =SUM(D118:K118) -> 592.1529945
B119: Totex allowance including forecast allowed adjustments and uncertainty mechanisms | C119: £m nominal | D119: 81.13860864 | E119: 82.13515018 | F119: 83.4523285 | G119: 85.08670583 | H119: 88.59076315 | I119: 89.99595098 | J119: 96.21079768 | K119: 98.67781051 | L119: =SUM(D119:INDEX(D119:K119,0,MATCH('RFPR cover'!$C$7,$D$6:$K$6,0))) -> 606.610305 | M119: =SUM(D119:K119) -> 705.2881155
B120: Totex out(under)performance | C120: £m nominal | D120: =D119-D118 -> 20.94839411 | E120: 29.01198853 | F120: 2.529089771 | G120: 12.42088416 | H120: 20.80755134 | I120: 23.38161165 | J120: 22.03532418 | K120: -17.99972271 | L120: 131.1348437 | M120: 113.135121
B122: Funding Adjustment Rate (often referred to as 'sharing factor') | C122: % | D122: =1-INDEX(Data!$D$73:$D$100,MATCH('RFPR cover'!$C$5,Data!$B$73:$B$100,0),0) -> 0.3696 | E122: =1-INDEX(Data!$D$73:$D$100,MATCH('RFPR cover'!$C$5,Data!$B$73:$B$100,0),0) -> 0.3696 | F122: =1-INDEX(Data!$D$73:$D$100,MATCH('RFPR cover'!$C$5,Data!$B$73:$B$100,0),0) -> 0.3696 | G122: =1-INDEX(Data!$D$73:$D$100,MATCH('RFPR cover'!$C$5,Data!$B$73:$B$100,0),0) -> 0.3696 | H122: =1-INDEX(Data!$D$73:$D$100,MATCH('RFPR cover'!$C$5,Data!$B$73:$B$100,0),0) -> 0.3696 | I122: =1-INDEX(Data!$D$73:$D$100,MATCH('RFPR cover'!$C$5,Data!$B$73:$B$100,0),0) -> 0.3696 | J122: =1-INDEX(Data!$D$73:$D$100,MATCH('RFPR cover'!$C$5,Data!$B$73:$B$100,0),0) -> 0.3696 | K122: =1-INDEX(Data!$D$73:$D$100,MATCH('RFPR cover'!$C$5,Data!$B$73:$B$100,0),0) -> 0.3696
B124: Customer share of out(under) performance | C124: £m nominal | D124: =D120*D122 -> 7.742526465 | E124: 10.72283096 | F124: 0.9347515795 | G124: 4.590758785 | H124: 7.690470975 | I124: 8.641843665 | J124: 8.144255816 | K124: -6.652697514 | L124: =SUM(D124:INDEX(D124:K124,0,MATCH('RFPR cover'!$C$7,$D$6:$K$6,0))) -> 48.46743825 | M124: =SUM(D124:K124) -> 41.81474073
B125: NO share of performance | C125: £m nominal | D125: =D120*(1-D122) -> 13.20586765 | E125: 18.28915757 | F125: 1.594338192 | G125: 7.830125373 | H125: 13.11708036 | I125: 14.73976798 | J125: 13.89106836 | K125: -11.3470252 | L125: =SUM(D125:INDEX(D125:K125,0,MATCH('RFPR cover'!$C$7,$D$6:$K$6,0))) -> 82.66740549 | M125: =SUM(D125:K125) -> 71.32038029
B127: Enduring Value adjustments to Totex performance
A128: a | B128: =B50 -> Repex Enduring Value | C128: £m nominal | D128: =D50*D$86 -> -8.483678869 | E128: -34.56705202 | F128: 12.78257939 | G128: 6.227059946 | H128: -7.664185001 | I128: -8.960647113 | J128: -13.19789131 | K128: 59.62134879 | L128: =SUM(D128:INDEX(D128:K128,0,MATCH('RFPR cover'!$C$7,$D$6:$K$6,0))) -> -53.86381498 | M128: =SUM(D128:K128) -> 5.757533814
A129: b | B129: [Enduring Value adjustment] | C129: £m nominal | D129: 0 | E129: 0 | F129: 0 | G129: 0 | H129: 0 | I129: 0 | J129: 0 | K129: 0 | L129: =SUM(D129:INDEX(D129:K129,0,MATCH('RFPR cover'!$C$7,$D$6:$K$6,0))) -> 0 | M129: 0
A130: c | B130: [Enduring Value adjustment] | C130: £m nominal | D130: 0 | E130: 0 | F130: 0 | G130: 0 | H130: 0 | I130: 0 | J130: 0 | K130: 0 | L130: =SUM(D130:INDEX(D130:K130,0,MATCH('RFPR cover'!$C$7,$D$6:$K$6,0))) -> 0 | M130: 0
A131: d | B131: [Enduring Value adjustment] | C131: £m nominal | D131: 0 | E131: 0 | F131: 0 | G131: 0 | H131: 0 | I131: 0 | J131: 0 | K131: 0 | L131: =SUM(D131:INDEX(D131:K131,0,MATCH('RFPR cover'!$C$7,$D$6:$K$6,0))) -> 0 | M131: 0
A132: e | B132: [Enduring Value adjustment] | C132: £m nominal | D132: 0 | E132: 0 | F132: 0 | G132: 0 | H132: 0 | I132: 0 | J132: 0 | K132: 0 | L132: =SUM(D132:INDEX(D132:K132,0,MATCH('RFPR cover'!$C$7,$D$6:$K$6,0))) -> 0 | M132: 0
A133: f | B133: [Enduring Value adjustment] | C133: £m nominal | D133: 0 | E133: 0 | F133: 0 | G133: 0 | H133: 0 | I133: 0 | J133: 0 | K133: 0 | L133: =SUM(D133:INDEX(D133:K133,0,MATCH('RFPR cover'!$C$7,$D$6:$K$6,0))) -> 0 | M133: 0
B134: Total enduring value adjustments | C134: £m nominal | D134: =SUM(D128:D133) -> -8.483678869 | E134: -34.56705202 | F134: 12.78257939 | G134: 6.227059946 | H134: -7.664185001 | I134: -8.960647113 | J134: -13.19789131 | K134: 59.62134879 | L134: =SUM(D134:INDEX(D134:K134,0,MATCH('RFPR cover'!$C$7,$D$6:$K$6,0))) -> -53.86381498 | M134: 5.757533814
B136: Enduring Value: Customer share of performance | C136: £m nominal | D136: =D134*D122 -> -3.13556771 | E136: -12.77598243 | F136: 4.724441344 | G136: 2.301521356 | H136: -2.832682776 | I136: -3.311855173 | J136: -4.87794063 | K136: 22.03605051 | L136: =SUM(D136:INDEX(D136:K136,0,MATCH('RFPR cover'!$C$7,$D$6:$K$6,0))) -> -19.90806602 | M136: =SUM(D136:K136) -> 2.127984498
B137: Enduring Value: NWO share of performance | C137: £m nominal | D137: =D134*(1-D122) -> -5.348111159 | E137: -21.79106959 | F137: 8.05813805 | G137: 3.92553859 | H137: -4.831502224 | I137: -5.64879194 | J137: -8.319950685 | K137: 37.58529828 | L137: =SUM(D137:INDEX(D137:K137,0,MATCH('RFPR cover'!$C$7,$D$6:$K$6,0))) -> -33.95574896 | M137: =SUM(D137:K137) -> 3.629549317
B139: Total out(under) performance (including enduring value adjustments)
B140: Customer share of performance | C140: £m nominal | D140: =D124+D136 -> 4.606958754 | E140: -2.053151467 | F140: 5.659192923 | G140: 6.892280141 | H140: 4.857788198 | I140: 5.329988492 | J140: 3.266315186 | K140: 15.383353 | L140: =SUM(D140:INDEX(D140:K140,0,MATCH('RFPR cover'!$C$7,$D$6:$K$6,0))) -> 28.55937223 | M140: =SUM(D140:K140) -> 43.94272523
B141: NWO share of performance | C141: £m nominal | D141: 7.85775649 | E141: -3.501912025 | F141: 9.652476242 | G141: 11.75566396 | H141: 8.285578139 | I141: 9.090976043 | J141: 5.571117677 | K141: 26.23827308 | L141: =SUM(D141:INDEX(D141:K141,0,MATCH('RFPR cover'!$C$7,$D$6:$K$6,0))) -> 48.71165653 | M141: =SUM(D141:K141) -> 74.94992961
B142: Total | C142: £m nominal | D142: =SUM(D140:D141) -> 12.46471524 | E142: -5.555063492 | F142: 15.31166917 | G142: 18.6479441 | H142: 13.14336634 | I142: 14.42096454 | J142: 8.837432863 | K142: 41.62162608 | L142: =SUM(D142:INDEX(D142:K142,0,MATCH('RFPR cover'!$C$7,$D$6:$K$6,0))) -> 77.27102876 | M142: =SUM(D142:K142) -> 118.8926548
B144: Totex Summary
B146: Total out(under) performance (including enduring value adjustments)
B147: Customer share of performance | C147: £m nominal | D147: =D112+D140 -> 5.201177176 | E147: -1.494387672 | F147: 7.828940767 | G147: 8.888048495 | H147: 8.575477452 | I147: 8.171569076 | J147: 6.10108639 | K147: 20.70507871 | L147: =SUM(D147:INDEX(D147:K147,0,MATCH('RFPR cover'!$C$7,$D$6:$K$6,0))) -> 43.27191168 | M147: =SUM(D147:K147) -> 63.9769904
B148: NWO share of performance | C148: £m nominal | D148: 8.871271894 | E148: -2.548869015 | F148: 13.35325828 | G148: 15.15970176 | H148: 14.62657193 | I148: 13.93765461 | J148: 10.40618198 | K148: 35.3151559 | L148: =SUM(D148:INDEX(D148:K148,0,MATCH('RFPR cover'!$C$7,$D$6:$K$6,0))) -> 73.80577144 | M148: =SUM(D148:K148) -> 109.1209273
B149: Total | C149: £m nominal | D149: =SUM(D147:D148) -> 14.07244907 | E149: -4.043256687 | F149: 21.18219904 | G149: 24.04775026 | H149: 23.20204938 | I149: 22.10922369 | J149: 16.50726837 | K149: 56.02023461 | L149: =SUM(D149:INDEX(D149:K149,0,MATCH('RFPR cover'!$C$7,$D$6:$K$6,0))) -> 117.0776831 | M149: =SUM(D149:K149) -> 173.0979177

Sheet R5 - Output Incentives
A1: R5 - Output Incentives
A2: ='RFPR cover'!C5 -> Cadent-WM
A3: ='RFPR cover'!C7 -> 2020
D5: =IF(D6<='RFPR cover'!$C$7,"Actuals","Forecast") -> Actuals | E5: =IF(E6<='RFPR cover'!$C$7,"Actuals","Forecast") -> Actuals | F5: =IF(F6<='RFPR cover'!$C$7,"Actuals","Forecast") -> Actuals | G5: =IF(G6<='RFPR cover'!$C$7,"Actuals","Forecast") -> Actuals | H5: =IF(H6<='RFPR cover'!$C$7,"Actuals","Forecast") -> Actuals | I5: =IF(I6<='RFPR cover'!$C$7,"Actuals","Forecast") -> Actuals | J5: =IF(J6<='RFPR cover'!$C$7,"Actuals","Forecast") -> Actuals | K5: =IF(K6<='RFPR cover'!$C$7,"Actuals","Forecast") -> Forecast
D6: ='RFPR cover'!$C$13 -> 2014 | E6: =D6+1 -> 2015 | F6: 2016 | G6: 2017 | H6: 2018 | I6: 2019 | J6: 2020 | K6: 2021 | L6: ="Cumulative to "&'RFPR cover'!$C$7 -> Cumulative to 2020 | M6: RIIO-1 period
B8: Pre-tax Earned Incentives (Actuals may be updated once all incentives are determined)
B9: These values exclude any inflation, interest or time value of money adjustments
A11: a | B11: =Data!B153 -> Broad Measure of Customer Satisfaction | C11: ='RFPR cover'!$C$14 -> £m 09/10 | D11: 0.9235531717 | E11: 0.7698358655 | F11: 0.862115325 | G11: 0.7755895145 | H11: 0.5807410307 | I11: 1.186954663 | J11: 0.9856474163 | K11: 1.768809562 | L11: =SUM(D11:INDEX(D11:K11,0,MATCH('RFPR cover'!$C$7,$D$6:$K$6,0))) -> 6.084436987 | M11: =SUM(D11:K11) -> 7.853246549
A12: b | B12: =Data!B154 -> Shrinkage Allowance Revenue Adjustment | C12: ='RFPR cover'!$C$14 -> £m 09/10 | D12: 0.2787342198 | E12: 0.2200787131 | F12: 0.2437412017 | G12: 0.1946682842 | H12: 0.2054564067 | I12: 0.3137962498 | J12: 0.3129696112 | K12: 0.1577462509 | L12: =SUM(D12:INDEX(D12:K12,0,MATCH('RFPR cover'!$C$7,$D$6:$K$6,0))) -> 1.769444687 | M12: 1.927190937
A13: c | B13: =Data!B155 -> Environment Emissions Incentive | C13: ='RFPR cover'!$C$14 -> £m 09/10 | D13: 0.8797682981 | E13: 1.03587978 | F13: 1.493637057 | G13: 1.183195361 | H13: 1.217545293 | I13: 1.465788533 | J13: 2.911063566 | K13: 2.396253463 | L13: =SUM(D13:INDEX(D13:K13,0,MATCH('RFPR cover'!$C$7,$D$6:$K$6,0))) -> 10.18687789 | M13: 12.58313135
A14: d | B14: =Data!B156 -> Discretionary Reward Scheme | C14: ='RFPR cover'!$C$14 -> £m 09/10 | D14: 0.04016913899 | E14: 0.04016913899 | F14: 0.02550006153 | G14: 0.02550006153 | H14: 0.02550006153 | I14: 0 | J14: 0 | K14: 0 | L14: =SUM(D14:INDEX(D14:K14,0,MATCH('RFPR cover'!$C$7,$D$6:$K$6,0))) -> 0.1568384626 | M14: 0.1568384626
A15: e | B15: =Data!B157 -> NTS Exit Capacity | C15: ='RFPR cover'!$C$14 -> £m 09/10 | D15: 0.32711775 | E15: 1.37751039 | F15: 2.05087313 | G15: 1.59303379 | H15: 1.57616266 | I15: 1.59147563 | J15: 1.30674006 | K15: 0.98927739 | L15: =SUM(D15:INDEX(D15:K15,0,MATCH('RFPR cover'!$C$7,$D$6:$K$6,0))) -> 9.82291341 | M15: 10.8121908
A16: f | B16: =Data!B158 ->  | C16: ='RFPR cover'!$C$14 -> £m 09/10 | D16: 0 | E16: 0 | F16: 0 | G16: 0 | H16: 0 | I16: 0 | J16: 0 | K16: 0 | L16: =SUM(D16:INDEX(D16:K16,0,MATCH('RFPR cover'!$C$7,$D$6:$K$6,0))) -> 0 | M16: 0
A17: g | B17: =Data!B159 ->  | C17: ='RFPR cover'!$C$14 -> £m 09/10 | D17: 0 | E17: 0 | F17: 0 | G17: 0 | H17: 0 | I17: 0 | J17: 0 | K17: 0 | L17: =SUM(D17:INDEX(D17:K17,0,MATCH('RFPR cover'!$C$7,$D$6:$K$6,0))) -> 0 | M17: 0
B18: Earned Incentive revenue | C18: ='RFPR cover'!$C$14 -> £m 09/10 | D18: =SUM(D11:D17) -> 2.449342579 | E18: 3.443473888 | F18: 4.675866775 | G18: 3.771987011 | H18: 3.605405452 | I18: 4.558015076 | J18: 5.516420653 | K18: 5.312086666 | L18: 28.02051143 | M18: 33.3325981
B20: Additional Commentary
A21: =A11 -> a
A22: =A12 -> b
A23: =A13 -> c
A24: =A14 -> d
A25: =A15 -> e
A26: f
A27: g
B30: Post-tax Earned Incentives (Actuals may be updated once all incentives are determined)
B32: Year tax paid when incentive recognised in allowed revenue. Select from dropdown in Column C
B33: -
B34: t+0
B35: t+1
B36: t+2
B37: t+3
A39: =A11 -> a | B39: =$B$11&"" -> Broad Measure of Customer Satisfaction | C39: ='RFPR cover'!$C$14 -> £m 09/10 | D39: =D51 -> 0.7388425374 | E39: 0.6158686924 | F39: 0.6983134133 | G39: 0.6282275068 | H39: 0.4704002349 | I39: 0.9614332771 | J39: 0.7983744072 | K39: 1.432735745 | L39: =SUM(D39:INDEX(D39:K39,0,MATCH('RFPR cover'!$C$7,$D$6:$K$6,0))) -> 4.911460069 | M39: =SUM(D39:K39) -> 6.344195814
A40: b | B40: =$B$12&"" -> Shrinkage Allowance Revenue Adjustment | C40: ='RFPR cover'!$C$14 -> £m 09/10 | D40: =D55 -> 0.2229873759 | E40: 0.1760629704 | F40: 0.1974303734 | G40: 0.1576813102 | H40: 0.1664196894 | I40: 0.2541749623 | J40: 0.2535053851 | K40: 0.1277744632 | L40: =SUM(D40:INDEX(D40:K40,0,MATCH('RFPR cover'!$C$7,$D$6:$K$6,0))) -> 1.428262067 | M40: 1.55603653
A41: c | B41: =$B$13&"" -> Environment Emissions Incentive | C41: ='RFPR cover'!$C$14 -> £m 09/10 | D41: =D59 -> 0.7038146385 | E41: 0.8287038243 | F41: 1.209846016 | G41: 0.9583882421 | H41: 0.9862116877 | I41: 1.187288712 | J41: 2.357961488 | K41: 1.940965305 | L41: =SUM(D41:INDEX(D41:K41,0,MATCH('RFPR cover'!$C$7,$D$6:$K$6,0))) -> 8.232214609 | M41: 10.17317991
A42: d | B42: =$B$14&"" -> Discretionary Reward Scheme | C42: ='RFPR cover'!$C$14 -> £m 09/10 | D42: =D63 -> 0.0321353112 | E42: 0.0321353112 | F42: 0.02065504984 | G42: 0.02065504984 | H42: 0.02065504984 | I42: 0 | J42: 0 | K42: 0 | L42: =SUM(D42:INDEX(D42:K42,0,MATCH('RFPR cover'!$C$7,$D$6:$K$6,0))) -> 0.1262357719 | M42: 0.1262357719
A43: e | B43: =$B$15&"" -> NTS Exit Capacity | C43: ='RFPR cover'!$C$14 -> £m 09/10 | D43: =D67 -> 0.2616942 | E43: 1.102008312 | F43: 1.661207235 | G43: 1.29035737 | H43: 1.276691755 | I43: 1.28909526 | J43: 1.058459449 | K43: 0.8013146859 | L43: =SUM(D43:INDEX(D43:K43,0,MATCH('RFPR cover'!$C$7,$D$6:$K$6,0))) -> 7.939513581 | M43: 8.740828267
A44: f | B44: =$B$16&"" ->  | C44: ='RFPR cover'!$C$14 -> £m 09/10 | D44: =D71 -> 0 | E44: 0 | F44: 0 | G44: 0 | H44: 0 | I44: 0 | J44: 0 | K44: 0 | L44: =SUM(D44:INDEX(D44:K44,0,MATCH('RFPR cover'!$C$7,$D$6:$K$6,0))) -> 0 | M44: 0
A45: g | B45: =$B$17&"" ->  | C45: ='RFPR cover'!$C$14 -> £m 09/10 | D45: =D75 -> 0 | E45: 0 | F45: 0 | G45: 0 | H45: 0 | I45: 0 | J45: 0 | K45: 0 | L45: =SUM(D45:INDEX(D45:K45,0,MATCH('RFPR cover'!$C$7,$D$6:$K$6,0))) -> 0 | M45: 0
B46: Post-Tax Earned Incentive revenue | C46: ='RFPR cover'!$C$14 -> £m 09/10 | D46: =SUM(D39:D45) -> 1.959474063 | E46: 2.75477911 | F46: 3.787452088 | G46: 3.055309479 | H46: 2.920378416 | I46: 3.691992212 | J46: 4.468300729 | K46: 4.3027902 | L46: 22.6376861 | M46: 26.9404763
A49: =$A$11 -> a | B49: =INDEX($B$11:$B$15,MATCH($A49,$A$11:$A$15,0),0)&"" -> Broad Measure of Customer Satisfaction | C49: ='RFPR cover'!$C$14 -> £m 09/10 | D49: =INDEX($D$11:$K$17,MATCH($A49,$A$11:$A$17,0),0) -> 0.9235531717 | E49: 0.7698358655 | F49: 0.862115325 | G49: 0.7755895145 | H49: 0.5807410307 | I49: 1.186954663 | J49: 0.9856474163 | K49: 1.768809562 | L49: =SUM(D49:INDEX(D49:K49,0,MATCH('RFPR cover'!$C$7,$D$6:$K$6,0))) -> 6.084436987 | M49: =SUM(D49:K49) -> 7.853246549
B50: Corporation tax rate when recognised in allowed revenue | C50: t+2 | D50: =IF($C50=$B$33,$B$33,INDEX(Data!$G$14:$G$30,MATCH('R5 - Output Incentives'!D$6+RIGHT('R5 - Output Incentives'!$C50,2),Data!$C$14:$C$30,0),0)) -> 0.2 | E50: =IF($C50=$B$33,$B$33,INDEX(Data!$G$14:$G$30,MATCH('R5 - Output Incentives'!E$6+RIGHT('R5 - Output Incentives'!$C50,2),Data!$C$14:$C$30,0),0)) -> 0.2 | F50: =IF($C50=$B$33,$B$33,INDEX(Data!$G$14:$G$30,MATCH('R5 - Output Incentives'!F$6+RIGHT('R5 - Output Incentives'!$C50,2),Data!$C$14:$C$30,0),0)) -> 0.19 | G50: =IF($C50=$B$33,$B$33,INDEX(Data!$G$14:$G$30,MATCH('R5 - Output Incentives'!G$6+RIGHT('R5 - Output Incentives'!$C50,2),Data!$C$14:$C$30,0),0)) -> 0.19 | H50: =IF($C50=$B$33,$B$33,INDEX(Data!$G$14:$G$30,MATCH('R5 - Output Incentives'!H$6+RIGHT('R5 - Output Incentives'!$C50,2),Data!$C$14:$C$30,0),0)) -> 0.19 | I50: =IF($C50=$B$33,$B$33,INDEX(Data!$G$14:$G$30,MATCH('R5 - Output Incentives'!I$6+RIGHT('R5 - Output Incentives'!$C50,2),Data!$C$14:$C$30,0),0)) -> 0.19 | J50: =IF($C50=$B$33,$B$33,INDEX(Data!$G$14:$G$30,MATCH('R5 - Output Incentives'!J$6+RIGHT('R5 - Output Incentives'!$C50,2),Data!$C$14:$C$30,0),0)) -> 0.19 | K50: =IF($C50=$B$33,$B$33,INDEX(Data!$G$14:$G$30,MATCH('R5 - Output Incentives'!K$6+RIGHT('R5 - Output Incentives'!$C50,2),Data!$C$14:$C$30,0),0)) -> 0.19
B51: Post tax | D51: =IFERROR(D49*(1-D50),0) -> 0.7388425374 | E51: 0.6158686924 | F51: 0.6983134133 | G51: 0.6282275068 | H51: 0.4704002349 | I51: 0.9614332771 | J51: 0.7983744072 | K51: 1.432735745 | L51: =SUM(D51:INDEX(D51:K51,0,MATCH('RFPR cover'!$C$7,$D$6:$K$6,0))) -> 4.911460069 | M51: =SUM(D51:K51) -> 6.344195814
A53: =$A$12 -> b | B53: =INDEX($B$11:$B$15,MATCH($A53,$A$11:$A$15,0),0)&"" -> Shrinkage Allowance Revenue Adjustment | C53: ='RFPR cover'!$C$14 -> £m 09/10 | D53: =INDEX($D$11:$K$17,MATCH($A53,$A$11:$A$17,0),0) -> 0.2787342198 | E53: 0.2200787131 | F53: 0.2437412017 | G53: 0.1946682842 | H53: 0.2054564067 | I53: 0.3137962498 | J53: 0.3129696112 | K53: 0.1577462509 | L53: =SUM(D53:INDEX(D53:K53,0,MATCH('RFPR cover'!$C$7,$D$6:$K$6,0))) -> 1.769444687 | M53: =SUM(D53:K53) -> 1.927190937
B54: Corporation tax rate when recognised in allowed revenue | C54: t+2 | D54: =IF($C54=$B$33,$B$33,INDEX(Data!$G$14:$G$30,MATCH('R5 - Output Incentives'!D$6+RIGHT('R5 - Output Incentives'!$C54,2),Data!$C$14:$C$30,0),0)) -> 0.2 | E54: =IF($C54=$B$33,$B$33,INDEX(Data!$G$14:$G$30,MATCH('R5 - Output Incentives'!E$6+RIGHT('R5 - Output Incentives'!$C54,2),Data!$C$14:$C$30,0),0)) -> 0.2 | F54: =IF($C54=$B$33,$B$33,INDEX(Data!$G$14:$G$30,MATCH('R5 - Output Incentives'!F$6+RIGHT('R5 - Output Incentives'!$C54,2),Data!$C$14:$C$30,0),0)) -> 0.19 | G54: =IF($C54=$B$33,$B$33,INDEX(Data!$G$14:$G$30,MATCH('R5 - Output Incentives'!G$6+RIGHT('R5 - Output Incentives'!$C54,2),Data!$C$14:$C$30,0),0)) -> 0.19 | H54: =IF($C54=$B$33,$B$33,INDEX(Data!$G$14:$G$30,MATCH('R5 - Output Incentives'!H$6+RIGHT('R5 - Output Incentives'!$C54,2),Data!$C$14:$C$30,0),0)) -> 0.19 | I54: =IF($C54=$B$33,$B$33,INDEX(Data!$G$14:$G$30,MATCH('R5 - Output Incentives'!I$6+RIGHT('R5 - Output Incentives'!$C54,2),Data!$C$14:$C$30,0),0)) -> 0.19 | J54: =IF($C54=$B$33,$B$33,INDEX(Data!$G$14:$G$30,MATCH('R5 - Output Incentives'!J$6+RIGHT('R5 - Output Incentives'!$C54,2),Data!$C$14:$C$30,0),0)) -> 0.19 | K54: =IF($C54=$B$33,$B$33,INDEX(Data!$G$14:$G$30,MATCH('R5 - Output Incentives'!K$6+RIGHT('R5 - Output Incentives'!$C54,2),Data!$C$14:$C$30,0),0)) -> 0.19
B55: Post tax | D55: =IFERROR(D53*(1-D54),0) -> 0.2229873759 | E55: 0.1760629704 | F55: 0.1974303734 | G55: 0.1576813102 | H55: 0.1664196894 | I55: 0.2541749623 | J55: 0.2535053851 | K55: 0.1277744632 | L55: =SUM(D55:INDEX(D55:K55,0,MATCH('RFPR cover'!$C$7,$D$6:$K$6,0))) -> 1.428262067 | M55: =SUM(D55:K55) -> 1.55603653
A57: =$A$13 -> c | B57: =INDEX($B$11:$B$15,MATCH($A57,$A$11:$A$15,0),0)&"" -> Environment Emissions Incentive | C57: ='RFPR cover'!$C$14 -> £m 09/10 | D57: =INDEX($D$11:$K$17,MATCH($A57,$A$11:$A$17,0),0) -> 0.8797682981 | E57: 1.03587978 | F57: 1.493637057 | G57: 1.183195361 | H57: 1.217545293 | I57: 1.465788533 | J57: 2.911063566 | K57: 2.396253463 | L57: =SUM(D57:INDEX(D57:K57,0,MATCH('RFPR cover'!$C$7,$D$6:$K$6,0))) -> 10.18687789 | M57: =SUM(D57:K57) -> 12.58313135
B58: Corporation tax rate when recognised in allowed revenue | C58: t+2 | D58: =IF($C58=$B$33,$B$33,INDEX(Data!$G$14:$G$30,MATCH('R5 - Output Incentives'!D$6+RIGHT('R5 - Output Incentives'!$C58,2),Data!$C$14:$C$30,0),0)) -> 0.2 | E58: =IF($C58=$B$33,$B$33,INDEX(Data!$G$14:$G$30,MATCH('R5 - Output Incentives'!E$6+RIGHT('R5 - Output Incentives'!$C58,2),Data!$C$14:$C$30,0),0)) -> 0.2 | F58: =IF($C58=$B$33,$B$33,INDEX(Data!$G$14:$G$30,MATCH('R5 - Output Incentives'!F$6+RIGHT('R5 - Output Incentives'!$C58,2),Data!$C$14:$C$30,0),0)) -> 0.19 | G58: =IF($C58=$B$33,$B$33,INDEX(Data!$G$14:$G$30,MATCH('R5 - Output Incentives'!G$6+RIGHT('R5 - Output Incentives'!$C58,2),Data!$C$14:$C$30,0),0)) -> 0.19 | H58: =IF($C58=$B$33,$B$33,INDEX(Data!$G$14:$G$30,MATCH('R5 - Output Incentives'!H$6+RIGHT('R5 - Output Incentives'!$C58,2),Data!$C$14:$C$30,0),0)) -> 0.19 | I58: =IF($C58=$B$33,$B$33,INDEX(Data!$G$14:$G$30,MATCH('R5 - Output Incentives'!I$6+RIGHT('R5 - Output Incentives'!$C58,2),Data!$C$14:$C$30,0),0)) -> 0.19 | J58: =IF($C58=$B$33,$B$33,INDEX(Data!$G$14:$G$30,MATCH('R5 - Output Incentives'!J$6+RIGHT('R5 - Output Incentives'!$C58,2),Data!$C$14:$C$30,0),0)) -> 0.19 | K58: =IF($C58=$B$33,$B$33,INDEX(Data!$G$14:$G$30,MATCH('R5 - Output Incentives'!K$6+RIGHT('R5 - Output Incentives'!$C58,2),Data!$C$14:$C$30,0),0)) -> 0.19
B59: Post tax | D59: =IFERROR(D57*(1-D58),0) -> 0.7038146385 | E59: 0.8287038243 | F59: 1.209846016 | G59: 0.9583882421 | H59: 0.9862116877 | I59: 1.187288712 | J59: 2.357961488 | K59: 1.940965305 | L59: =SUM(D59:INDEX(D59:K59,0,MATCH('RFPR cover'!$C$7,$D$6:$K$6,0))) -> 8.232214609 | M59: =SUM(D59:K59) -> 10.17317991
A61: =$A$14 -> d | B61: =INDEX($B$11:$B$15,MATCH($A61,$A$11:$A$15,0),0)&"" -> Discretionary Reward Scheme | C61: ='RFPR cover'!$C$14 -> £m 09/10 | D61: =INDEX($D$11:$K$17,MATCH($A61,$A$11:$A$17,0),0) -> 0.04016913899 | E61: 0.04016913899 | F61: 0.02550006153 | G61: 0.02550006153 | H61: 0.02550006153 | I61: 0 | J61: 0 | K61: 0 | L61: =SUM(D61:INDEX(D61:K61,0,MATCH('RFPR cover'!$C$7,$D$6:$K$6,0))) -> 0.1568384626 | M61: =SUM(D61:K61) -> 0.1568384626
B62: Corporation tax rate when recognised in allowed revenue | C62: t+2 | D62: =IF($C62=$B$33,$B$33,INDEX(Data!$G$14:$G$30,MATCH('R5 - Output Incentives'!D$6+RIGHT('R5 - Output Incentives'!$C62,2),Data!$C$14:$C$30,0),0)) -> 0.2 | E62: =IF($C62=$B$33,$B$33,INDEX(Data!$G$14:$G$30,MATCH('R5 - Output Incentives'!E$6+RIGHT('R5 - Output Incentives'!$C62,2),Data!$C$14:$C$30,0),0)) -> 0.2 | F62: =IF($C62=$B$33,$B$33,INDEX(Data!$G$14:$G$30,MATCH('R5 - Output Incentives'!F$6+RIGHT('R5 - Output Incentives'!$C62,2),Data!$C$14:$C$30,0),0)) -> 0.19 | G62: =IF($C62=$B$33,$B$33,INDEX(Data!$G$14:$G$30,MATCH('R5 - Output Incentives'!G$6+RIGHT('R5 - Output Incentives'!$C62,2),Data!$C$14:$C$30,0),0)) -> 0.19 | H62: =IF($C62=$B$33,$B$33,INDEX(Data!$G$14:$G$30,MATCH('R5 - Output Incentives'!H$6+RIGHT('R5 - Output Incentives'!$C62,2),Data!$C$14:$C$30,0),0)) -> 0.19 | I62: =IF($C62=$B$33,$B$33,INDEX(Data!$G$14:$G$30,MATCH('R5 - Output Incentives'!I$6+RIGHT('R5 - Output Incentives'!$C62,2),Data!$C$14:$C$30,0),0)) -> 0.19 | J62: =IF($C62=$B$33,$B$33,INDEX(Data!$G$14:$G$30,MATCH('R5 - Output Incentives'!J$6+RIGHT('R5 - Output Incentives'!$C62,2),Data!$C$14:$C$30,0),0)) -> 0.19 | K62: =IF($C62=$B$33,$B$33,INDEX(Data!$G$14:$G$30,MATCH('R5 - Output Incentives'!K$6+RIGHT('R5 - Output Incentives'!$C62,2),Data!$C$14:$C$30,0),0)) -> 0.19
B63: Post tax | D63: =IFERROR(D61*(1-D62),0) -> 0.0321353112 | E63: 0.0321353112 | F63: 0.02065504984 | G63: 0.02065504984 | H63: 0.02065504984 | I63: 0 | J63: 0 | K63: 0 | L63: =SUM(D63:INDEX(D63:K63,0,MATCH('RFPR cover'!$C$7,$D$6:$K$6,0))) -> 0.1262357719 | M63: =SUM(D63:K63) -> 0.1262357719
A65: =$A$15 -> e | B65: =INDEX($B$11:$B$15,MATCH($A65,$A$11:$A$15,0),0)&"" -> NTS Exit Capacity | C65: ='RFPR cover'!$C$14 -> £m 09/10 | D65: =INDEX($D$11:$K$17,MATCH($A65,$A$11:$A$17,0),0) -> 0.32711775 | E65: 1.37751039 | F65: 2.05087313 | G65: 1.59303379 | H65: 1.57616266 | I65: 1.59147563 | J65: 1.30674006 | K65: 0.98927739 | L65: =SUM(D65:INDEX(D65:K65,0,MATCH('RFPR cover'!$C$7,$D$6:$K$6,0))) -> 9.82291341 | M65: =SUM(D65:K65) -> 10.8121908
B66: Corporation tax rate when recognised in allowed revenue | C66: t+2 | D66: =IF($C66=$B$33,$B$33,INDEX(Data!$G$14:$G$30,MATCH('R5 - Output Incentives'!D$6+RIGHT('R5 - Output Incentives'!$C66,2),Data!$C$14:$C$30,0),0)) -> 0.2 | E66: =IF($C66=$B$33,$B$33,INDEX(Data!$G$14:$G$30,MATCH('R5 - Output Incentives'!E$6+RIGHT('R5 - Output Incentives'!$C66,2),Data!$C$14:$C$30,0),0)) -> 0.2 | F66: =IF($C66=$B$33,$B$33,INDEX(Data!$G$14:$G$30,MATCH('R5 - Output Incentives'!F$6+RIGHT('R5 - Output Incentives'!$C66,2),Data!$C$14:$C$30,0),0)) -> 0.19 | G66: =IF($C66=$B$33,$B$33,INDEX(Data!$G$14:$G$30,MATCH('R5 - Output Incentives'!G$6+RIGHT('R5 - Output Incentives'!$C66,2),Data!$C$14:$C$30,0),0)) -> 0.19 | H66: =IF($C66=$B$33,$B$33,INDEX(Data!$G$14:$G$30,MATCH('R5 - Output Incentives'!H$6+RIGHT('R5 - Output Incentives'!$C66,2),Data!$C$14:$C$30,0),0)) -> 0.19 | I66: =IF($C66=$B$33,$B$33,INDEX(Data!$G$14:$G$30,MATCH('R5 - Output Incentives'!I$6+RIGHT('R5 - Output Incentives'!$C66,2),Data!$C$14:$C$30,0),0)) -> 0.19 | J66: =IF($C66=$B$33,$B$33,INDEX(Data!$G$14:$G$30,MATCH('R5 - Output Incentives'!J$6+RIGHT('R5 - Output Incentives'!$C66,2),Data!$C$14:$C$30,0),0)) -> 0.19 | K66: =IF($C66=$B$33,$B$33,INDEX(Data!$G$14:$G$30,MATCH('R5 - Output Incentives'!K$6+RIGHT('R5 - Output Incentives'!$C66,2),Data!$C$14:$C$30,0),0)) -> 0.19
B67: Post tax | D67: =IFERROR(D65*(1-D66),0) -> 0.2616942 | E67: 1.102008312 | F67: 1.661207235 | G67: 1.29035737 | H67: 1.276691755 | I67: 1.28909526 | J67: 1.058459449 | K67: 0.8013146859 | L67: =SUM(D67:INDEX(D67:K67,0,MATCH('RFPR cover'!$C$7,$D$6:$K$6,0))) -> 7.939513581 | M67: =SUM(D67:K67) -> 8.740828267
A69: =$A$16 -> f | B69: =INDEX($B$11:$B$17,MATCH($A69,$A$11:$A$17,0),0)&"" ->  | C69: ='RFPR cover'!$C$14 -> £m 09/10 | D69: =INDEX($D$11:$K$17,MATCH($A69,$A$11:$A$17,0),0) -> 0 | E69: 0 | F69: 0 | G69: 0 | H69: 0 | I69: 0 | J69: 0 | K69: 0 | L69: =SUM(D69:INDEX(D69:K69,0,MATCH('RFPR cover'!$C$7,$D$6:$K$6,0))) -> 0 | M69: =SUM(D69:K69) -> 0
B70: Corporation tax rate when recognised in allowed revenue | C70: t+2 | D70: =IF($C70=$B$33,$B$33,INDEX(Data!$G$14:$G$30,MATCH('R5 - Output Incentives'!D$6+RIGHT('R5 - Output Incentives'!$C70,2),Data!$C$14:$C$30,0),0)) -> 0.2 | E70: =IF($C70=$B$33,$B$33,INDEX(Data!$G$14:$G$30,MATCH('R5 - Output Incentives'!E$6+RIGHT('R5 - Output Incentives'!$C70,2),Data!$C$14:$C$30,0),0)) -> 0.2 | F70: =IF($C70=$B$33,$B$33,INDEX(Data!$G$14:$G$30,MATCH('R5 - Output Incentives'!F$6+RIGHT('R5 - Output Incentives'!$C70,2),Data!$C$14:$C$30,0),0)) -> 0.19 | G70: =IF($C70=$B$33,$B$33,INDEX(Data!$G$14:$G$30,MATCH('R5 - Output Incentives'!G$6+RIGHT('R5 - Output Incentives'!$C70,2),Data!$C$14:$C$30,0),0)) -> 0.19 | H70: =IF($C70=$B$33,$B$33,INDEX(Data!$G$14:$G$30,MATCH('R5 - Output Incentives'!H$6+RIGHT('R5 - Output Incentives'!$C70,2),Data!$C$14:$C$30,0),0)) -> 0.19 | I70: =IF($C70=$B$33,$B$33,INDEX(Data!$G$14:$G$30,MATCH('R5 - Output Incentives'!I$6+RIGHT('R5 - Output Incentives'!$C70,2),Data!$C$14:$C$30,0),0)) -> 0.19 | J70: =IF($C70=$B$33,$B$33,INDEX(Data!$G$14:$G$30,MATCH('R5 - Output Incentives'!J$6+RIGHT('R5 - Output Incentives'!$C70,2),Data!$C$14:$C$30,0),0)) -> 0.19 | K70: =IF($C70=$B$33,$B$33,INDEX(Data!$G$14:$G$30,MATCH('R5 - Output Incentives'!K$6+RIGHT('R5 - Output Incentives'!$C70,2),Data!$C$14:$C$30,0),0)) -> 0.19
B71: Post tax | D71: =IFERROR(D69*(1-D70),0) -> 0 | E71: 0 | F71: 0 | G71: 0 | H71: 0 | I71: 0 | J71: 0 | K71: 0 | L71: =SUM(D71:INDEX(D71:K71,0,MATCH('RFPR cover'!$C$7,$D$6:$K$6,0))) -> 0 | M71: =SUM(D71:K71) -> 0
A73: g | B73: =INDEX($B$11:$B$17,MATCH($A73,$A$11:$A$17,0),0)&"" ->  | C73: ='RFPR cover'!$C$14 -> £m 09/10 | D73: =INDEX($D$11:$K$17,MATCH($A73,$A$11:$A$17,0),0) -> 0 | E73: 0 | F73: 0 | G73: 0 | H73: 0 | I73: 0 | J73: 0 | K73: 0 | L73: =SUM(D73:INDEX(D73:K73,0,MATCH('RFPR cover'!$C$7,$D$6:$K$6,0))) -> 0 | M73: =SUM(D73:K73) -> 0
B74: Corporation tax rate when recognised in allowed revenue | C74: t+2 | D74: =IF($C74=$B$33,$B$33,INDEX(Data!$G$14:$G$30,MATCH('R5 - Output Incentives'!D$6+RIGHT('R5 - Output Incentives'!$C74,2),Data!$C$14:$C$30,0),0)) -> 0.2 | E74: =IF($C74=$B$33,$B$33,INDEX(Data!$G$14:$G$30,MATCH('R5 - Output Incentives'!E$6+RIGHT('R5 - Output Incentives'!$C74,2),Data!$C$14:$C$30,0),0)) -> 0.2 | F74: =IF($C74=$B$33,$B$33,INDEX(Data!$G$14:$G$30,MATCH('R5 - Output Incentives'!F$6+RIGHT('R5 - Output Incentives'!$C74,2),Data!$C$14:$C$30,0),0)) -> 0.19 | G74: =IF($C74=$B$33,$B$33,INDEX(Data!$G$14:$G$30,MATCH('R5 - Output Incentives'!G$6+RIGHT('R5 - Output Incentives'!$C74,2),Data!$C$14:$C$30,0),0)) -> 0.19 | H74: =IF($C74=$B$33,$B$33,INDEX(Data!$G$14:$G$30,MATCH('R5 - Output Incentives'!H$6+RIGHT('R5 - Output Incentives'!$C74,2),Data!$C$14:$C$30,0),0)) -> 0.19 | I74: =IF($C74=$B$33,$B$33,INDEX(Data!$G$14:$G$30,MATCH('R5 - Output Incentives'!I$6+RIGHT('R5 - Output Incentives'!$C74,2),Data!$C$14:$C$30,0),0)) -> 0.19 | J74: =IF($C74=$B$33,$B$33,INDEX(Data!$G$14:$G$30,MATCH('R5 - Output Incentives'!J$6+RIGHT('R5 - Output Incentives'!$C74,2),Data!$C$14:$C$30,0),0)) -> 0.19 | K74: =IF($C74=$B$33,$B$33,INDEX(Data!$G$14:$G$30,MATCH('R5 - Output Incentives'!K$6+RIGHT('R5 - Output Incentives'!$C74,2),Data!$C$14:$C$30,0),0)) -> 0.19
B75: Post tax | D75: =IFERROR(D73*(1-D74),0) -> 0 | E75: 0 | F75: 0 | G75: 0 | H75: 0 | I75: 0 | J75: 0 | K75: 0 | L75: =SUM(D75:INDEX(D75:K75,0,MATCH('RFPR cover'!$C$7,$D$6:$K$6,0))) -> 0 | M75: =SUM(D75:K75) -> 0
B77: Impact on Allowed Revenue within RIIO-1
B78: This table shows the impact on allowed revenue in the relevant year - with actuals (subject to determination) and forecasts thereafter.
B79: The cells above the allowed revenue indicate the year of performance
C81: Performance Year | D81: =IF($C50=$B$33,D$6,IF(D$6-RIGHT($C50,1)<$D$6,"Pre-RIIO",D$6-RIGHT($C50,1))) -> Pre-RIIO | E81: Pre-RIIO | F81: 2014 | G81: 2015 | H81: 2016 | I81: 2017 | J81: 2018 | K81: 2019
A82: =A11 -> a | B82: =B11&"" -> Broad Measure of Customer Satisfaction | C82: £m nominal | D82: 0 | E82: 0 | F82: 1.07750248 | G82: 0.91576335 | H82: 1.03658946 | I82: 0.95253248 | J82: 0.73992221 | K82: 1.55850833
C84: Performance Year | D84: =IF($C54=$B$33,D$6,IF(D$6-RIGHT($C54,1)<$D$6,"Pre-RIIO",D$6-RIGHT($C54,1))) -> Pre-RIIO | E84: Pre-RIIO | F84: 2014 | G84: 2015 | H84: 2016 | I84: 2017 | J84: 2018 | K84: 2019
A85: =A12 -> b | B85: =B12&"" -> Shrinkage Allowance Revenue Adjustment | C85: £m nominal | D85: 0 | E85: 0 | F85: 0.3130022 | G85: 0.25852364 | H85: 0.28945119 | I85: 0.2361283 | J85: 0.26177203 | K85: 0.40209592
C87: Performance Year | D87: =IF($C58=$B$33,D$6,IF(D$6-RIGHT($C58,1)<$D$6,"Pre-RIIO",D$6-RIGHT($C58,1))) -> Pre-RIIO | E87: Pre-RIIO | F87: 2014 | G87: 2015 | H87: 2016 | I87: 2017 | J87: 2018 | K87: 2019
A88: =A13 -> c | B88: =B13&"" -> Environment Emissions Incentive | C88: £m nominal | D88: 0 | E88: 0 | F88: 0.98792829 | G88: 1.21683467 | H88: 1.77374617 | I88: 1.43518964 | J88: 1.55127459 | K88: 1.87824934
C90: Performance Year | D90: =IF($C62=$B$33,D$6,IF(D$6-RIGHT($C62,1)<$D$6,"Pre-RIIO",D$6-RIGHT($C62,1))) -> Pre-RIIO | E90: Pre-RIIO | F90: 2014 | G90: 2015 | H90: 2016 | I90: 2017 | J90: 2018 | K90: 2019
A91: =A14 -> d | B91: =B14&"" -> Discretionary Reward Scheme | C91: £m nominal | D91: 0.16362405 | E91: 0.14847368 | F91: 0 | G91: 0.09866665 | H91: 0 | I91: 0 | J91: 0.1031515 | K91: 0
C93: Performance Year | D93: =IF($C66=$B$33,D$6,IF(D$6-RIGHT($C66,1)<$D$6,"Pre-RIIO",D$6-RIGHT($C66,1))) -> Pre-RIIO | E93: Pre-RIIO | F93: 2014 | G93: 2015 | H93: 2016 | I93: 2017 | J93: 2018 | K93: 2019
A94: =A15 -> e | B94: =B15&"" -> NTS Exit Capacity | C94: £m nominal | D94: 0 | E94: 0 | F94: 0.43548945 | G94: 1.83870792 | H94: 2.81633143 | I94: 2.25713544 | J94: 2.30218303 | K94: 2.36005282
C96: Performance Year | D96: =IF($C70=$B$33,D$6,IF(D$6-RIGHT($C70,1)<$D$6,"Pre-RIIO",D$6-RIGHT($C70,1))) -> Pre-RIIO | E96: Pre-RIIO | F96: 2014 | G96: 2015 | H96: 2016 | I96: 2017 | J96: 2018 | K96: 2019
A97: =A16 -> f | B97: =B16&"" ->  | C97: £m nominal | D97: 0 | E97: 0 | F97: 0 | G97: 0 | H97: 0 | I97: 0 | J97: 0 | K97: 0
C99: Performance Year | D99: =IF($C74=$B$33,D$6,IF(D$6-RIGHT($C74,1)<$D$6,"Pre-RIIO",D$6-RIGHT($C74,1))) -> Pre-RIIO | E99: Pre-RIIO | F99: 2014 | G99: 2015 | H99: 2016 | I99: 2017 | J99: 2018 | K99: 2019
A100: =A17 -> g | B100: =B17&"" ->  | C100: £m nominal | D100: 0 | E100: 0 | F100: 0 | G100: 0 | H100: 0 | I100: 0 | J100: 0 | K100: 0
B102: Total Impact on Allowed Revenue | C102: £m nominal | D102: =SUM(D82,D85,D88,D91,D94,D97,D100) -> 0.16362405 | E102: 0.14847368 | F102: 2.81392242 | G102: 4.32849623 | H102: 5.91611825 | I102: 4.88098586 | J102: 4.95830336 | K102: 6.19890641
B104: Additional Commentary
A105: =A82 -> a
A106: =A85 -> b
A107: =A88 -> c
A108: =A91 -> d
A109: =A94 -> e
A110: =A97 -> f
A111: =A100 -> g

Sheet R6 - Innovation
A1: R6 - Innovation
A2: ='RFPR cover'!C5 -> Cadent-WM
A3: ='RFPR cover'!C7 -> 2020 | B3: ='R1 - RoRE'!B3 -> 
D5: =IF(D6<='RFPR cover'!$C$7,"Actuals","Forecast") -> Actuals | E5: =IF(E6<='RFPR cover'!$C$7,"Actuals","Forecast") -> Actuals | F5: =IF(F6<='RFPR cover'!$C$7,"Actuals","Forecast") -> Actuals | G5: =IF(G6<='RFPR cover'!$C$7,"Actuals","Forecast") -> Actuals | H5: =IF(H6<='RFPR cover'!$C$7,"Actuals","Forecast") -> Actuals | I5: =IF(I6<='RFPR cover'!$C$7,"Actuals","Forecast") -> Actuals | J5: =IF(J6<='RFPR cover'!$C$7,"Actuals","Forecast") -> Actuals | K5: =IF(K6<='RFPR cover'!$C$7,"Actuals","Forecast") -> Forecast
D6: ='RFPR cover'!$C$13 -> 2014 | E6: =D6+1 -> 2015 | F6: 2016 | G6: 2017 | H6: 2018 | I6: 2019 | J6: 2020 | K6: 2021
B8: Network Innovation Allowance
B9: Eligible NIA expenditure and Bid Preparation costs | C9: £m nominal | D9: 0.51617231 | E9: 1.36987586 | F9: 1.71070744 | G9: 1.36 | H9: 1.31434362 | I9: 0.870049073 | J9: 1.08937671 | K9: 1.253699245
B10: Unrecoverable Expenditure (eg not conforming to technical requirements) | C10: £m nominal | D10: 0 | E10: 0 | F10: 0 | G10: 0 | H10: 0 | I10: 0 | J10: 0 | K10: 0
B11: Company Compulsory Contribution (including % contribution funded by licensee) | C11: £m nominal | D11: 0.05697846 | E11: 0.13698759 | F11: 0.17107074 | G11: 0.14275 | H11: 0.13143436 | I11: 0.0870049073 | J11: 0.108937671 | K11: 0.1253699245
B12: Allowed NIA adjustment | C12: £m nominal | D12: =D9-D10-D11 -> 0.45919385 | E12: 1.23288827 | F12: 1.5396367 | G12: 1.21725 | H12: 1.18290926 | I12: 0.7830441657 | J12: 0.9804390389 | K12: 1.128329321
B14: Low Carbon Networks Fund
B15: Second Tier and Discretionary (as per latest Revenue RRP) | C15: £m nominal | D15: 0 | E15: 0 | F15: 0 | G15: 0 | H15: 0 | I15: 0 | J15: 0 | K15: 0
B16: First Tier Funding Mechanism (as per latest Revenue RRP) | C16: £m nominal | D16: 0 | E16: 0 | F16: 0 | G16: 0 | H16: 0 | I16: 0 | J16: 0 | K16: 0
B17: Low Carbon Networks Fund revenue adjustment | C17: £m nominal | D17: =D15-D16 -> 0 | E17: 0 | F17: 0 | G17: 0 | H17: 0 | I17: 0 | J17: 0 | K17: 0
B19: Network Innovation Competition
B20: Awarded NIC funding actually spent or forecast to be spent | C20: £m nominal | D20: 0 | E20: 0.1671247973 | F20: 0.1458420613 | G20: 1.11584115 | H20: 0.9082725615 | I20: 0.718858404 | J20: 0.8399376384 | K20: 0
B21: Company Compulsory Contribution (including % contribution funded by licensee) | C21: £m nominal | D21: 0 | E21: 0 | F21: 0.0381228641 | G21: 0.1076363464 | H21: 0.07783172663 | I21: 0.09312458221 | J21: 0.1269599104 | K21: 0.05798673884
B23: Successful Delivery Rewards | C23: £m nominal | D23: 0 | E23: 0 | F23: 0 | G23: 0 | H23: 0 | I23: 0.03802289648 | J23: 0 | K23: 0
B27: RoRE Inputs
B28: Network innovation | C28: ='RFPR cover'!$C$14 -> £m 09/10 | D28: =(SUM(D10,D11,D21)-D23)/Data!C34 -> 0.04883774229 | E28: =(SUM(E10,E11,E21)-E23)/Data!D34 -> 0.1151585569 | F28: =(SUM(F10,F11,F21)-F23)/Data!E34 -> 0.1739835579 | G28: =(SUM(G10,G11,G21)-G23)/Data!F34 -> 0.2038744974 | H28: =(SUM(H10,H11,H21)-H23)/Data!G34 -> 0.1642466415 | I28: =(SUM(I10,I11,I21)-I23)/Data!H34 -> 0.1082281943 | J28: =(SUM(J10,J11,J21)-J23)/Data!I34 -> 0.1751258023 | K28: =(SUM(K10,K11,K21)-K23)/Data!J34 -> 0.1330600595

Sheet R7 - Financing
A1: R7 - Financing
A2: ='RFPR cover'!C5 -> Cadent-WM
A3: ='RFPR cover'!C7 -> 2020 | B3: ='R1 - RoRE'!B3 -> 
D5: Actuals | E5: Actuals | F5: Actuals | G5: Actuals | H5: Actuals | I5: Actuals | J5: Actuals | K5: Forecast
D6: ='RFPR cover'!$C$13 -> 2014 | E6: =D6+1 -> 2015 | F6: 2016 | G6: 2017 | H6: 2018 | I6: 2019 | J6: 2020 | K6: 2021 | L6: ="Cumulative to "&'RFPR cover'!$C$7 -> Cumulative to 2020 | M6: RIIO-1 period
B8: Net Interest Per Statutory Accounts | C8: £m nominal | D8: 190 | E8: 202 | F8: 157 | G8: 1009.9592 | H8: 144.5319051 | I8: 146.4870987 | J8: 158.5290155 | K8: 146.4857439
B10: Reconciliation with Statutory Accounts
B11: Interest not qualifying for corporation tax relief | C11: £m nominal | D11: 0 | E11: 0 | F11: 0 | G11: 0 | H11: 0 | I11: 0 | J11: 0 | K11: 0
B12: Fair value adjustments (e.g. losses on derivatives) | C12: £m nominal | D12: 0 | E12: 0 | F12: 0 | G12: -12 | H12: 6.412367166 | I12: 8 | J12: 11.87911731 | K12: 12.94153229
B13: Dividends on preference shares | C13: £m nominal | D13: 0 | E13: 0 | F13: 0 | G13: 0 | H13: 0 | I13: 0 | J13: 0 | K13: 0
B14: Costs of early redemption on long term debt | C14: £m nominal | D14: 0 | E14: -18.13 | F14: 0 | G14: 0 | H14: 0 | I14: 0 | J14: -4.376 | K14: 0
B15: Swap Termination Costs paid | C15: £m nominal | D15: -0.3169319263 | E15: 0 | F15: 0 | G15: 0 | H15: 0 | I15: 0 | J15: 0 | K15: 0
B16: Movements relating to pension fund liabilities reported within net interest | C16: £m nominal | D16: 11.22097399 | E16: 0 | F16: 0 | G16: -1 | H16: 1.99999996 | I16: 14 | J16: 17 | K16: 16.77013382
B17: Debt issuance expenses (inc. amortisation to discounts that had previously benefitted from a tax deduction) | C17: £m nominal | D17: 0 | E17: 0 | F17: 0 | G17: -1 | H17: -2.750202954 | I17: -2.77 | J17: -4.566235503 | K17: -3.946711444
B18: Commitment fees for undrawn liquidity backup lines | C18: £m nominal | D18: 0 | E18: 0 | F18: 0 | G18: -1 | H18: -2.509623794 | I18: -2.15 | J18: -2.13299451 | K18: -2.6
B19: Less: Capitalised Interest | C19: £m nominal | D19: 0 | E19: 11.8 | F19: 0 | G19: 1 | H19: 0 | I19: 0 | J19: 0 | K19: 0
B20: Less: Unwind of discount | C20: £m nominal | D20: -1.234323432 | E20: -4.32 | F20: -4 | G20: -2 | H20: -2.16435857 | I20: -0.3 | J20: -0.30747824 | K20: -0.8390082898
B21: Less: Term Debt / Letter of Credit / RCF Fees | C21: £m nominal | D21: 0 | E21: 0 | F21: 0 | G21: 0 | H21: -1.610053807 | I21: -1.63 | J21: -1.62036365 | K21: -1.2
B22: losses/(gains) on derivative financial instruments | C22: £m nominal | D22: 10.14087222 | E22: -15.53 | F22: -6 | G22: 0 | H22: 0 | I22: -18 | J22: -15.03896397 | K22: 0
B23: Less: Commitment Commission and other | C23: £m nominal | D23: 0 | E23: -1.24 | F23: 0 | G23: 0 | H23: 0 | I23: 0 | J23: 0 | K23: 0
B24: Economic cost of changing capital structure in FY16/17 | C24: £m nominal | D24: 0 | E24: 0 | F24: 0 | G24: 4.845951298 | H24: 13.56770328 | I24: 16.14858002 | J24: 16.42358594 | K24: 15.42141698
B25: Less: Debt cap disallowance | C25: £m nominal | D25: -2.319436911 | E25: 0 | F25: 0 | G25: 0 | H25: 0 | I25: 0 | J25: 0 | K25: 0
B26: Less finance costs relating to metering | C26: £m nominal | D26: -15 | E26: -12 | F26: -11 | G26: 0 | H26: 0 | I26: 0 | J26: 0 | K26: 0
B27: Less financing costs relating to other three networks | C27: £m nominal | D27: -157.6898233 | E27: -134.21 | F27: -112 | G27: -131.433768 | H27: -118.1716406 | I27: -117.7584775 | J27: -130.9221459 | K27: -137.5494967
B28: Exceptional costs of early redemption on long term debt- TBC | C28: £m nominal | D28: 0 | E28: 0 | F28: 0 | G28: -833 | H28: 0 | I28: 0 | J28: 0 | K28: 0
B29: Rounding | C29: £m nominal | D29: -1.010654234 | E29: 0.36 | F29: 0 | G29: -1.452200429 | H29: 0.3216586914 | I29: 0 | J29: 0 | K29: 0
B30: Net Interest Per Regulatory (RIIO-1) Definition | C30: £m nominal | D30: =SUM(D8,D11:D29) -> 33.79067642 | E30: 28.73 | F30: 24 | G30: 32.9191833 | H30: 39.62775452 | I30: 42.02720118 | J30: 44.86753693 | K30: 45.48361062
B31: Forecast new financing/refinancing Net Interest costs | C31: £m nominal | K31: 0
B32: Net Interest including forecast new financing/refinancing costs | C32: £m nominal | D32: =SUM(D30:D31) -> 33.79067642 | E32: 28.73 | F32: 24 | G32: 32.9191833 | H32: 39.62775452 | I32: 42.02720118 | J32: 44.86753693 | K32: 45.48361062
B33: External Net Interest | C33: £m nominal | D33: 31.4729686 | E33: 26.64 | F33: 22 | G33: 23.7154393 | H33: 39.62775452 | I33: 42.02720118 | J33: 44.86753693 | K33: 45.48361062
B34: Intra-company Net Interest | C34: £m nominal | D34: 2.317707818 | E34: 2.09 | F34: 2 | G34: 9.203744 | H34: 0 | I34: 0 | J34: 0 | K34: 0
D35: =IF(ABS(D32-SUM(D33:D34))<'RFPR cover'!$F$14,"OK","ERROR") -> OK | E35: =IF(ABS(E32-SUM(E33:E34))<'RFPR cover'!$F$14,"OK","ERROR") -> OK | F35: =IF(ABS(F32-SUM(F33:F34))<'RFPR cover'!$F$14,"OK","ERROR") -> OK | G35: =IF(ABS(G32-SUM(G33:G34))<'RFPR cover'!$F$14,"OK","ERROR") -> OK | H35: =IF(ABS(H32-SUM(H33:H34))<'RFPR cover'!$F$14,"OK","ERROR") -> OK | I35: =IF(ABS(I32-SUM(I33:I34))<'RFPR cover'!$F$14,"OK","ERROR") -> OK | J35: =IF(ABS(J32-SUM(J33:J34))<'RFPR cover'!$F$14,"OK","ERROR") -> OK | K35: =IF(ABS(K32-SUM(K33:K34))<'RFPR cover'!$F$14,"OK","ERROR") -> OK
B37: Memo: Net interest (RIIO-1) Definition that relates to non-cash principal inflation accretion on bonds and loans | C37: £m nominal | D37: 0 | E37: 0 | F37: 0 | G37: 0 | H37: 5.609069767 | I37: 4.531725337 | J37: 5.01951468 | K37: 4.164446456
B39: Less inflation in interest charge | C39: £m nominal | D39: 34.35523837 | E39: 22.08318408 | F39: 10.95836303 | G39: 21.24159252 | H39: 42.5489359 | I39: 40.42812802 | J39: 37.45742528 | K39: 31.31012129
B41: Assumed Regulatory finance cost at actual gearing | C41: £m nominal | D41: =D32-D39 -> -0.5645619497 | E41: 6.646815917 | F41: 13.04163697 | G41: 11.67759078 | H41: -2.921181382 | I41: 1.599073162 | J41: 7.410111656 | K41: 14.17348932
B43: Financial Year Average RPI (RPIt) | C43: Index | D43: 1.166689067 | E43: 1.189556327 | F43: 1.202375711 | G43: 1.228139614 | H43: 1.274096595 | I43: 1.313027479 | J43: 1.347017848 | K43: 1.377999258
B45: Assumed regulatory finance cost at actual gearing | C45: £m 09/10 | D45: =D41/D43 -> -0.4839009514 | E45: 5.58764286 | F45: 10.84655724 | G45: 9.508357722 | H45: -2.292747185 | I45: 1.217852016 | J45: 5.501123587 | K45: 10.28555657 | L45: =SUM(D45:INDEX(D45:K45,0,MATCH('RFPR cover'!$C$7,$D$6:$K$6,0))) -> 29.88488528 | M45: =SUM(D45:K45) -> 40.17044185
B47: Adjustments to be applied to Assumed Finance cost for performance assessment
B48: Add back Debt Issuance expenses | C48: £m nominal | D48: 0 | E48: 0 | F48: 0 | G48: 1 | H48: 2.750202954 | I48: 2.77 | J48: 4.566235503 | K48: 3.946711444 | L48: =SUM(D48:INDEX(D48:K48,0,MATCH('RFPR cover'!$C$7,$D$6:$K$6,0))) -> 11.08643846 | M48: =SUM(D48:K48) -> 15.0331499
B49: New/refinanced debt issuance expenses | C49: £m nominal | K49: 0 | L49: =SUM(D49:INDEX(D49:K49,0,MATCH('RFPR cover'!$C$7,$D$6:$K$6,0))) -> 0 | M49: 0
B50: Costs of early redemption on long term debt (excluding exceptional costs of buy backs associated with M&A activity) | C50: £m nominal | D50: 0 | E50: 18.13 | F50: 0 | G50: 0 | H50: 0 | I50: 0 | J50: 4.376 | K50: 0 | L50: =SUM(D50:INDEX(D50:K50,0,MATCH('RFPR cover'!$C$7,$D$6:$K$6,0))) -> 22.506 | M50: 22.506
B51: Add accrual for inflation accretion on index-linked swaps (if applicable) | C51: £m nominal | D51: 0 | E51: 0 | F51: 0 | G51: 0 | H51: 0 | I51: 0 | J51: 0 | K51: 0 | L51: =SUM(D51:INDEX(D51:K51,0,MATCH('RFPR cover'!$C$7,$D$6:$K$6,0))) -> 0 | M51: 0
B52: Correction of debt issuance expense add back above | C52: £m nominal | D52: 0 | E52: 0 | F52: 0 | G52: -0.8190830262 | H52: -2.253228719 | I52: -2.270938259 | J52: 0 | K52: 0 | L52: =SUM(D52:INDEX(D52:K52,0,MATCH('RFPR cover'!$C$7,$D$6:$K$6,0))) -> -5.343250004 | M52: -5.343250004
B53: Correction of inflation strip calculation | C53: £m nominal | D53: 9.092045949 | E53: 3.915422554 | F53: 1.315908424 | G53: 0.9385437548 | H53: 3.119966975 | I53: 6.172498002 | J53: 0 | K53: 0 | L53: =SUM(D53:INDEX(D53:K53,0,MATCH('RFPR cover'!$C$7,$D$6:$K$6,0))) -> 24.55438566 | M53: 24.55438566
B54: Other Adjustments [please specify] | C54: £m nominal | D54: 0 | E54: 0 | F54: 0 | G54: 0 | H54: 0 | I54: 0 | J54: 0 | K54: 0 | L54: =SUM(D54:INDEX(D54:K54,0,MATCH('RFPR cover'!$C$7,$D$6:$K$6,0))) -> 0 | M54: 0
B55: Other Adjustments [please specify] | C55: £m nominal | D55: 0 | E55: 0 | F55: 0 | G55: 0 | H55: 0 | I55: 0 | J55: 0 | K55: 0 | L55: =SUM(D55:INDEX(D55:K55,0,MATCH('RFPR cover'!$C$7,$D$6:$K$6,0))) -> 0 | M55: 0
B57: Total Adjustments to be applied for performance assessment (at actual gearing) | C57: £m nominal | D57: =SUM(D48:D55) -> 9.092045949 | E57: 22.04542255 | F57: 1.315908424 | G57: 1.119460729 | H57: 3.616941209 | I57: 6.671559744 | J57: 8.942235503 | K57: 3.946711444 | L57: =SUM(D57:INDEX(D57:K57,0,MATCH('RFPR cover'!$C$7,$D$6:$K$6,0))) -> 52.80357411 | M57: =SUM(D57:K57) -> 56.75028555
B58: Total Adjustments to be applied for performance assessment (at actual gearing) | C58: £m 09/10 | D58: =D57/D43 -> 7.793032611 | E58: 18.53247472 | F58: 1.094423658 | G58: 0.91150934 | H58: 2.838828095 | I58: 5.081051122 | J58: 6.638542701 | K58: 2.86408822 | L58: =SUM(D58:INDEX(D58:K58,0,MATCH('RFPR cover'!$C$7,$D$6:$K$6,0))) -> 42.88986224 | M58: =SUM(D58:K58) -> 45.75395046
B61: Cost of Debt out(under)performance at notional gearing
B62: Performance against allowance is impacted by deviating from notional levels of gearing
B64: Notional Gearing | C64: % | D64: 0.65 | E64: 0.65 | F64: 0.65 | G64: 0.65 | H64: 0.65 | I64: 0.65 | J64: 0.65 | K64: 0.65
B65: Actual Gearing | C65: % | D65: 0.5345820753 | E65: 0.5753912962 | F65: 0.5619005688 | G65: 0.5891478628 | H65: 0.6268090164 | I65: 0.6318205754 | J65: 0.6383528754 | K65: 0.6406471296
B67: Assumed regulatory finance cost at actual gearing | C67: £m nominal | D67: =D41 -> -0.5645619497 | E67: 6.646815917 | F67: 13.04163697 | G67: 11.67759078 | H67: -2.921181382 | I67: 1.599073162 | J67: 7.410111656 | K67: 14.17348932
B68: Adjustment to regulatory finance cost relating to variance from notional gearing | C68: £m nominal | D68: =((D64-D65)/D65)*D67 -> -0.1218906723 | E68: 0.8618662168 | F68: 2.044776001 | G68: 1.20615961 | H68: -0.1080792836 | I68: 0.04601026165 | J68: 0.1352018563 | K68: 0.2069201631
B69: Assumed regulatory finance cost at notional gearing | C69: £m nominal | D69: =SUM(D67:D68) -> -0.686452622 | E69: 7.508682134 | F69: 15.08641297 | G69: 12.88375039 | H69: -3.029260666 | I69: 1.645083424 | J69: 7.545313512 | K69: 14.38040949
B71: Assumed regulatory finance cost at notional gearing | C71: £m 09/10 | D71: =D69/D43 -> -0.5883766645 | E71: 6.312170314 | F71: 12.54717043 | G71: 10.49046073 | H71: -2.377575356 | I71: 1.252893371 | J71: 5.601494831 | K71: 10.43571642 | L71: =SUM(D71:INDEX(D71:K71,0,MATCH('RFPR cover'!$C$7,$D$6:$K$6,0))) -> 33.23823766 | M71: =SUM(D71:K71) -> 43.67395408
B72: Adjustments to be applied for performance assessment (at notional gearing) | C72: £m 09/10 | D72: =D58*((D64-D65)/D65)+D58 -> 9.475572472 | E72: 20.9355071 | F72: 1.266016475 | G72: 1.005657677 | H72: 2.943860432 | I72: 5.227248617 | J72: 6.759666827 | K72: 2.905901326 | L72: =SUM(D72:INDEX(D72:K72,0,MATCH('RFPR cover'!$C$7,$D$6:$K$6,0))) -> 47.6135296 | M72: =SUM(D72:K72) -> 50.51943092
B74: Cost of Debt Allowance
B76: The latest published PCFM contains the allowed cost of debt rate (%) for the reporting year.
B77: However, the RAV does not account for the reporting year actual expenditure and additional allowances.
B78: Consequently the return element of revenue does not currently reflect the monetary allowance. This is updated and available in the forthcoming annual iteration process.
B79: To address this timing issue, network operators should forecast the allowance in row 79 (linked to R9-RAV table) - which will be trued-up over time.
B81: Cost of Debt Allowance as per latest published PCFM (prior year AIP) | C81: £m 09/10 | D81: 24.39067378 | E81: 22.37889879 | F81: 20.88088053 | G81: 19.6286798 | H81: 18.39378211 | I81: 15.86014977 | J81: 13.14510569 | K81: 9.23725362
B82: Forecast revised Cost of Debt Allowance | C82: £m 09/10 | D82: 24.39067378 | E82: 22.37889879 | F82: 20.88088053 | G82: 19.6286798 | H82: 18.39378211 | I82: 15.86014977 | J82: 13.14510569 | K82: 9.23725362 | L82: =SUM(D82:INDEX(D82:K82,0,MATCH('RFPR cover'!$C$7,$D$6:$K$6,0))) -> 134.6781705 | M82: =SUM(D82:K82) -> 143.9154241
B85: Out(under) performance
B87: Pre-Tax performance
B88: Pre-Tax Cost of Debt out(under)performance at actual gearing | C88: £m 09/10 | D88: =D82-D45-D58 -> 17.08154212 | E88: -1.741218785 | F88: 8.939899631 | G88: 9.208812737 | H88: 17.8477012 | I88: 9.561246633 | J88: 1.005439397 | K88: -3.912391169 | L88: =SUM(D88:INDEX(D88:K88,0,MATCH('RFPR cover'!$C$7,$D$6:$K$6,0))) -> 61.90342294 | M88: =SUM(D88:K88) -> 57.99103177
B90: Pre-Tax Cost of Debt out(under)performance at notional gearing | C90: £m 09/10 | D90: =D82-D71-D72 -> 15.50347797 | E90: -4.868778619 | F90: 7.067693617 | G90: 8.132561392 | H90: 17.82749704 | I90: 9.380007782 | J90: 0.7839440282 | K90: -4.104364125 | L90: =SUM(D90:INDEX(D90:K90,0,MATCH('RFPR cover'!$C$7,$D$6:$K$6,0))) -> 53.82640321 | M90: =SUM(D90:K90) -> 49.72203909
B92: Pre-Tax Impact on out(under) performance relating to deviating from notional levels of gearing | C92: £m 09/10 | D92: =D88-D90 -> 1.578064148 | E92: 3.127559834 | F92: 1.872206014 | G92: 1.076251346 | H92: 0.02020416597 | I92: 0.1812388503 | J92: 0.2214953693 | K92: 0.1919729561 | L92: =SUM(D92:INDEX(D92:K92,0,MATCH('RFPR cover'!$C$7,$D$6:$K$6,0))) -> 8.077019727 | M92: =SUM(D92:K92) -> 8.268992683

Sheet R8 - Net Debt
A1: R8 - Net Debt
A2: ='RFPR cover'!C5 -> Cadent-WM
A3: ='RFPR cover'!C7 -> 2020 | B3: ='R1 - RoRE'!B3 -> 
D5: Actuals | E5: Actuals | F5: Actuals | G5: Actuals | H5: Actuals | I5: Actuals | J5: Actuals | K5: Forecast
D6: ='RFPR cover'!$C$13 -> 2014 | E6: =D6+1 -> 2015 | F6: 2016 | G6: 2017 | H6: 2018 | I6: 2019 | J6: 2020 | K6: 2021
B8: Opening Cash, short term deposits and overdrafts (per Balance Sheet) | C8: £m nominal | D8: -513 | E8: =D10 -> -257.707346 | F8: -230.1982394 | G8: -67.9508992 | H8: -38.99908504 | I8: -164.53 | J8: -328.34 | K8: -335.7
B10: Closing Cash, short term deposits and overdrafts (per Balance Sheet) | C10: £m nominal | D10: -257.707346 | E10: -230.1982394 | F10: -67.9508992 | G10: -38.99908504 | H10: -164.53 | I10: -328.34 | J10: -335.7 | K10: -60
B11: External borrowings, bonds, external loans and finance leases (+ve) | C11: £m nominal | D11: 4571.476896 | E11: 4673.721831 | F11: 4702.326905 | G11: 1709.99927 | H11: 6330.666466 | I11: 6684.145364 | J11: 6961.114859 | K11: 6958.061093
B12: Loans from other group companies (+ve) | C12: £m nominal | D12: 0 | E12: 0 | F12: 0 | G12: 4311.999103 | H12: 0 | I12: 0 | J12: 0 | K12: 0
B13: Loans to other group companies (-ve) | C13: £m nominal | D13: 1196.767773 | E13: 1241.041197 | F13: 955.0530052 | G13: 0 | H13: 0 | I13: 0 | J13: 0 | K13: 0
B14: Other amounts due to/(from) group companies per Balance Sheet | C14: £m nominal | D14: 0 | E14: 0 | F14: 0 | G14: 0 | H14: 0 | I14: 0 | J14: 0 | K14: 0
B15: Guarantees given on behalf of other group companies (per Notes to the Accounts) (+ve) | C15: £m nominal | D15: 0 | E15: 0 | F15: 0 | G15: 0 | H15: 40.91 | I15: 41.91 | J15: 74.69603439 | K15: 44.0983376
B16: Currency SWAPS | C16: £m nominal | D16: 0 | E16: 0 | F16: 0 | G16: 9.000712006 | H16: -14.64129762 | I16: -4.74769047 | J16: -26.10001358 | K16: 0
B17: Interest rate SWAPS | C17: £m nominal | D17: 0 | E17: 0 | F17: 0 | G17: 0 | H17: 0 | I17: 0 | J17: 0 | K17: 0
B18: Inflation-linked SWAPS | C18: £m nominal | D18: 0 | E18: 0 | F18: 0 | G18: 0 | H18: 5.52257724 | I18: 34.6005225 | J18: 58.91810593 | K18: 0
B19: Interest Rate Forward Contracts | C19: £m nominal | D19: 0 | E19: 0 | F19: 0 | G19: 0 | H19: 0 | I19: 0 | J19: 0 | K19: 0
B20: Foreign exchange forward rate contracts | C20: £m nominal | D20: 0 | E20: 0 | F20: 0 | G20: 0 | H20: 0 | I20: 0 | J20: 0.10614119 | K20: 0
B21: Other swaps, forward rate contracts & OTC options | C21: £m nominal | D21: -205.5373223 | E21: -281.5647887 | F21: -320.4290109 | G21: 0 | H21: 0 | I21: 0 | J21: 0 | K21: 0
B22: Other derivatives including exchange traded futures and options | C22: £m nominal | D22: 0 | E22: 0 | F22: 0 | G22: 0 | H22: 0 | I22: 0 | J22: 0 | K22: 0
B23: Total Debt per Statutory Accounts | C23: £m nominal | D23: =SUM(D10:D22) -> 5305 | E23: 5403 | F23: 5269 | G23: 5992 | H23: 6197.927745 | I23: 6427.568196 | J23: 6733.035127 | K23: 6942.15943
B25: Conversion to Regulatory (RIIO-1) Definition of Net Debt
B26: Unamortised Issue Costs | C26: £m nominal | D26: 0 | E26: 0 | F26: 0 | G26: 11.76529318 | H26: 11.70151638 | I26: 10.9 | J26: 14.36155951 | K26: 13.07955335
B27: Fixed asset investments not readily convertible to cash | C27: £m nominal | D27: 0 | E27: 0 | F27: 0 | G27: 0 | H27: 0 | I27: 0 | J27: 0 | K27: 0
B28: Preference shares | C28: £m nominal | D28: 0 | E28: 0 | F28: 0 | G28: 0 | H28: 0 | I28: 0 | J28: 0 | K28: 0
B29: Long term loans (Not for benefit of regulated business or distribution in nature) | C29: £m nominal | D29: 0 | E29: 0 | F29: 0 | G29: 0 | H29: 0 | I29: 0 | J29: 0 | K29: 0
B30: Currency debt amount to reflect ultimate sterling liability | C30: £m nominal | D30: 0 | E30: 0 | F30: 0 | G30: -9.751834099 | H30: -5.349132993 | I30: -1.74 | J30: -17.71589001 | K30: 0
B31: Impact of fair value adjustments | C31: £m nominal | D31: 42.38373791 | E31: -6.4196 | F31: -28.08 | G31: -317.4531761 | H31: -309.3773091 | I31: -301.32 | J31: -283.6513216 | K31: -303.0943699
B32: Accrued Interest | C32: £m nominal | D32: -50.67388744 | E32: -49.606 | F32: -50.31 | G32: -40.00826043 | H32: -40.91080948 | I32: -41.91 | J32: -44.0983376 | K32: -44.0983376
B33: ILS financial exposure; direct offset with row 180 (no net impact on regulatory net debt) | C33: £m nominal | D33: 0 | E33: 0 | F33: 0 | G33: 0 | H33: -5.52257724 | I33: -34.600522 | J33: -58.91810593 | K33: 0
B34: ILS financial exposure; financials presented up to FY16/17 relate to pre segmentation derivatives. Post FY 17/18 balances relate to accretions on instrument B2.1. | C34: £m nominal | D34: 57.6433474 | E34: 34.4324 | F34: 26.325 | G34: 0 | H34: 0 | I34: 27.848262 | J34: 37.16919655 | K34: 47.05641064
B35: Less: Derivatives excluding Cross currency | C35: £m nominal | D35: 0 | E35: 0 | F35: 0 | G35: 0 | H35: 0 | I35: 0 | J35: 0 | K35: 0
B36: Net debt relating to Metering | C36: £m nominal | D36: -299 | E36: -430 | F36: -332 | G36: 0 | H36: 0 | I36: 0 | J36: 0 | K36: 0
B37: Net debt relating to other three networks | C37: £m nominal | D37: -4163.696815 | E37: -4076.9278 | F37: -4023.102 | G37: -4622.656407 | H37: -4791.795316 | I37: -4990.155811 | J37: -5216.299129 | K37: -5461.468846
B38: 9. IFRS 16 Lease Liabilities | C38: £m nominal | D38: 0 | E38: 0 | F38: 0 | G38: 0 | H38: 0 | I38: 0 | J38: -30.59769679 | K38: 0
B39: 10. [Insert adjustment as necessary] | C39: £m nominal | D39: 0 | E39: 0 | F39: 0 | G39: 0 | H39: 0 | I39: 0 | J39: 0 | K39: 0
B40: 11. [Insert adjustment as necessary] | C40: £m nominal | D40: 0 | E40: 0 | F40: 0 | G40: 0 | H40: 0 | I40: 0 | J40: 0 | K40: 0
B41: 12. [Insert adjustment as necessary] | C41: £m nominal | D41: 0.06 | E41: -0.73 | F41: 0 | G41: -0.03061514993 | H41: 0.05999985 | I41: 0 | J41: 0 | K41: 0
B42: Total Net Debt per Regulatory (RIIO-1) definition | C42: £m nominal | D42: =SUM(D23,D26:D41) -> 891.7163829 | E42: 873.749 | F42: 861.833 | G42: 1013.865 | H42: 1056.734117 | I42: 1096.590126 | J42: 1133.285402 | K42: 1193.63384
B43: Forecast new debt/refinancing | C43: £m nominal | K43: 0
B44: Regulatory Net Debt including forecast new debt/refinancing | C44: £m nominal | D44: =SUM(D42:D43) -> 891.7163829 | E44: 873.749 | F44: 861.833 | G44: 1013.865 | H44: 1056.734117 | I44: 1096.590126 | J44: 1133.285402 | K44: 1193.63384
D45: OK | E45: OK | F45: OK | G45: OK | H45: OK | I45: OK | J45: OK | K45: OK
B47: Opening Regulatory Net Debt including forecast new debt/refinancing | C47: £m nominal | D47: 747.025856 | E47: =D48 -> 891.7163829 | F47: 873.749 | G47: 861.833 | H47: 1013.865 | I47: 1056.734117 | J47: 1096.590126 | K47: 1133.285402
B48: Closing Regulatory Net Debt including forecast new debt/refinancing | C48: £m nominal | D48: =D44 -> 891.7163829 | E48: 873.749 | F48: 861.833 | G48: 1013.865 | H48: 1056.734117 | I48: 1096.590126 | J48: 1133.285402 | K48: 1193.63384
B50: Allocation of net debt (Per regulatory definition. Transmission companies only)
B51: System operator allocation (transmission companies only) | C51: % | D51: 0 | E51: 0 | F51: 0 | G51: 0 | H51: 0 | I51: 0 | J51: 0 | K51: 0
B52: Transmission or distribution allocation | C52: % | D52: =1-D51 -> 1 | E52: 1 | F52: 1 | G52: 1 | H52: 1 | I52: 1 | J52: 1 | K52: 1
B54: Average Net Debt (per Regulatory Definition) | C54: £m nominal | D54: =AVERAGE(D47:D48)*D52 -> 819.3711195 | E54: 882.7326915 | F54: 867.791 | G54: 937.849 | H54: 1035.299558 | I54: 1076.662121 | J54: 1114.937764 | K54: 1163.459621
B55: Equity RAV | C55: £m nominal | D55: =D56-D54 -> 713.3610039 | E55: 651.4105902 | F55: 676.5943381 | G55: 654.02472 | H55: 616.3990152 | I55: 627.4009674 | J55: 631.6475604 | K55: 652.6097366
B56: Average RAV | C56: £m nominal | D56: 1532.732123 | E56: 1534.143282 | F56: 1544.385338 | G56: 1591.87372 | H56: 1651.698573 | I56: 1704.063088 | J56: 1746.585324 | K56: 1816.069358
B57: Actual Regulatory Gearing | C57: % | D57: =D54/D56 -> 0.5345820753 | E57: 0.5753912962 | F57: 0.5619005688 | G57: 0.5891478628 | H57: 0.6268090164 | I57: 0.6318205754 | J57: 0.6383528754 | K57: 0.6406471296
B58: Notional Gearing | C58: % | D58: 0.65 | E58: 0.65 | F58: 0.65 | G58: 0.65 | H58: 0.65 | I58: 0.65 | J58: 0.65 | K58: 0.65
B59: Gearing Ratio delta | C59: % | D59: =IF(ISBLANK(D23),"n/a",D57-D58) -> -0.1154179247 | E59: -0.07460870376 | F59: -0.08809943116 | G59: -0.06085213721 | H59: -0.02319098358 | I59: -0.0181794246 | J59: -0.0116471246 | K59: -0.009352870384
B61: NPV Neutral assumed Average Net Debt | C61: £m 09/10 | D61: =D63*D57 -> 686.9766601 | E61: 728.3158136 | F61: 707.8720148 | G61: 747.5239013 | H61: 798.9874203 | I61: 807.1501373 | J61: 817.0609554 | K61: 835.2604118
B62: NPV Neutral assumed Equity RAV | C62: £m 09/10 | D62: =D63*(1-D57) -> 598.0957203 | E62: 537.4590049 | F62: 551.9096157 | G62: 521.2983223 | H62: 475.7029549 | I62: 470.3488374 | J62: 462.8909127 | K62: 468.5156814
B63: NPV Neutral assumed Average RAV | C63: £m 09/10 | D63: 1285.07238 | E63: 1265.774819 | F63: 1259.78163 | G63: 1268.822224 | H63: 1274.690375 | I63: 1277.498975 | J63: 1279.951868 | K63: 1303.776093
B64: Actual Regulatory Gearing | C64: % | D64: =D61/D63 -> 0.5345820753 | E64: 0.5753912962 | F64: 0.5619005688 | G64: 0.5891478628 | H64: 0.6268090164 | I64: 0.6318205754 | J64: 0.6383528754 | K64: 0.6406471296
B65: Notional Gearing | C65: % | D65: 0.65 | E65: 0.65 | F65: 0.65 | G65: 0.65 | H65: 0.65 | I65: 0.65 | J65: 0.65 | K65: 0.65
B66: Gearing Ratio delta | C66: % | D66: =IF(ISBLANK(D23),"n/a",D64-D65) -> -0.1154179247 | E66: -0.07460870376 | F66: -0.08809943116 | G66: -0.06085213721 | H66: -0.02319098358 | I66: -0.0181794246 | J66: -0.0116471246 | K66: -0.009352870384

Sheet R9 - RAV
A1: R9 - Regulatory Asset Value (RAV)
A2: ='RFPR cover'!C5 -> Cadent-WM
A3: ='RFPR cover'!C7 -> 2020
D5: =IF(D6<='RFPR cover'!$C$7-1,"Actuals","Forecast") -> Actuals | E5: =IF(E6<='RFPR cover'!$C$7-1,"Actuals","Forecast") -> Actuals | F5: =IF(F6<='RFPR cover'!$C$7-1,"Actuals","Forecast") -> Actuals | G5: =IF(G6<='RFPR cover'!$C$7-1,"Actuals","Forecast") -> Actuals | H5: =IF(H6<='RFPR cover'!$C$7-1,"Actuals","Forecast") -> Actuals | I5: =IF(I6<='RFPR cover'!$C$7-1,"Actuals","Forecast") -> Actuals | J5: =IF(J6<='RFPR cover'!$C$7,"Actuals","N/A") -> Actuals | K5: =IF(K6<='RFPR cover'!$C$7-1,"Actuals","Forecast") -> Forecast
D6: ='RFPR cover'!$C$13 -> 2014 | E6: =D6+1 -> 2015 | F6: 2016 | G6: 2017 | H6: 2018 | I6: 2019 | J6: 2020 | K6: 2021
B8: RAV per latest published PCFM
B9: The latest published PCFM does not account for the impact of the reporting years totex. This will be published in the forthcoming annual iteration process.
B11: Closing RAV per latest published PCFM | C11: ='RFPR cover'!$C$14 -> £m 09/10 | D11: 1304.633801 | E11: 1294.74151 | F11: 1298.526728 | G11: 1304.629728 | H11: 1309.684213 | I11: 1314.464526 | J11: 1325.864878 | K11: 1334.031987
B13: Revised RAV - including forecast totex, allowances and enduring value
B14: Revised adjusted RAV including forecast totex, allowances and enduring value
B16: Opening RAV (before transfers) | C16: ='RFPR cover'!$C$14 -> £m 09/10 | D16: 1321.461446 | E16: =D29 -> 1301.664948 | F16: 1280.469846 | G16: 1288.688129 | H16: 1297.565699 | I16: 1299.233806 | J16: 1300.802124 | K16: 1301.558518
B17: Transfers | C17: ='RFPR cover'!$C$14 -> £m 09/10 | D17: 0 | E17: 0 | F17: 0 | G17: 0 | H17: 0 | I17: 0 | J17: 0 | K17: 0
B18: Opening RAV (after transfers) | C18: ='RFPR cover'!$C$14 -> £m 09/10 | D18: =SUM(D16:D17) -> 1321.461446 | E18: 1301.664948 | F18: 1280.469846 | G18: 1288.688129 | H18: 1297.565699 | I18: 1299.233806 | J18: 1300.802124 | K18: 1301.558518
B19: Net additions (after disposals) | C19: ='RFPR cover'!$C$14 -> £m 09/10 | D19: 48.673045 | E19: 56.38466776 | F19: 64.68959918 | G19: 67.08780968 | H19: 70.02474489 | I19: 75.10470283 | J19: 81.25898481 | K19: 96.45977045
B20: Net additions (after disposals) - enduring value adjustment | C20: ='RFPR cover'!$C$14 -> £m 09/10 | D20: -2.968852826 | E20: -11.43189139 | F20: 3.80981324 | G20: 2.33087688 | H20: -3.718495025 | I20: -3.720064592 | J20: -5.351358422 | K20: 29.75443739
B21: Total Net Additions | C21: ='RFPR cover'!$C$14 -> £m 09/10 | D21: =SUM(D19:D20) -> 45.70419217 | E21: 44.95277637 | F21: 68.49941242 | G21: 69.41868656 | H21: 66.30624987 | I21: 71.38463823 | J21: 75.90762639 | K21: 126.2142078
B22: Depreciation | C22: ='RFPR cover'!$C$14 -> £m 09/10 | D22: -65.50069 | E22: -66.27695855 | F22: -60.90438113 | G22: -60.98480952 | H22: -64.97026027 | I22: -70.30213054 | J22: -75.78721179 | K22: -82.75402048
B23: Depreciation - enduring value adjustment | C23: ='RFPR cover'!$C$14 -> £m 09/10 | D23: 0 | E23: 0.1290805576 | F23: 0.623250857 | G23: 0.4436930406 | H23: 0.332117784 | I23: 0.4858107521 | J23: 0.6359792135 | K23: 0.8534792282
B24: Total Depreciation | C24: ='RFPR cover'!$C$14 -> £m 09/10 | D24: =SUM(D22:D23) -> -65.50069 | E24: -66.147878 | F24: -60.28113028 | G24: -60.54111648 | H24: -64.63814249 | I24: -69.81631979 | J24: -75.15123258 | K24: -81.90054125
B25: [Input other adjustment] | C25: ='RFPR cover'!$C$14 -> £m 09/10 | D25: 0 | E25: 0 | F25: 0 | G25: 0 | H25: 0 | I25: 0 | J25: 0 | K25: 0
B26: [Input other adjustment] | C26: ='RFPR cover'!$C$14 -> £m 09/10 | D26: 0 | E26: 0 | F26: 0 | G26: 0 | H26: 0 | I26: 0 | J26: 0 | K26: 0
B27: [Input other adjustment] | C27: ='RFPR cover'!$C$14 -> £m 09/10 | D27: 0 | E27: 0 | F27: 0 | G27: 0 | H27: 0 | I27: 0 | J27: 0 | K27: 0
B28: Other adjustments | C28: ='RFPR cover'!$C$14 -> £m 09/10 | D28: =SUM(D25:D27) -> 0 | E28: 0 | F28: 0 | G28: 0 | H28: 0 | I28: 0 | J28: 0 | K28: 0
B29: Adjusted Closing RAV | C29: ='RFPR cover'!$C$14 -> £m 09/10 | D29: =D18+D21+D24+D28 -> 1301.664948 | E29: 1280.469846 | F29: 1288.688129 | G29: 1297.565699 | H29: 1299.233806 | I29: 1300.802124 | J29: 1301.558518 | K29: 1345.872185
B31: Total enduring value and other adjustments | C31: ='RFPR cover'!$C$14 -> £m 09/10 | D31: =(D20+D23+D28) -> -2.968852826 | E31: -11.30281084 | F31: 4.433064097 | G31: 2.774569921 | H31: -3.386377241 | I31: -3.23425384 | J31: -4.715379209 | K31: 30.60791662
B32: CHECK | D32: =IF(D5="Actuals",IF(ABS((D29-SUM($D$31:D31))-D11)<'RFPR cover'!$F$14,"TRUE","FALSE"),"NA") -> TRUE | E32: =IF(E5="Actuals",IF(ABS((E29-SUM($D$31:E31))-E11)<'RFPR cover'!$F$14,"TRUE","FALSE"),"NA") -> TRUE | F32: =IF(F5="Actuals",IF(ABS((F29-SUM($D$31:F31))-F11)<'RFPR cover'!$F$14,"TRUE","FALSE"),"NA") -> TRUE | G32: =IF(G5="Actuals",IF(ABS((G29-SUM($D$31:G31))-G11)<'RFPR cover'!$F$14,"TRUE","FALSE"),"NA") -> TRUE | H32: =IF(H5="Actuals",IF(ABS((H29-SUM($D$31:H31))-H11)<'RFPR cover'!$F$14,"TRUE","FALSE"),"NA") -> TRUE | I32: =IF(I5="Actuals",IF(ABS((I29-SUM($D$31:I31))-I11)<'RFPR cover'!$F$14,"TRUE","FALSE"),"NA") -> TRUE | J32: =IF(J5="Actuals",IF(ABS((J29-SUM($D$31:J31))-J11)<'RFPR cover'!$F$14,"TRUE","FALSE"),"NA") -> FALSE | K32: =IF(K5="Actuals",IF(ABS((K29-SUM($D$31:K31))-K11)<'RFPR cover'!$F$14,"TRUE","FALSE"),"NA") -> NA
B34: Year end RPI | C34: Index | D34: =Data!C$35 -> 1.182989058 | E34: =Data!D$35 -> 1.193648704 | F34: =Data!E$35 -> 1.210796832 | G34: =Data!F$35 -> 1.251118104 | H34: =Data!G$35 -> 1.293061497 | I34: =Data!H$35 -> 1.328516409 | J34: =Data!I$35 -> 1.356092452 | K34: =Data!J$35 -> 1.387282578
B35: Financial Year Average RPI (RPIt) | C35: Index | D35: =Data!C$34 -> 1.166689067 | E35: =Data!D$34 -> 1.189556327 | F35: =Data!E$34 -> 1.202375711 | G35: =Data!F$34 -> 1.228139614 | H35: =Data!G$34 -> 1.274096595 | I35: =Data!H$34 -> 1.313027479 | J35: =Data!I$34 -> 1.347017848 | K35: =Data!J$34 -> 1.377999258
B36: Index for Opening RAV conversion to nominal in yr 1 | C36: Index | D36: =INDEX(Data!$F$14:$F$30,MATCH($D$6-1,Data!$C$14:$C$30,0),0)/IF('RFPR cover'!$C$6="ED1",Data!$E$17,Data!$E$14) -> 1.154486089
B38: Adjusted Closing RAV | C38: £m nominal | D38: =D29*D34 -> 1539.85539 | E38: 1528.431173 | F38: 1560.339503 | G38: 1623.407937 | H38: 1679.98921 | I38: 1728.136967 | J38: 1765.033682 | K38: 1867.105034
B40: Cost of debt | C40: annual real % | D40: =INDEX(Data!$K$73:$T$100,MATCH('RFPR cover'!$C$5,Data!$B$73:$B$100,0),MATCH('R9 - RAV'!D$6,Data!$K$72:$T$72,0)) -> 0.0292 | E40: =INDEX(Data!$K$73:$T$100,MATCH('RFPR cover'!$C$5,Data!$B$73:$B$100,0),MATCH('R9 - RAV'!E$6,Data!$K$72:$T$72,0)) -> 0.0272 | F40: =INDEX(Data!$K$73:$T$100,MATCH('RFPR cover'!$C$5,Data!$B$73:$B$100,0),MATCH('R9 - RAV'!F$6,Data!$K$72:$T$72,0)) -> 0.0255 | G40: =INDEX(Data!$K$73:$T$100,MATCH('RFPR cover'!$C$5,Data!$B$73:$B$100,0),MATCH('R9 - RAV'!G$6,Data!$K$72:$T$72,0)) -> 0.0238 | H40: =INDEX(Data!$K$73:$T$100,MATCH('RFPR cover'!$C$5,Data!$B$73:$B$100,0),MATCH('R9 - RAV'!H$6,Data!$K$72:$T$72,0)) -> 0.0222 | I40: =INDEX(Data!$K$73:$T$100,MATCH('RFPR cover'!$C$5,Data!$B$73:$B$100,0),MATCH('R9 - RAV'!I$6,Data!$K$72:$T$72,0)) -> 0.0191 | J40: =INDEX(Data!$K$73:$T$100,MATCH('RFPR cover'!$C$5,Data!$B$73:$B$100,0),MATCH('R9 - RAV'!J$6,Data!$K$72:$T$72,0)) -> 0.0158 | K40: =INDEX(Data!$K$73:$T$100,MATCH('RFPR cover'!$C$5,Data!$B$73:$B$100,0),MATCH('R9 - RAV'!K$6,Data!$K$72:$T$72,0)) -> 0.0109
B41: Cost of equity | C41: annual real % | D41: ='RFPR cover'!$C$10 -> 0.067 | E41: ='RFPR cover'!$C$10 -> 0.067 | F41: ='RFPR cover'!$C$10 -> 0.067 | G41: ='RFPR cover'!$C$10 -> 0.067 | H41: ='RFPR cover'!$C$10 -> 0.067 | I41: ='RFPR cover'!$C$10 -> 0.067 | J41: ='RFPR cover'!$C$10 -> 0.067 | K41: ='RFPR cover'!$C$10 -> 0.067
B42: Notional gearing | C42: % | D42: ='RFPR cover'!$C$12 -> 0.65 | E42: ='RFPR cover'!$C$12 -> 0.65 | F42: ='RFPR cover'!$C$12 -> 0.65 | G42: ='RFPR cover'!$C$12 -> 0.65 | H42: ='RFPR cover'!$C$12 -> 0.65 | I42: ='RFPR cover'!$C$12 -> 0.65 | J42: ='RFPR cover'!$C$12 -> 0.65 | K42: ='RFPR cover'!$C$12 -> 0.65
B43: Vanilla WACC | C43: annual real % | D43: =D40*D42+D41*(1-D42) -> 0.04243 | E43: 0.04113 | F43: 0.040025 | G43: 0.03892 | H43: 0.03788 | I43: 0.035865 | J43: 0.03372 | K43: 0.030535
B45: NPV-neutral debt element of RAV | C45: ='RFPR cover'!$C$14 -> £m 09/10 | D45: =D47*D42 -> 835.2970472 | E45: 822.7536321 | F45: 818.8580598 | G45: 824.7344453 | H45: 828.5487439 | I45: 830.3743335 | J45: 831.9687143 | K45: 847.4544606
B46: NPV-neutral equity element of RAV | C46: ='RFPR cover'!$C$14 -> £m 09/10 | D46: =D47*(1-D42) -> 449.7753331 | E46: 443.0211865 | F46: 440.9235707 | G46: 444.0877783 | H46: 446.1416313 | I46: 447.1246411 | J46: 447.9831538 | K46: 456.3216326
B47: NPV-neutral RAV return base | C47: ='RFPR cover'!$C$14 -> £m 09/10 | D47: =AVERAGE(D16,D29*(1/(1+D43))) -> 1285.07238 | E47: 1265.774819 | F47: 1259.78163 | G47: 1268.822224 | H47: 1274.690375 | I47: 1277.498975 | J47: 1279.951868 | K47: 1303.776093
B49: Debt Return on RAV | C49: ='RFPR cover'!$C$14 -> £m 09/10 | D49: =D40*D45 -> 24.39067378 | E49: 22.37889879 | F49: 20.88088053 | G49: 19.6286798 | H49: 18.39378211 | I49: 15.86014977 | J49: 13.14510569 | K49: 9.23725362
B50: Equity Return on RAV | C50: ='RFPR cover'!$C$14 -> £m 09/10 | D50: 30.13494732 | E50: 29.68241949 | F50: 29.54187923 | G50: 29.75388114 | H50: 29.8914893 | I50: 29.95735096 | J50: 30.01487131 | K50: 30.57354939
B51: Total return on RAV | C51: ='RFPR cover'!$C$14 -> £m 09/10 | D51: =SUM(D49:D50) -> 54.5256211 | E51: 52.06131829 | F51: 50.42275976 | G51: 49.38256094 | H51: 48.28527141 | I51: 45.81750073 | J51: 43.15997699 | K51: 39.81080301
B53: NPV-neutral debt element of RAV | C53: £m nominal | D53: =D$35*D45 -> 974.531933 | E53: 978.7117885 | F53: 984.5750417 | G53: 1012.889043 | H53: 1055.651133 | I53: 1090.304318 | J53: 1120.676707 | K53: 1167.791618
B54: NPV-neutral equity element of RAV | C54: £m nominal | D54: 524.7479639 | E54: 526.9986554 | F54: 530.1557917 | G54: 545.4017924 | H54: 568.4275333 | I54: 587.0869402 | J54: 603.4413038 | K54: 628.8108714
B55: Adjusted NPV-neutral average RAV | C55: £m nominal | D55: =SUM(D53:D54) -> 1499.279897 | E55: 1505.710444 | F55: 1514.730833 | G55: 1558.290835 | H55: 1624.078667 | I55: 1677.391258 | J55: 1724.118011 | K55: 1796.60249
B57: Debt Return on RAV | C57: £m nominal | D57: =D$35*D49 -> 28.45633244 | E57: 26.62096065 | F57: 25.10666356 | G57: 24.10675922 | H57: 23.43545516 | I57: 20.82481247 | J57: 17.70669197 | K57: 12.72892864
B58: Equity Return on NPV-neutral RAV | C58: £m nominal | D58: 35.15811358 | E58: 35.30890991 | F58: 35.52043804 | G58: 36.54192009 | H58: 38.08464473 | I58: 39.334825 | J58: 40.43056736 | K58: 42.13032838
B59: Total return on RAV | C59: £m nominal | D59: =SUM(D57:D58) -> 63.61444603 | E59: 61.92987056 | F59: 60.62710161 | G59: 60.64867931 | H59: 61.52009989 | I59: 60.15963746 | J59: 58.13725933 | K59: 54.85925702

Sheet R10 - Tax
A1: R10 - Tax
A2: ='RFPR cover'!C5 -> Cadent-WM
A3: ='RFPR cover'!C7 -> 2020
D5: =IF(D6<=('RFPR cover'!$C$7-1),"Actuals","Forecast") -> Actuals | E5: =IF(E6<=('RFPR cover'!$C$7-1),"Actuals","Forecast") -> Actuals | F5: =IF(F6<=('RFPR cover'!$C$7-1),"Actuals","Forecast") -> Actuals | G5: =IF(G6<=('RFPR cover'!$C$7-1),"Actuals","Forecast") -> Actuals | H5: =IF(H6<=('RFPR cover'!$C$7-1),"Actuals","Forecast") -> Actuals | I5: =IF(I6<=('RFPR cover'!$C$7-1),"Actuals","Forecast") -> Actuals | J5: =IF(J6<='RFPR cover'!$C$7,"Actuals","N/A") -> Actuals | K5: =IF(K6<=('RFPR cover'!$C$7-1),"Actuals","Forecast") -> Forecast
D6: ='RFPR cover'!$C$13 -> 2014 | E6: =D6+1 -> 2015 | F6: 2016 | G6: 2017 | H6: 2018 | I6: 2019 | J6: 2020 | K6: 2021
B8: CT600 will not have been submitted for the current reporting year.
B9: It is assumed the current tax charge per the statutory accounts will equal the tax liability in the forthcoming CT600, where this is not the case the licensee should provide an explanation in the commentary of the variance.
B10: This will be corrected / trued-up in future years
B12: Tax liability per latest submitted CT600 (pre-group relief) | C12: £m nominal | D12: 154.975 | E12: 126.992 | F12: 134.012 | G12: -25.7 | H12: 125.2 | I12: 132.89854 | J12: 0
B14: Adjustments to remove non-regulated tax liability
B15: Tax on non-regulated activities | C15: £m nominal | D15: 44.6468619 | E15: 42.4797453 | F15: 43.44862871 | G15: 0.4293253918 | H15: 0.7552502622 | I15: 0.5849864272 | J15: 0
B16: Tax relating to capital contributions (excluded services) | C16: £m nominal | D16: -4.498791074 | E16: -3.427918254 | F16: -83.87205642 | G16: -0.7489804721 | H16: -0.5642697889 | I16: -0.215764 | J16: 0
B17: Tax on Separation costs/restructuring costs | C17: £m nominal | D17: 1.381593191 | E17: 0 | F17: 0 | G17: -2.28009114 | H17: -3.8 | I17: -3.116 | J17: 0
B18: Transfer pricing and de-grouping charge adjustment | C18: £m nominal | D18: 7.160544 | E18: 6.69186 | F18: 7.863804 | G18: -4 | H18: 0 | I18: 0 | J18: 0
B19: Tax on Payment to Energy Savings Trust, GSOP and Grenfell | C19: £m nominal | D19: 0 | E19: 0 | F19: 0 | G19: 0 | H19: 0 | I19: -3.116 | J19: 0
B20: Tax relating to other three networks (included in CT600) | C20: £m nominal | D20: 87.36996639 | E20: 63.67881563 | F20: 137.9194965 | G20: -14.68647451 | H20: 105.5758824 | I20: 113.0602729 | J20: 0
B21: Non-regulated tax | C21: £m nominal | D21: =SUM(D15:D20) -> 136.0601744 | E21: 109.4225027 | F21: 105.3598728 | G21: -21.28622073 | H21: 101.9668629 | I21: 107.1974953 | J21: 0 | K21: 0
B23: Other adjustments
B24: Tax on output incentives | C24: £m nominal | D24: =('R5 - Output Incentives'!D102)*INDEX(Data!$G$14:$G$30,MATCH('R10 - Tax'!D$6,Data!$C$14:$C$30,0),1) -> 0.0376335315 | E24: =('R5 - Output Incentives'!E102)*INDEX(Data!$G$14:$G$30,MATCH('R10 - Tax'!E$6,Data!$C$14:$C$30,0),1) -> 0.0311794728 | F24: =('R5 - Output Incentives'!F102)*INDEX(Data!$G$14:$G$30,MATCH('R10 - Tax'!F$6,Data!$C$14:$C$30,0),1) -> 0.562784484 | G24: =('R5 - Output Incentives'!G102)*INDEX(Data!$G$14:$G$30,MATCH('R10 - Tax'!G$6,Data!$C$14:$C$30,0),1) -> 0.865699246 | H24: =('R5 - Output Incentives'!H102)*INDEX(Data!$G$14:$G$30,MATCH('R10 - Tax'!H$6,Data!$C$14:$C$30,0),1) -> 1.124062468 | I24: =('R5 - Output Incentives'!I102)*INDEX(Data!$G$14:$G$30,MATCH('R10 - Tax'!I$6,Data!$C$14:$C$30,0),1) -> 0.9273873134 | J24: =('R5 - Output Incentives'!J102)*INDEX(Data!$G$14:$G$30,MATCH('R10 - Tax'!J$6,Data!$C$14:$C$30,0),1) -> 0.9420776384 | K24: =('R5 - Output Incentives'!K102)*INDEX(Data!$G$14:$G$30,MATCH('R10 - Tax'!K$6,Data!$C$14:$C$30,0),1) -> 1.177792218
B25: Tax on IQI | C25: £m nominal | D25: =('R4 - Totex'!D77-'R4 - Totex'!D79)*D41 -> 0.2209096643 | E25: =('R4 - Totex'!E77-'R4 - Totex'!E79)*E41 -> 0.2064992459 | F25: =('R4 - Totex'!F77-'R4 - Totex'!F79)*F41 -> 0.1915156166 | G25: =('R4 - Totex'!G77-'R4 - Totex'!G79)*G41 -> 0.1934492358 | H25: =('R4 - Totex'!H77-'R4 - Totex'!H79)*H41 -> 0.1964060423 | I25: =('R4 - Totex'!I77-'R4 - Totex'!I79)*I41 -> 0.2022351639 | J25: =('R4 - Totex'!J77-'R4 - Totex'!J79)*J41 -> 0.2070510577 | K25: =('R4 - Totex'!K77-'R4 - Totex'!K79)*K41 -> 0.2043327978
B26: Collected revenue adjustment ('k') | C26: £m nominal | D26: 0.1367002981 | E26: 0.1344180757 | F26: -2.546889392 | G26: 0.3711525501 | H26: 0.5758747167 | I26: -0.2269404825 | J26: 0
B27: Pension - timing adjustment | C27: £m nominal | D27: 0.3809797548 | E27: 0.145786221 | F27: 0.001121206165 | G27: -0.004488390883 | H27: -0.9702438213 | I27: -0.4153600166 | J27: 0
B28: Pension - disallowed contributions | C28: £m nominal | D28: 0 | E28: 0 | F28: 0 | G28: 0 | H28: 0 | I28: 0 | J28: 0
B29: Tax on derivatives not disregarded | C29: £m nominal | D29: 0 | E29: 0 | F29: 0 | G29: 0 | H29: 0 | I29: 0 | J29: 0
B30: Tax arising from MOD values | C30: £m nominal | D30: 0.09154720459 | E30: 0.08495732473 | F30: 0.2770169511 | G30: 0.9005848098 | H30: 0.426815932 | I30: -0.4263169869 | J30: 0
B31: Tax on finance costs not included within the RIIO 1 definition | C31: £m nominal | D31: 0.3045945493 | E31: -0.8568 | F31: -0.2 | G31: -29.7792 | H31: -0.0156994747 | I31: 0.04975204679 | J31: 0
B32: Difference between actual and allowed pass through costs (inc exit capacity and shrinkage) | C32: £m nominal | D32: 0.1150809179 | E32: 0.5872810956 | F32: 0.4426927362 | G32: -0.5725908921 | H32: -1.995890048 | I32: -0.8294843666 | J32: 0
B33: Other revenue timing adjustments | C33: £m nominal | D33: 0.002021267312 | E33: -0.04560253416 | F33: 0.248688818 | G33: -0.9727598431 | H33: -1.449582886 | I33: -0.4083252023 | J33: 0
B34: Regulatory tax losses carried forward from previous price controls | C34: £m nominal | D34: 0 | E34: 0 | F34: 0 | G34: 0 | H34: 0 | I34: 0 | J34: 0
B35: 0 | C35: £m nominal | D35: 0 | E35: 0 | F35: 0 | G35: 0 | H35: 0 | I35: 0 | J35: 0
B36: Total other adjustments | C36: £m nominal | D36: =SUM(D24:D35) -> 1.289467188 | E36: 0.2877189016 | F36: -1.02306958 | G36: -28.99815328 | H36: -2.108257072 | I36: -1.127052531 | J36: 1.149128696 | K36: 1.382125016
B38: Forecast regulated tax liability (including impact of enduring value adjustments) | C38: £m nominal | J38: 25.70478914 | K38: 28.52046048
B39: Adjusted forecast regulated tax liability with timing differences | C39: £m nominal | D39: =D12+D38-D21-D36 -> 17.62535841 | E39: 17.28177842 | F39: 29.67519679 | G39: 24.58437402 | H39: 25.34139418 | I39: 26.82809719 | J39: 24.55566045 | K39: 27.13833546
B41: Financial year average RPI | C41: Index | D41: =Data!C$34 -> 1.166689067 | E41: =Data!D$34 -> 1.189556327 | F41: =Data!E$34 -> 1.202375711 | G41: =Data!F$34 -> 1.228139614 | H41: =Data!G$34 -> 1.274096595 | I41: =Data!H$34 -> 1.313027479 | J41: =Data!I$34 -> 1.347017848 | K41: =Data!J$34 -> 1.377999258
B43: Adjusted/forecast regulated tax liability with timing differences | C43: ='RFPR cover'!$C$14 -> £m 09/10 | D43: =D39/D41 -> 15.10716 | E43: 14.52791938 | F43: 24.68046928 | G43: 20.01757271 | H43: 19.88969618 | I43: 20.43224351 | J43: 18.22964743 | K43: 19.69401311
B45: Tax out(under)performance at notional gearing
B46: Performance against allowance is impacted by deviating from notional levels of gearing
B48: Notional Gearing | C48: % | D48: ='RFPR cover'!$C$12 -> 0.65 | E48: ='RFPR cover'!$C$12 -> 0.65 | F48: ='RFPR cover'!$C$12 -> 0.65 | G48: ='RFPR cover'!$C$12 -> 0.65 | H48: ='RFPR cover'!$C$12 -> 0.65 | I48: ='RFPR cover'!$C$12 -> 0.65 | J48: ='RFPR cover'!$C$12 -> 0.65 | K48: ='RFPR cover'!$C$12 -> 0.65
B49: Actual Gearing | C49: % | D49: ='R8 - Net Debt'!D57 -> 0.5345820753 | E49: ='R8 - Net Debt'!E57 -> 0.5753912962 | F49: ='R8 - Net Debt'!F57 -> 0.5619005688 | G49: ='R8 - Net Debt'!G57 -> 0.5891478628 | H49: ='R8 - Net Debt'!H57 -> 0.6268090164 | I49: ='R8 - Net Debt'!I57 -> 0.6318205754 | J49: ='R8 - Net Debt'!J57 -> 0.6383528754 | K49: ='R8 - Net Debt'!K57 -> 0.6406471296
B51: Adjusted/forecast regulated tax liability with timing differences | C51: £m nominal | D51: =D39 -> 17.62535841 | E51: 17.28177842 | F51: 29.67519679 | G51: 24.58437402 | H51: 25.34139418 | I51: 26.82809719 | J51: 24.55566045 | K51: 27.13833546
B52: Adjustment to regulatory tax cost relating to variance from notional gearing | C52: £m nominal | D52: =D87-D89 -> -0.1352008419 | E52: -0.1817450993 | F52: -0.4117659336 | G52: -0.1434250005 | H52: 0.1235053538 | I52: 0.08811623603 | J52: 0.3004108373 | K52: 0.2240672911
B53: Revised regulated tax liability for comparison against allowance | C53: £m nominal | D53: =SUM(D51:D52) -> 17.49015757 | E53: 17.10003332 | F53: 29.26343086 | G53: 24.44094902 | H53: 25.46489954 | I53: 26.91621342 | J53: 24.85607128 | K53: 27.36240276
B55: Revised regulated tax liability for comparison against allowance | C55: ='RFPR cover'!$C$14 -> £m 09/10 | D55: =D53/D41 -> 14.99127579 | E55: 14.37513545 | F55: 24.33800899 | G55: 19.90079039 | H55: 19.98663181 | I55: 20.49935272 | J55: 18.45266662 | K55: 19.85661646
B58: Allowance
B60: The latest published PCFM does not account for the forecast TIM performance - and ultimate impact on tax allowance.
B62: Tax Allowance per latest published PCFM | C62: ='RFPR cover'!$C$14 -> £m 09/10 | D62: 11.13649726 | E62: 11.06217563 | F62: 20.83850309 | G62: 19.07494869 | H62: 18.84484634 | I62: 18.68113242 | J62: 18.7395279 | K62: 16.03897154
B63: Tax clawbacks | C63: ='RFPR cover'!$C$14 -> £m 09/10 | D63: 0 | E63: 0 | F63: 5.719908177e-17 | G63: 5.564108194e-17 | H63: 2.165019397e-16 | I63: 0 | J63: 0 | K63: 0
B64: Net Tax Allowance | C64: ='RFPR cover'!$C$14 -> £m 09/10 | D64: =SUM(D62:D63) -> 11.13649726 | E64: 11.06217563 | F64: 20.83850309 | G64: 19.07494869 | H64: 18.84484634 | I64: 18.68113242 | J64: 18.7395279 | K64: 16.03897154
B66: Network operators should provide forecast allowances taking account of the latest totex, allowances, reopeners, enduring value adjustments - and other financial variables
B68: Forecast tax allowance | C68: ='RFPR cover'!$C$14 -> £m 09/10 | D68: 10.10258857 | E68: 7.83384962 | F68: 20.10815115 | G68: 18.42961525 | H68: 17.32378993 | I68: 18.89970869 | J68: 18.03591437 | K68: 20.41733463
B69: Forecast tax clawbacks | C69: ='RFPR cover'!$C$14 -> £m 09/10 | D69: 0 | E69: 0 | F69: 5.719908177e-17 | G69: 5.564108194e-17 | H69: 2.165019397e-16 | I69: 2.140618721e-16 | J69: 0 | K69: 4.079379846e-16
B70: Net forecast tax allowance | C70: ='RFPR cover'!$C$14 -> £m 09/10 | D70: =SUM(D68:D69) -> 10.10258857 | E70: 7.83384962 | F70: 20.10815115 | G70: 18.42961525 | H70: 17.32378993 | I70: 18.89970869 | J70: 18.03591437 | K70: 20.41733463
B72: Reconciliation of forecast movement in allowance | D72: =D70-D64 -> -1.033908686 | E72: -3.228326012 | F72: -0.7303519353 | G72: -0.6453334385 | H72: -1.521056411 | I72: 0.2185762773 | J72: -0.7036135232 | K72: 4.378363085
B73: Changes in corporation tax rates | C73: ='RFPR cover'!$C$14 -> £m 09/10 | D73: 0 | E73: 0 | F73: 0 | G73: 0 | H73: 0 | I73: 0 | J73: 0 | K73: 0
B74: Tax allowance retained within deadband | C74: ='RFPR cover'!$C$14 -> £m 09/10 | D74: 0 | E74: 0 | F74: 0 | G74: 0 | H74: 0 | I74: 0 | J74: 0 | K74: 0
B75: Other adjustments | C75: ='RFPR cover'!$C$14 -> £m 09/10 | D75: -1.033908686 | E75: -3.228326012 | F75: -0.7303519353 | G75: -0.6453334385 | H75: -1.521056411 | I75: 0.2185762773 | J75: -0.7036135232 | K75: 4.378363085
B76: Check | C76: ='RFPR cover'!$C$14 -> £m 09/10 | D76: =IF(ABS(D72-SUM(D73:D75))<'RFPR cover'!$F$14,"OK","ERROR") -> OK | E76: =IF(ABS(E72-SUM(E73:E75))<'RFPR cover'!$F$14,"OK","ERROR") -> OK | F76: =IF(ABS(F72-SUM(F73:F75))<'RFPR cover'!$F$14,"OK","ERROR") -> OK | G76: =IF(ABS(G72-SUM(G73:G75))<'RFPR cover'!$F$14,"OK","ERROR") -> OK | H76: =IF(ABS(H72-SUM(H73:H75))<'RFPR cover'!$F$14,"OK","ERROR") -> OK | I76: =IF(ABS(I72-SUM(I73:I75))<'RFPR cover'!$F$14,"OK","ERROR") -> OK | J76: =IF(ABS(J72-SUM(J73:J75))<'RFPR cover'!$F$14,"OK","ERROR") -> OK | K76: =IF(ABS(K72-SUM(K73:K75))<'RFPR cover'!$F$14,"OK","ERROR") -> OK
B79: Out(under) performance
B81: Regulated tax out(under) performance at actual gearing | C81: ='RFPR cover'!$C$14 -> £m 09/10 | D81: =D$70-D43 -> -5.004571425 | E81: -6.694069764 | F81: -4.572318123 | G81: -1.587957461 | H81: -2.565906259 | I81: -1.532534819 | J81: -0.193733054 | K81: 0.7233215144
B83: Regulated tax out(under) performance at notional gearing | C83: ='RFPR cover'!$C$14 -> £m 09/10 | D83: =D$70-D55 -> -4.888687214 | E83: -6.541285827 | F83: -4.229857833 | G83: -1.471175135 | H83: -2.662841887 | I83: -1.599644029 | J83: -0.4167522499 | K83: 0.5607181677
B85: Impact on out(under) performance relating to deviating from notional levels of gearing | C85: ='RFPR cover'!$C$14 -> £m 09/10 | D85: =D81-D83 -> -0.1158842109 | E85: -0.1527839373 | F85: -0.3424602892 | G85: -0.1167823258 | H85: 0.09693562817 | I85: 0.06710920941 | J85: 0.2230191959 | K85: 0.1626033467
B87: Tax impact of financing performance (at actual gearing) | C87: £m nominal | D87: -4.709419352 | E87: -4.754511064 | F87: -5.119064337 | G87: -3.144582088 | H87: -1.484584321 | I87: -0.5886544017 | J87: 0.3385529643 | K87: 0.4579376386
B88: Tax impact of financing performance (at actual gearing) | C88: ='RFPR cover'!$C$14 -> £m 09/10 | D88: =D87/D$41 -> -4.036567654 | E88: -3.996877622 | F88: -4.257458206 | G88: -2.560443498 | H88: -1.16520547 | I88: -0.4483184178 | J88: 0.2513351733 | K88: 0.3323206713
B89: Tax impact of financing performance (at notional gearing) | C89: £m nominal | D89: -4.57421851 | E89: -4.572765964 | F89: -4.707298403 | G89: -3.001157087 | H89: -1.608089675 | I89: -0.6767706378 | J89: 0.03814212696 | K89: 0.2338703475
B90: Tax impact of financing performance (at notional gearing) | C90: ='RFPR cover'!$C$14 -> £m 09/10 | D90: =D89/D$41 -> -3.920683444 | E90: -3.844093685 | F90: -3.914997917 | G90: -2.443661172 | H90: -1.262141098 | I90: -0.5154276272 | J90: 0.02831597742 | K90: 0.1697173246
B91: Tax impact of financing performance relating to deviating from notional levels of gearing | C91: ='RFPR cover'!$C$14 -> £m 09/10 | D91: =D88-D90 -> -0.1158842109 | E91: -0.1527839373 | F91: -0.3424602892 | G91: -0.1167823258 | H91: 0.09693562817 | I91: 0.06710920941 | J91: 0.2230191959 | K91: 0.1626033467

Sheet R11 - Dividends
A1: R11 - Dividends
A2: ='RFPR cover'!C5 -> Cadent-WM
A3: ='RFPR cover'!C7 -> 2020 | B3: ='R1 - RoRE'!B3 -> 
D5: =IF(D6<='RFPR cover'!$C$7,"Actuals","N/A") -> Actuals | E5: =IF(E6<='RFPR cover'!$C$7,"Actuals","N/A") -> Actuals | F5: =IF(F6<='RFPR cover'!$C$7,"Actuals","N/A") -> Actuals | G5: =IF(G6<='RFPR cover'!$C$7,"Actuals","N/A") -> Actuals | H5: =IF(H6<='RFPR cover'!$C$7,"Actuals","N/A") -> Actuals | I5: =IF(I6<='RFPR cover'!$C$7,"Actuals","N/A") -> Actuals | J5: =IF(J6<='RFPR cover'!$C$7,"Actuals","N/A") -> Actuals | K5: =IF(K6<='RFPR cover'!$C$7,"Actuals","N/A") -> N/A
D6: ='RFPR cover'!$C$13 -> 2014 | E6: =D6+1 -> 2015 | F6: 2016 | G6: 2017 | H6: 2018 | I6: 2019 | J6: 2020 | K6: 2021
B8: Dividend paid as per Statutory Accounts | C8: £m nominal | D8: 455 | E8: 540 | F8: 458 | G8: 95 | H8: 418 | I8: 423 | J8: 275
B9: Less dividend paid not related to Regulated business
B10: Metering | C10: £m nominal | D10: 65 | E10: 97 | F10: 67 | G10: 0 | H10: 0 | I10: 0 | J10: 0
B11: Non regulated activities | C11: £m nominal | D11: 3 | E11: 7 | F11: 8 | G11: 0 | H11: 3 | I11: 2.121726915 | J11: 1.157518742
B12: Other networks (East of England, London and North West) | C12: £m nominal | D12: 320 | E12: 359 | F12: 318 | G12: 79 | H12: 340 | I12: 349.9370941 | J12: 233.8249282
B13: Dividend paid relating to the Regulated Business | C13: £m nominal | D13: =D8-SUM(D10:D12) -> 67 | E13: 77 | F13: 65 | G13: 16 | H13: 75 | I13: 70.94117902 | J13: 40.01755302 | K13: 0
B15: Shareholder loan interest (not included as Net Interest per Regulatory (RIIO-1) definition) | C15: £m nominal | D15: 0 | E15: 0 | F15: 0 | G15: 0 | H15: 0 | I15: 0 | J15: 0

Sheet R12 - Pensions
A1: R12 - Pensions
A2: ='RFPR cover'!C5 -> Cadent-WM
A3: ='RFPR cover'!C7 -> 2020
D5: =IF(D6<='RFPR cover'!$C$7,"Actuals","Forecast") -> Actuals | E5: =IF(E6<='RFPR cover'!$C$7,"Actuals","Forecast") -> Actuals | F5: =IF(F6<='RFPR cover'!$C$7,"Actuals","Forecast") -> Actuals | G5: =IF(G6<='RFPR cover'!$C$7,"Actuals","Forecast") -> Actuals | H5: =IF(H6<='RFPR cover'!$C$7,"Actuals","Forecast") -> Actuals | I5: =IF(I6<='RFPR cover'!$C$7,"Actuals","Forecast") -> Actuals | J5: =IF(J6<='RFPR cover'!$C$7,"Actuals","Forecast") -> Actuals | K5: =IF(K6<='RFPR cover'!$C$7,"Actuals","Forecast") -> Forecast
D6: ='RFPR cover'!$C$13 -> 2014 | E6: =D6+1 -> 2015 | F6: 2016 | G6: 2017 | H6: 2018 | I6: 2019 | J6: 2020 | K6: 2021
B8: Licensee share of total pension deficit repair payment made for defined benefit scheme | C8: £m nominal | D8: 1.482845389 | E8: 2.311936348 | F8: 2.316478099 | G8: 2.54089261 | H8: 7.101703378 | I8: 7.334206887 | J8: 7.538993582
B9: Of which:
B10: Established deficit element funded via specific allowances | C10: £m nominal | D10: 1.482845389 | E10: 2.311936348 | F10: 2.316478099 | G10: 2.461692368 | H10: 6.875821791 | I10: 7.100930136 | J10: 7.299203247
B11: Incremental deficit funded via totex | C11: £m nominal | D11: 0 | E11: 0 | F11: 0 | G11: 0.07920024164 | H11: 0.2258815869 | I11: 0.2332767509 | J11: 0.2397903353
B14: Established deficit element funded via specific allowances | C14: ='RFPR cover'!$C$14 -> £m 09/10 | D14: =D10/Data!C$34 -> 1.270985929 | E14: =E10/Data!D$34 -> 1.943528268 | F14: =F10/Data!E$34 -> 1.926584243 | G14: =G10/Data!F$34 -> 2.004407594 | H14: =H10/Data!G$34 -> 5.3966252 | I14: =I10/Data!H$34 -> 5.408059047 | J14: =J10/Data!I$34 -> 5.418787329 | K14: =K10/Data!J$34 -> 0
B17: Established deficit (EDE) allowance as per PCFM | C17: ='RFPR cover'!$C$14 -> £m 09/10 | D17: 2.4 | E17: 2.4 | F17: 1.9 | G17: 1.9 | H17: 1.9 | I17: 5.2 | J17: 5.2296217 | K17: 5.2296217
B18: Less Pension Payment History Allowance (PPH) | C18: ='RFPR cover'!$C$14 -> £m 09/10 | D18: 0 | E18: 0 | F18: 0 | G18: 0 | H18: 0 | I18: -0.2 | J18: -0.2 | K18: -0.2
B19: Established deficit allowance less PPH | C19: ='RFPR cover'!$C$14 -> £m 09/10 | D19: =D17-D18 -> 2.4 | E19: 2.4 | F19: 1.9 | G19: 1.9 | H19: 1.9 | I19: 5.4 | J19: 5.4296217 | K19: 5.4296217
D21: Enter valuation date
B24: Latest pension scheme valuation | D24: 2016-03-31
B26: Price base | D26: 42460
D28: £m
B29: Total Liabilities attributable to post cut-off date notional sub fund | D29: 120.5861355
B30: Total Liabilities attributable to pre cut-off date notional sub fund | D30: 18243.31386
B32: Total Assets attributable to post cut-off date notional sub fund | D32: 103.9
B33: Total Assets attributable to pre cut-off date notional sub fund | D33: 16725.7
B35: Deficit in the post Cut-Off Date Notional Sub-Fund | D35: =D29-D32 -> 16.6861355
B36: Deficit in the pre Cut-Off Date Notional Sub-Fund | D36: =D30-D33 -> 1517.613865
B38: Licensee element of established deficit | D38: 37.32558973
B39: Licensee element of incremental deficit | D39: 3.181686952

Sheet R13 - Other Activities
A1: R13 - Other activities
A2: ='RFPR cover'!C5 -> Cadent-WM
A3: ='RFPR cover'!C7 -> 2020
D5: =IF(D6<='RFPR cover'!$C$7,"Actuals","Forecast") -> Actuals | E5: =IF(E6<='RFPR cover'!$C$7,"Actuals","Forecast") -> Actuals | F5: =IF(F6<='RFPR cover'!$C$7,"Actuals","Forecast") -> Actuals | G5: =IF(G6<='RFPR cover'!$C$7,"Actuals","Forecast") -> Actuals | H5: =IF(H6<='RFPR cover'!$C$7,"Actuals","Forecast") -> Actuals | I5: =IF(I6<='RFPR cover'!$C$7,"Actuals","Forecast") -> Actuals | J5: =IF(J6<='RFPR cover'!$C$7,"Actuals","Forecast") -> Actuals | K5: =IF(K6<='RFPR cover'!$C$7,"Actuals","Forecast") -> Forecast
D6: ='RFPR cover'!$C$13 -> 2014 | E6: =D6+1 -> 2015 | F6: 2016 | G6: 2017 | H6: 2018 | I6: 2019 | J6: 2020 | K6: 2021
B8: Post-tax total fines and penalties (including GS payments) | C8: ='RFPR cover'!$C$14 -> £m 09/10 | D8: =(D16+D21)/Data!C34 -> 0.4678178243 | E8: =(E16+E21)/Data!D34 -> 0.4830761596 | F8: =(F16+F21)/Data!E34 -> 0.16741871 | G8: =(G16+G21)/Data!F34 -> 0.1814253467 | H8: =(H16+H21)/Data!G34 -> 0.2600334717 | I8: =(I16+I21)/Data!H34 -> 0.4341400827 | J8: =(J16+J21)/Data!I34 -> 0.2865971691 | K8: =(K16+K21)/Data!J34 -> 0.3067088918
B10: Ofgem related fines and penalties
B11: Failure to meet gas network repair targets | C11: £m nominal | D11: 0.375 | E11: 0.375 | F11: 0 | G11: 0 | H11: 0 | I11: 0 | J11: 0 | K11: 0
B12: Fine/penalty | C12: £m nominal | D12: 0 | E12: 0 | F12: 0 | G12: 0 | H12: 0 | I12: 0.092 | J12: 0 | K12: 0
B13: Payments to residents who faced delayed compensation | C13: £m nominal | D13: 0 | E13: 0 | F13: 0 | G13: 0 | H13: 0 | I13: 0 | J13: 0 | K13: 0
B14: Total Ofgem related fines and penalties | C14: £m nominal | D14: =SUM(D11:D13) -> 0.375 | E14: 0.375 | F14: 0 | G14: 0 | H14: 0 | I14: 0.092 | J14: 0 | K14: 0
B15: Any adjustment for tax | C15: £m nominal | D15: 0 | E15: 0 | F15: 0 | G15: 0 | H15: 0 | I15: 0 | J15: 0 | K15: 0
B16: Post-tax total fines and penalties | C16: £m nominal | D16: =D14-D15 -> 0.375 | E16: 0.375 | F16: 0 | G16: 0 | H16: 0 | I16: 0.092 | J16: 0 | K16: 0
B18: Guaranteed Standard (GS) payments
B19: Total GS payments | C19: £m nominal | D19: 0.221815508 | E19: 0.252716838 | F19: 0.251625238 | G19: 0.278519569 | H19: 0.409021927 | I19: 0.5901701954 | J19: 0.4766067925 | K19: 0.5217834882
B20: Any adjustment for tax | C20: £m nominal | D20: 0.05101756684 | E20: 0.05307053598 | F20: 0.0503250476 | G20: 0.0557039138 | H20: 0.07771416613 | I20: 0.1121323371 | J20: 0.09055529058 | K20: 0.09913886276
B21: Post-tax total GS payments | C21: £m nominal | D21: =D19-D20 -> 0.1707979412 | E21: 0.199646302 | F21: 0.2013001904 | G21: 0.2228156552 | H21: 0.3313077609 | I21: 0.4780378583 | J21: 0.3860515019 | K21: 0.4226446254
